Workbook

Sheet parameters
A1: Parameter sheet | Q1: do not remove | R1: NO
R2: YES | X2: Soccer | AA2: Tennis & Golf | AD2: Hockey
B3: NETWORK PARAMETERS | X3: 0 | Y3: 0.05 | AA3: 0 | AB3: 0.05 | AD3: 0 | AE3: 0.05
C4: min/average | D4: max/stdev | X4: 0.05 | Y4: 0.01 | AA4: 0.05 | AB4: 0.01 | AD4: 0.05 | AE4: 0.01
B5: initial level | C5: 0 | D5: 0.05 | R5: 1 | X5: 0 | Y5: 0.02 | AA5: 0 | AB5: 0.02 | AD5: 0 | AE5: 0.02
B6: resource consumption rate r | C6: 0.05 | D6: 0.01 | R6: 2 | X6: 1 | Y6: 0.15 | AA6: 1 | AB6: 0.15 | AD6: 1 | AE6: 0.15
B7: connection strength | C7: 0 | D7: 0.02 | R7: 3 | X7: 0.5 | Y7: 0.25 | AA7: 0.5 | AB7: 0.25 | AD7: 0.5 | AE7: 0.25
B8: genetic factor normal case | C8: 1 | D8: 0.15 | R8: 4 | X8: 1 | Y8: 350 | AA8: 1 | AB8: 350 | AD8: 1 | AE8: 350
B9: genetic factor emergenic case | C9: 0.5 | D9: 0.25 | R9: 5 | X9: 10 | Y9: 25 | AA9: 10 | AB9: 25 | AD9: 10 | AE9: 25
B10: delay of onset | C10: 1 | D10: 350
B11: maximum range | C11: 10 | D11: 25 | X11: 0.25 | AA11: 0.25 | AD11: 0.25
B13: connection probability | C13: 0.25
B18: PRODUCT PARAMETERS | X18: 0.002 | AA18: 0.0002 | AD18: 0.004
X19: 1 | AA19: 1 | AD19: 1
B20: Poisson parameter | C20: 0.002 | X20: 3 | AA20: 3 | AD20: 3
B21: Intermittent | C21: 1 | X21: 3 | AA21: 1 | AD21: 3
B22: condition_value | C22: 1 | E22: simple model | X22: 0 | AA22: 0 | AD22: 0
B23: Nr_Draws | C23: 1 | X23: 300 | AA23: 300 | AD23: 300
B24: threshold_value | C24: 0 | E24: threshold_age | F24: 200
B25: transition_to_prefessional | C25: 300 | E25: senior_drop | F25: =IF(G25>1,1,IF(G25<0,0.01,G25)) -> 0.4978782045 | G25: =_xll.dNormalDev(0.65,0.15) -> 0.4978782045 | X25: 0.7 | AA25: 0.7 | AD25: 0.7
B26: Correlated Frequency-tenacity (product model 3)
B27: correlation_F_and_T | C27: 0.7
X30: 10 | AA30: 10 | AD30: 10
B31: Simonton Creative Productivity Model | X31: 2 | AA31: 2 | AD31: 2
B32: production_constant | C32: 10 | X32: 1 | AA32: 1 | AD32: 1
B33: decay_constant | C33: 2
B34: power_constant | C34: 1
B37: Matthew Models | X37: 0.5 | AA37: 0.5 | AD37: 0.5
B38: Model 1
B39: Simple_Matthew (condition value must be 5!) | C39: 0.5 | E39: Applies only to Condition Value 5 | X39: 0 | AA39: 0 | AD39: 0
B40: Model 2
B41: Product support parameter | C41: 0 | X41: NO | AA41: NO | AD41: NO
B42: Model 3 | X42: 0.001 | AA42: 0.001 | AD42: 0.001
B43: matthew condition | C43: NO
B44: matthew parameter | C44: 0.001
X47: NO | AA47: NO | AD47: NO
B48: SECUNDARY PARAMETERS
B49: lifespan decline condition | C49: NO | X49: 0 | AA49: 0 | AD49: 0
B51: random walk multiplier | C51: 0 | X51: 0 | AA51: 0 | AD51: 0
B53: random effect on growers | C53: 0

Sheet output
T30: type of model | U30: =model_type(model!E11) -> normal genetic model
U31: =IF(parameters!C43="YES","Matthew model","Standard model") -> Standard model
U33: =model_type2((model!L11)) -> PRODUCT MODEL 3. RESET EQUATIONS TO NORMAL MODEL!
A44: Specified values | G44: Growth and Connection parameters
B45: grower3 | C45: =H63 -> 0.9197176206
B46: products1 | C46: =collected_number_of_products -> 0 | G46: =model!A8:H18 -> grower | H46: endlevel | I46: initial | J46: rate | K46: genetic K | L46: effect_type | M46: delay | N46: MyMax | P46: grower1 | Q46: grower2 | R46: grower3 | S46: grower4 | T46: grower5 | U46: grower6 | V46: grower7 | W46: grower8 | X46: grower9 | Y46: grower10
B47: =G65 -> initial level | C47: 0.03330721903 | G47: 1 | H47: 0.539138122 | I47: 0.004270844383 | J47: 0.05197021459 | K47: 0.7237013174 | L47: 1 | M47: 1 | N47: 10 | O47: grower1 | P47: =model!I9:R18 -> 0 | Q47: 0 | R47: -0.02193579133 | S47: 0 | T47: 0 | U47: 0 | V47: 0 | W47: 0.008962096249 | X47: 0 | Y47: 0
B48: rate | C48: 0.05390175647 | G48: 2 | H48: 1.064614547 | I48: 0.02117756202 | J48: 0.04917718339 | K48: 1.06461455 | L48: 1 | M48: 1 | N48: 16 | O48: grower2 | P48: 0 | Q48: 0 | R48: 0 | S48: 0 | T48: 0 | U48: -0.01797430752 | V48: 0 | W48: 0 | X48: 0 | Y48: -0.03455238033
B49: genetic K | C49: 1.15819088 | G49: 3 | H49: 0.1074129961 | I49: 0.03330721903 | J49: 0.05390175647 | K49: 1.15819088 | L49: 1 | M49: 1 | N49: 20 | O49: grower3 | P49: 0 | Q49: 0 | R49: 0 | S49: 0 | T49: 0 | U49: -0.01521610276 | V49: 0 | W49: 0 | X49: 0 | Y49: -0.0004699408387
B50: grower 4 | C50: =H80 -> 0.9383112203 | G50: 4 | H50: 0.9383112203 | I50: 0.0377132798 | J50: 0.04327327733 | K50: 0.938311236 | L50: 1 | M50: 1 | N50: 22 | O50: grower4 | P50: 0 | Q50: 0 | R50: 0 | S50: 0 | T50: 0 | U50: -0.003658892895 | V50: 0.01443082365 | W50: 0 | X50: -0.009711646842 | Y50: 0.006535566251
B51: life span slope | C51: =collected_product_slope -> 0 | G51: 5 | H51: 1.079115219 | I51: 0.02130385073 | J51: 0.05332185074 | K51: 1.079115581 | L51: 1 | M51: 134 | N51: 18 | O51: grower5 | P51: 0 | Q51: 0 | R51: -0.03403931895 | S51: 0 | T51: 0 | U51: 0 | V51: 0.01264597014 | W51: 0 | X51: 0 | Y51: 0.00855470688
G52: 6 | H52: 1.023286467 | I52: 0.02529471335 | J52: 0.04020332672 | K52: 0.9838046891 | L52: 1 | M52: 13 | N52: 21 | O52: grower6 | P52: 0 | Q52: 0 | R52: 0 | S52: 0 | T52: 0 | U52: 0 | V52: -0.0374140003 | W52: 0 | X52: 0 | Y52: 0
G53: 7 | H53: 0.5424662232 | I53: 0.007863045367 | J53: 0.04652337804 | K53: 0.7124960129 | L53: 1 | M53: 137 | N53: 16 | O53: grower7 | P53: 0.027393158 | Q53: 0 | R53: 0 | S53: 0 | T53: 0 | U53: 0.05000625869 | V53: 0 | W53: 0 | X53: 0 | Y53: -0.009813172687
G54: 8 | H54: 1.383879624 | I54: 0.007967028057 | J54: 0.04417457431 | K54: 1.247379687 | L54: 1 | M54: 223 | N54: 13 | O54: grower8 | P54: 0 | Q54: 0 | R54: 0 | S54: 0 | T54: 0 | U54: -0.0009500548307 | V54: 0 | W54: 0 | X54: 0.0129956127 | Y54: -0.02786122826
G55: 9 | H55: 1.060974087 | I55: 0.008023663901 | J55: 0.05410635021 | K55: 0.9116689643 | L55: 1 | M55: 30 | N55: 15 | O55: grower9 | P55: -0.02657803423 | Q55: 0 | R55: 0 | S55: 0 | T55: 0 | U55: 0 | V55: 0 | W55: 0 | X55: 0 | Y55: 0
G56: 10 | H56: 0.006836247143 | I56: 0.03544754562 | J56: 0.04623635354 | K56: 0.914997789 | L56: 1 | M56: 141 | N56: 18 | O56: grower10 | P56: 0 | Q56: 0 | R56: 0 | S56: 0 | T56: 0 | U56: 0 | V56: 0 | W56: 0 | X56: 0 | Y56: 0
G60: Growth Levels and Level parameters
H62: grower 3 | J62: best performance | O62: timeseries growers step = 20
G63: max value | H63: =H79 -> 0.9197176206 | J63: =MAX(H77:H86) -> 1.383886444 | N63: time | O63: =growers_in_steps_of_20 -> grower1 | P63: grower2 | Q63: grower3 | R63: grower4 | S63: grower5 | T63: grower6 | U63: grower7 | V63: grower8 | W63: grower9 | X63: grower10
G64: name | H64: grower 3 | J64: =Plookup(J63,H77:H86,G77:G86) -> grower8 | N64: 1 | O64: 0.004270844383 | P64: 0.02117756202 | Q64: 0.03330721903 | R64: 0.0377132798 | S64: 0.02130385073 | T64: 0.02529471335 | U64: 0.007863045367 | V64: 0.007967028057 | W64: 0.008023663901 | X64: 0.03544754562
G65: initial level | H65: =model!C11 -> 0.03330721903 | J65: =Plookup(J63,H77:H86,model!C9:C18) -> 0.007967028057 | N65: 21 | O65: 0.01164234875 | P65: 0.05357073821 | Q65: 0.08887545434 | R65: 0.08352098439 | S65: 0.02130385073 | T65: 0.03388331571 | U65: 0.007863045367 | V65: 0.007967028057 | W65: 0.008023663901 | X65: 0.03544754562
G66: rate | H66: =model!D11 -> 0.05390175647 | J66: =Plookup(J63,H77:H86,model!D9:D18) -> 0.04417457431 | N66: 41 | O66: 0.03115414205 | P66: 0.1292793103 | Q66: 0.2176983743 | R66: 0.1742077333 | S66: 0.02130385073 | T66: 0.06666867894 | U66: 0.007863045367 | V66: 0.007967028057 | W66: 0.01403904778 | X66: 0.03544754562
G67: genetic K | H67: =model!E11 -> 1.15819088 | J67: =my_lookup(J63,H77:H86,model!E9:E18) -> 1.247379687 | N67: 61 | O67: 0.07909532634 | P67: 0.2817560292 | Q67: 0.4469863476 | R67: 0.3258256277 | S67: 0.02130385073 | T67: 0.1149603182 | U67: 0.007863045367 | V67: 0.007967028057 | W67: 0.03753407503 | X67: 0.03544754562
G68: delay | H68: =model!G11 -> 1 | J68: =my_lookup(J63,H77:H86,model!G9:G18) -> 223 | N68: 81 | O68: 0.1779611724 | P68: 0.5141506964 | Q68: 0.706382918 | R68: 0.5196330953 | S68: 0.02130385073 | T68: 0.1628997412 | U68: 0.007863045367 | V68: 0.007967028057 | W68: 0.09298186449 | X68: 0.03544754562
G69: Max | H69: =model!H18 -> 18 | J69: =my_lookup(J63,H77:H86,model!H9:H18) -> 13 | N69: 101 | O69: 0.3223302833 | P69: 0.7526744672 | Q69: 0.868846938 | R69: 0.6974056334 | S69: 0.02130385073 | T69: 0.1895330199 | U69: 0.007863045367 | V69: 0.007967028057 | W69: 0.2023222547 | X69: 0.03544754562
G70: connection sum | H70: =model!K20 -> -0.05597511028 | J70: =my_lookup(J63,H77:H86,connectionsum) -> 0.008962096249 | N70: 121 | O70: 0.4466780181 | P70: 0.9168923617 | Q70: 0.9176130402 | R70: 0.8172466935 | S70: 0.02130385073 | T70: 0.1939978082 | U70: 0.007863045367 | V70: 0.007967028057 | W70: 0.3645315257 | X70: 0.03544754562
G71: total support | H71: =model!Z33 -> -0.01031578474 | J71: =my_lookup(J63,H77:H86,totalsupport) -> 0.004214621405 | N71: 141 | O71: 0.5006680196 | P71: 1.001707193 | Q71: 0.9157084876 | R71: 0.8822513015 | S71: 0.03038215842 | T71: 0.1878371261 | U71: 0.009625539787 | V71: 0.007967028057 | W71: 0.5302323762 | X71: 0.03544754562
G72: number of products | H72: =model!T23 -> 0 | N72: 161 | O72: 0.5049119737 | P72: 1.039143397 | Q72: 0.8959257915 | R72: 0.9134124896 | S72: 0.08164585662 | T72: 0.1805706294 | U72: 0.02659753633 | V72: 0.007967028057 | W72: 0.6471306529 | X72: 0.04711261059
N73: 181 | O73: 0.4967028435 | P73: 1.054519903 | Q73: 0.8546740211 | R73: 0.9274648607 | S73: 0.2025987748 | T73: 0.1789632852 | U73: 0.07289524087 | V73: 0.007967028057 | W73: 0.7099792388 | X73: 0.06143035555
N74: 201 | O74: 0.499698013 | P74: 1.060648363 | Q74: 0.771196089 | R74: 0.933626888 | S74: 0.4258450903 | T74: 0.1929317028 | U74: 0.1886471607 | V74: 0.007967028057 | W74: 0.7389214681 | X74: 0.07951085292
N75: 221 | O75: 0.5313162587 | P75: 1.063061569 | Q75: 0.642348941 | R75: 0.9362957362 | S75: 0.6983658655 | T75: 0.2463205816 | U75: 0.4108052473 | V75: 0.007967028057 | W75: 0.7512866426 | X75: 0.1018344102
H76: max level | I76: endlevel | J76: sum of levels | N76: 241 | O76: 0.5975182174 | P76: 1.064007291 | Q76: 0.5026461264 | R76: 0.9374454473 | S76: 0.9035754595 | T76: 0.3862961942 | U76: 0.651824348 | V76: 0.01876493951 | W76: 0.7569911284 | X76: 0.1264174156
G77: grower1 | H77: =TRANSPOSE(maxlevel10) -> 0.6986846936 | I77: =TRANSPOSE(endlevel10) -> 0.539138122 | J77: =TRANSPOSE(totalsumlist) -> 234.6656433 | N77: 261 | O77: 0.6668693283 | P77: 1.06437722 | Q77: 0.3863429761 | R77: 0.9379395827 | S77: 1.009127804 | T77: 0.6383862042 | U77: 0.7458602455 | V77: 0.0485177672 | W77: 0.7618809518 | X77: 0.1504204878
G78: grower2 | H78: 1.064614547 | I78: 1.064614547 | J78: 443.4321921 | N78: 281 | O78: 0.6977712371 | P78: 1.064521815 | Q78: 0.3028062736 | R78: 0.9381517459 | S78: 1.053019321 | T78: 0.8930602046 | U78: 0.7002929815 | V78: 0.1221797491 | W78: 0.7704191305 | X78: 0.1719637352
G79: grower3 | H79: 0.9197176206 | I79: 0.1074129961 | J79: 194.6162297 | N79: 301 | O79: 0.6905250351 | P79: 1.064578318 | Q79: 0.123618054 | R79: 0.9382428017 | S79: 1.069639909 | T79: 1.022444989 | U79: 0.6248363807 | V79: 0.2839470708 | W79: 0.789291675 | X79: 0.1849785417
G80: grower4 | H80: 0.9383112203 | I80: 0.9383112203 | J80: 396.5705601 | N80: 321 | O80: 0.6664128363 | P80: 1.064600394 | Q80: 0.1161804733 | R80: 0.9382818737 | S80: 1.07570868 | T80: 1.067868083 | U80: 0.5707345095 | V80: 0.5620964338 | W80: 0.8272566628 | X80: 0.1785160147
G81: grower5 | H81: 1.079115219 | I81: 1.079115219 | J81: 315.5607365 | N81: 341 | O81: 0.6374742237 | P81: 1.06460902 | Q81: 0.1108542472 | R81: 0.9382986382 | S81: 1.077895029 | T81: 1.057876934 | U81: 0.5440940893 | V81: 0.8895786981 | W81: 0.8862854378 | X81: 0.1488205636
G82: grower6 | H82: 1.068230823 | I82: 1.023286467 | J82: 288.9554048 | N82: 361 | O82: 0.6089477755 | P82: 1.06461239 | Q82: 0.1074576397 | R82: 0.938305831 | S82: 1.078678869 | T82: 1.03994596 | U82: 0.5361442323 | V82: 1.142803329 | W82: 0.9513773056 | X82: 0.1091139105
G83: grower7 | H83: 0.7460262832 | I83: 0.5424662232 | J83: 172.1411239 | N83: 381 | O83: 0.5844026982 | P83: 1.064613706 | Q83: 0.1056168279 | R83: 0.938308917 | S83: 1.078959398 | T83: 1.028372882 | U83: 0.5364872219 | V83: 1.283000318 | W83: 1.002665974 | X83: 0.07439257767
G84: grower8 | H84: 1.383886444 | I84: 1.383879624 | J84: 237.9069972 | N84: 401 | O84: 0.566081847 | P84: 1.06461422 | Q84: 0.1049053499 | R84: 0.9383102411 | S84: 1.079059734 | T84: 1.023551377 | U84: 0.5388978565 | V84: 1.346058781 | W84: 1.03375559 | X84: 0.04939518558
G85: grower9 | H85: 1.060974087 | I85: 1.060974087 | J85: 331.1586677 | N85: 421 | O85: 0.5539713077 | P85: 1.064614421 | Q85: 0.1049243093 | R85: 0.9383108091 | S85: 1.079095613 | T85: 1.022498043 | U85: 0.5408500688 | V85: 1.371121211 | W85: 1.0495144 | X85: 0.03268062505
G86: grower10 | H86: 0.1856189289 | I86: 0.006836247143 | J86: 36.66419114 | N86: 441 | O86: 0.5466486977 | P86: 1.0646145 | Q86: 0.1053631652 | R86: 0.9383110529 | S86: 1.079108441 | T86: 1.022763317 | U86: 0.5418880729 | V86: 1.380175167 | W86: 1.05660313 | X86: 0.02171631626
N87: 461 | O87: 0.5424886685 | P87: 1.064614531 | Q87: 0.1060123311 | R87: 0.9383111574 | S87: 1.079113028 | T87: 1.023148683 | U87: 0.5422968807 | V87: 1.383080278 | W87: 1.05951943 | X87: 0.01451394601
H91: Example of my_value formula, applies to total_model_output
H92: time | I92: value
H93: 220 | I93: =my_value(total_model_output,H93,3) -> 0.6494228431 | J93: I93=my_value(total_model_output,H93,3)
H94: 221 | I94: 0.642348941
H95: 222 | I95: 0.6352491314
H96: 223 | I96: 0.6281294171
H97: 224 | I97: 0.6209957277
H98: 225 | I98: 0.6138538978
H99: 226 | I99: 0.6067096492
H100: 227 | I100: 0.5995685733
H101: 228 | I101: 0.5924361158
H102: 229 | I102: 0.585317563
H103: 230 | I103: 0.5782180292
H104: 231 | I104: 0.5711424465
H105: 232 | I105: 0.5640955564
H106: 233 | I106: 0.5570819022

Sheet model
A1: model | B1: initial | C1: =parameters!C5 -> 0 | D1: =parameters!D5 -> 0.05 | F1: =parameters!C13 -> 0.25 | H1: RW_multiplier | I1: =parameters!C51 -> 0 | K1: MyMax | L1: 20 | M1: myRandom | N1: =parameters!C51 -> 0 | O1: multiplier | Q1: matthew | R1: NO | S1: NO
B2: rate | C2: =parameters!C6 -> 0.05 | D2: =parameters!D6 -> 0.01 | H2: cc_reduction | I2: =parameters!C49 -> NO | K2: effect type | L2: 1 | Q2: matthewparameter | R2: 0.0001
B3: connection | C3: =parameters!C7 -> 0 | D3: =parameters!D7 -> 0.02
B4: carcapNorm | C4: =parameters!C8 -> 1 | D4: =parameters!D8 -> 0.15 | CH4: PLUS FACTOR | CI4: 0.01
B5: carcapEm | C5: =parameters!C9 -> 0.5 | D5: =parameters!D9 -> 0.25 | CH5: MIN FACTOR | CI5: -0.01
B6: delay | C6: =parameters!C10 -> 1 | D6: =parameters!D10 -> 350 | BO6: 30
B7: Max | C7: =parameters!C11 -> 10 | D7: =parameters!D11 -> 25 | U7: =COUNTIF(I10:R19,"<>0") -> 29
A8: grower | B8: endlevel | C8: initial | D8: rate | E8: genetic K | F8: effect_type | G8: delay | H8: MyMax | I8: grower1 | J8: grower2 | K8: grower3 | L8: grower4 | M8: grower5 | N8: grower6 | O8: grower7 | P8: grower8 | Q8: grower9 | R8: grower10 | S8: grower5 | T8: grower6 | U8: grower7 | V8: grower8 | W8: grower9 | X8: grower10
A9: 1 | B9: =TRANSPOSE(endlevel10) -> 0.539138122 | C9: =_xll.dRandReal($C$1,$D$1) -> 0.004270844383 | D9: =_xll.dNormalDev($C$2,$D$2) -> 0.05197021459 | E9: =_xll.dNormalDev($C$4,$D$4) -> 0.7237013174 | F9: =IF(RAND()<$L$2,1,0) -> 1 | G9: 1 | H9: =_xll.dRandInt($C$7,$D$7) -> 10 | I9: 0 | J9: =IF(RAND()<$F$1,_xll.dNormalDev($C$3,$D$3),0) -> 0 | K9: =IF(RAND()<$F$1,_xll.dNormalDev($C$3,$D$3),0) -> -0.02193579133 | L9: =IF(RAND()<$F$1,_xll.dNormalDev($C$3,$D$3),0) -> 0 | M9: =IF(RAND()<$F$1,_xll.dNormalDev($C$3,$D$3),0) -> 0 | N9: =IF(RAND()<$F$1,_xll.dNormalDev($C$3,$D$3),0) -> 0 | O9: =IF(RAND()<$F$1,_xll.dNormalDev($C$3,$D$3),0) -> 0 | P9: =IF(RAND()<$F$1,_xll.dNormalDev($C$3,$D$3),0) -> 0.008962096249 | Q9: =IF(RAND()<$F$1,_xll.dNormalDev($C$3,$D$3),0) -> 0 | R9: =IF(RAND()<$F$1,_xll.dNormalDev($C$3,$D$3),0) -> 0 | S9: 0 | T9: 0 | U9: 0 | V9: 0 | W9: -0.003233883653 | X9: -0.02385528148 | Y9: grower5 | Z9: grower6 | AA9: grower7 | AB9: grower8 | AC9: grower9 | AD9: grower10 | BI9: grower | BK9: initial | BL9: rate | BM9: genetic K | BN9: effect_type | BO9: delay | BP9: MyMax | BQ9: grower1 | BR9: grower2 | BS9: grower3 | BT9: grower4 | BU9: grower5 | BV9: grower6 | BW9: grower7 | BX9: grower8 | BY9: grower9 | BZ9: grower10 | CC9: initial40 | CD9: rate40 | CE9: carcap40 | CF9: effect_type | CG9: delay | CH9: MyMax | CI9: grower1 | CJ9: grower2 | CK9: grower3 | CL9: grower4 | CM9: grower5 | CN9: grower6 | CO9: grower7 | CP9: grower8 | CQ9: grower9 | CR9: grower10 | CU9: initial | CV9: rate | CW9: genetic K | CX9: effect_type | CY9: delay | CZ9: MyMax | DA9: grower1 | DB9: grower2 | DC9: grower3 | DD9: grower4 | DE9: grower5 | DF9: grower6 | DG9: grower7 | DH9: grower8 | DI9: grower9 | DJ9: grower10
A10: 2 | B10: 1.064614547 | C10: =_xll.dRandReal($C$1,$D$1) -> 0.02117756202 | D10: =_xll.dNormalDev($C$2,$D$2) -> 0.04917718339 | E10: =_xll.dNormalDev($C$4,$D$4) -> 1.06461455 | F10: 1 | G10: 1 | H10: =_xll.dRandInt($C$7,$D$7) -> 16 | I10: =IF(RAND()<$F$1,_xll.dNormalDev($C$3,$D$3),0) -> 0 | J10: 0 | K10: =IF(RAND()<$F$1,_xll.dNormalDev($C$3,$D$3),0) -> 0 | L10: =IF(RAND()<$F$1,_xll.dNormalDev($C$3,$D$3),0) -> 0 | M10: =IF(RAND()<$F$1,_xll.dNormalDev($C$3,$D$3),0) -> 0 | N10: =IF(RAND()<$F$1,_xll.dNormalDev($C$3,$D$3),0) -> -0.01797430752 | O10: =IF(RAND()<$F$1,_xll.dNormalDev($C$3,$D$3),0) -> 0 | P10: =IF(RAND()<$F$1,_xll.dNormalDev($C$3,$D$3),0) -> 0 | Q10: =IF(RAND()<$F$1,_xll.dNormalDev($C$3,$D$3),0) -> 0 | R10: =IF(RAND()<$F$1,_xll.dNormalDev($C$3,$D$3),0) -> -0.03455238033 | S10: 0 | T10: 0 | U10: 0.009265752701 | V10: 0 | W10: 0 | X10: -0.006655736524 | Y10: =IF(M$21=MAX(maxlevel10),M10,"") ->  | Z10: =IF(N$21=MAX(maxlevel10),N10,"") ->  | AA10: =IF(O$21=MAX(maxlevel10),O10,"") ->  | AB10: =IF(P$21=MAX(maxlevel10),P10,"") -> 0 | AC10: =IF(Q$21=MAX(maxlevel10),Q10,"") ->  | AD10: =IF(R$21=MAX(maxlevel10),R10,"") ->  | AE10: =TRANSPOSE(totalsumlist) -> 234.6656433 | AF10: =SUM(U10:AD10) -> 0.002610016177 | AG10: =AE10*AF10 -> 0.6124811251 | BI10: 1 | BK10: =_xll.dRandReal($C$1,$D$1) -> 0.006543879653 | BL10: =_xll.dNormalDev($C$2,$D$2) -> 0.05749879519 | BM10: =_xll.dNormalDev($C$4,$D$4) -> 1.459601832 | BN10: =IF(RAND()<$L$2,1,0) -> 1 | BO10: 1 | BP10: =_xll.dRandInt($C$7,$D$7) -> 18 | BQ10: 0 | BR10: =IF(RAND()<$F$1,_xll.dNormalDev($C$3,$D$3),0) -> 0 | BS10: =IF(RAND()<$F$1,_xll.dNormalDev($C$3,$D$3),0) -> 0.01756737889 | BT10: =IF(RAND()<$F$1,_xll.dNormalDev($C$3,$D$3),0) -> 0 | BU10: =IF(RAND()<$F$1,_xll.dNormalDev($C$3,$D$3),0) -> 0.008188911564 | BV10: =IF(RAND()<$F$1,_xll.dNormalDev($C$3,$D$3),0) -> -0.01909058224 | BW10: =IF(RAND()<$F$1,_xll.dNormalDev($C$3,$D$3),0) -> 0 | BX10: =IF(RAND()<$F$1,_xll.dNormalDev($C$3,$D$3),0) -> 0 | BY10: =IF(RAND()<$F$1,_xll.dNormalDev($C$3,$D$3),0) -> 0 | BZ10: =IF(RAND()<$F$1,_xll.dNormalDev($C$3,$D$3),0) -> -0.02332267391 | CC10: =_xll.dRandReal($C$1,$D$1) -> 0.0403072521 | CD10: =_xll.dNormalDev($C$2,$D$2) -> 0.03205573133 | CE10: =_xll.dNormalDev($C$4,$D$4) -> 1.083197951 | CF10: =IF(RAND()<$L$2,1,0) -> 1 | CG10: 1 | CH10: =_xll.dRandInt($C$7,$D$7) -> 22 | CI10: =IF(RAND()<$F$1,_xll.dNormalDev($C$3+PLUS_FACTOR,$D$3),0) -> 0 | CJ10: =IF(RAND()<$F$1,_xll.dNormalDev($C$3+PLUS_FACTOR,$D$3),0) -> -0.02224413832 | CK10: =IF(RAND()<$F$1,_xll.dNormalDev($C$3+PLUS_FACTOR,$D$3),0) -> 0 | CL10: =IF(RAND()<$F$1,_xll.dNormalDev($C$3+PLUS_FACTOR,$D$3),0) -> 0 | CM10: =IF(RAND()<$F$1,_xll.dNormalDev($C$3+PLUS_FACTOR,$D$3),0) -> 0 | CN10: =IF(RAND()<$F$1,_xll.dNormalDev($C$3+MIN_FACTOR,$D$3),0) -> 0 | CO10: =IF(RAND()<$F$1,_xll.dNormalDev($C$3+MIN_FACTOR,$D$3),0) -> 0 | CP10: =IF(RAND()<$F$1,_xll.dNormalDev($C$3+MIN_FACTOR,$D$3),0) -> 0 | CQ10: =IF(RAND()<$F$1,_xll.dNormalDev($C$3+MIN_FACTOR,$D$3),0) -> 0 | CR10: =IF(RAND()<$F$1,_xll.dNormalDev($C$3+MIN_FACTOR,$D$3),0) -> 0 | CU10: =_xll.dRandReal($C$1,$D$1) -> 0.001620203 | CV10: =_xll.dNormalDev($C$2,$D$2) -> 0.04289068257 | CW10: =_xll.dNormalDev($C$4,$D$4) -> 0.8824598013 | CX10: =IF(RAND()<$L$2,1,0) -> 1 | CY10: 1 | CZ10: =_xll.dRandInt($C$7,$D$7) -> 10 | DA10: 0 | DB10: =IF(RAND()<$F$1,_xll.dNormalDev($C$3,$D$3),0) -> 0 | DC10: =IF(RAND()<$F$1,_xll.dNormalDev($C$3,$D$3),0) -> 0 | DD10: =IF(RAND()<$F$1,_xll.dNormalDev($C$3,$D$3),0) -> 0.01052753235 | DE10: =IF(RAND()<$F$1,_xll.dNormalDev($C$3,$D$3),0) -> 0 | DF10: =IF(RAND()<$F$1,_xll.dNormalDev($C$3,$D$3),0) -> 0 | DG10: =IF(RAND()<$F$1,_xll.dNormalDev($C$3,$D$3),0) -> 0 | DH10: =IF(RAND()<$F$1,_xll.dNormalDev($C$3,$D$3),0) -> 0 | DI10: =IF(RAND()<$F$1,_xll.dNormalDev($C$3,$D$3),0) -> 0 | DJ10: =IF(RAND()<$F$1,_xll.dNormalDev($C$3,$D$3),0) -> 0
A11: 3 | B11: 0.1074129961 | C11: =_xll.dRandReal($C$1,$D$1) -> 0.03330721903 | D11: =_xll.dNormalDev($C$2,$D$2) -> 0.05390175647 | E11: =_xll.dNormalDev($C$4,$D$4) -> 1.15819088 | F11: 1 | G11: 1 | H11: =_xll.dRandInt($C$7,$D$7) -> 20 | I11: =IF(RAND()<$F$1,_xll.dNormalDev($C$3,$D$3),0) -> 0 | J11: =IF(RAND()<$F$1,_xll.dNormalDev($C$3,$D$3),0) -> 0 | K11: 0 | L11: =IF(K12<>0,(correlation_F_and_T*K12+SQRT(1-correlation_F_and_T^2)*_xll.dNormalDev($C$3,$D$3)),0) -> 0 | M11: =IF(RAND()<$F$1,_xll.dNormalDev($C$3,$D$3),0) -> 0 | N11: =IF(RAND()<$F$1,_xll.dNormalDev($C$3,$D$3),0) -> -0.01521610276 | O11: =IF(RAND()<$F$1,_xll.dNormalDev($C$3,$D$3),0) -> 0 | P11: =IF(RAND()<$F$1,_xll.dNormalDev($C$3,$D$3),0) -> 0 | Q11: =IF(RAND()<$F$1,_xll.dNormalDev($C$3,$D$3),0) -> 0 | R11: =IF(RAND()<$F$1,_xll.dNormalDev($C$3,$D$3),0) -> -0.0004699408387 | S11: -0.007516184054 | T11: -0.03828784061 | U11: 0 | V11: 0 | W11: 0 | X11: 0 | AB11: 0 | AE11: 443.4321921 | AF11: 0 | AG11: 0 | BI11: 2 | BK11: =_xll.dRandReal($C$1,$D$1) -> 0.0394720186 | BL11: =_xll.dNormalDev($C$2,$D$2) -> 0.04256107087 | BM11: =_xll.dNormalDev($C$4,$D$4) -> 1.031969511 | BN11: 1 | BO11: 1 | BP11: =_xll.dRandInt($C$7,$D$7) -> 11 | BQ11: =IF(RAND()<$F$1,_xll.dNormalDev($C$3,$D$3),0) -> 0 | BR11: 0 | BS11: =IF(RAND()<$F$1,_xll.dNormalDev($C$3,$D$3),0) -> 0 | BT11: =IF(RAND()<$F$1,_xll.dNormalDev($C$3,$D$3),0) -> 0 | BU11: =IF(RAND()<$F$1,_xll.dNormalDev($C$3,$D$3),0) -> -0.02988133767 | BV11: =IF(RAND()<$F$1,_xll.dNormalDev($C$3,$D$3),0) -> 0 | BW11: =IF(RAND()<$F$1,_xll.dNormalDev($C$3,$D$3),0) -> 0 | BX11: =IF(RAND()<$F$1,_xll.dNormalDev($C$3,$D$3),0) -> 0 | BY11: =IF(RAND()<$F$1,_xll.dNormalDev($C$3,$D$3),0) -> 0 | BZ11: =IF(RAND()<$F$1,_xll.dNormalDev($C$3,$D$3),0) -> 0 | CC11: =_xll.dRandReal($C$1,$D$1) -> 0.04262288145 | CD11: =_xll.dNormalDev($C$2,$D$2) -> 0.05018530221 | CE11: =_xll.dNormalDev($C$4,$D$4) -> 0.9308410606 | CF11: 1 | CG11: 1 | CH11: =_xll.dRandInt($C$7,$D$7) -> 11 | CI11: =IF(RAND()<$F$1,_xll.dNormalDev($C$3+PLUS_FACTOR,$D$3),0) -> 0 | CJ11: =IF(RAND()<$F$1,_xll.dNormalDev($C$3+PLUS_FACTOR,$D$3),0) -> 0 | CK11: =IF(RAND()<$F$1,_xll.dNormalDev($C$3+PLUS_FACTOR,$D$3),0) -> 0 | CL11: =IF(RAND()<$F$1,_xll.dNormalDev($C$3+PLUS_FACTOR,$D$3),0) -> 0 | CM11: =IF(RAND()<$F$1,_xll.dNormalDev($C$3+PLUS_FACTOR,$D$3),0) -> 0 | CN11: =IF(RAND()<$F$1,_xll.dNormalDev($C$3+MIN_FACTOR,$D$3),0) -> 0 | CO11: =IF(RAND()<$F$1,_xll.dNormalDev($C$3+MIN_FACTOR,$D$3),0) -> 0 | CP11: =IF(RAND()<$F$1,_xll.dNormalDev($C$3+MIN_FACTOR,$D$3),0) -> 0 | CQ11: =IF(RAND()<$F$1,_xll.dNormalDev($C$3+MIN_FACTOR,$D$3),0) -> 0 | CR11: =IF(RAND()<$F$1,_xll.dNormalDev($C$3+MIN_FACTOR,$D$3),0) -> 0 | CU11: =_xll.dRandReal($C$1,$D$1) -> 0.0423487491 | CV11: =_xll.dNormalDev($C$2,$D$2) -> 0.03406121004 | CW11: =_xll.dNormalDev($C$4,$D$4) -> 1.127138423 | CX11: 1 | CY11: 1 | CZ11: =_xll.dRandInt($C$7,$D$7) -> 24 | DA11: =IF(RAND()<$F$1,_xll.dNormalDev($C$3,$D$3),0) -> 0 | DB11: 0 | DC11: =IF(RAND()<$F$1,_xll.dNormalDev($C$3,$D$3),0) -> 0 | DD11: =IF(RAND()<$F$1,_xll.dNormalDev($C$3,$D$3),0) -> 0 | DE11: =IF(RAND()<$F$1,_xll.dNormalDev($C$3,$D$3),0) -> 0 | DF11: =IF(RAND()<$F$1,_xll.dNormalDev($C$3,$D$3),0) -> 0 | DG11: =IF(RAND()<$F$1,_xll.dNormalDev($C$3,$D$3),0) -> 0 | DH11: =IF(RAND()<$F$1,_xll.dNormalDev($C$3,$D$3),0) -> 0 | DI11: =IF(RAND()<$F$1,_xll.dNormalDev($C$3,$D$3),0) -> 0 | DJ11: =IF(RAND()<$F$1,_xll.dNormalDev($C$3,$D$3),0) -> 0
A12: 4 | B12: 0.9383112203 | C12: =_xll.dRandReal($C$1,$D$1) -> 0.0377132798 | D12: =_xll.dNormalDev($C$2,$D$2) -> 0.04327327733 | E12: =_xll.dNormalDev($C$4,$D$4) -> 0.938311236 | F12: 1 | G12: 1 | H12: =_xll.dRandInt($C$7,$D$7) -> 22 | I12: =IF(RAND()<$F$1,_xll.dNormalDev($C$3,$D$3),0) -> 0 | J12: =IF(RAND()<$F$1,_xll.dNormalDev($C$3,$D$3),0) -> 0 | K12: =IF(RAND()<$F$1,_xll.dNormalDev($C$3,$D$3),0) -> 0 | L12: 0 | M12: =IF(RAND()<$F$1,_xll.dNormalDev($C$3,$D$3),0) -> 0 | N12: =IF(RAND()<$F$1,_xll.dNormalDev($C$3,$D$3),0) -> -0.003658892895 | O12: =IF(RAND()<$F$1,_xll.dNormalDev($C$3,$D$3),0) -> 0.01443082365 | P12: =IF(RAND()<$F$1,_xll.dNormalDev($C$3,$D$3),0) -> 0 | Q12: =IF(RAND()<$F$1,_xll.dNormalDev($C$3,$D$3),0) -> -0.009711646842 | R12: =IF(RAND()<$F$1,_xll.dNormalDev($C$3,$D$3),0) -> 0.006535566251 | S12: -0.02429855243 | T12: 0 | U12: 0 | V12: 0 | W12: -0.01514843054 | X12: 0 | AB12: 0 | AE12: 194.6162297 | AF12: -0.01514843054 | AG12: -2.948130438 | BI12: 3 | BK12: =_xll.dRandReal($C$1,$D$1) -> 0.02739774181 | BL12: =_xll.dNormalDev($C$2,$D$2) -> 0.05524413803 | BM12: =_xll.dNormalDev($C$4,$D$4) -> 1.022828333 | BN12: 1 | BO12: 1 | BP12: =_xll.dRandInt($C$7,$D$7) -> 25 | BQ12: =IF(RAND()<$F$1,_xll.dNormalDev($C$3,$D$3),0) -> 0 | BR12: =IF(RAND()<$F$1,_xll.dNormalDev($C$3,$D$3),0) -> 0 | BS12: 0 | BT12: =IF(RAND()<$F$1,_xll.dNormalDev($C$3,$D$3),0) -> 0 | BU12: =IF(RAND()<$F$1,_xll.dNormalDev($C$3,$D$3),0) -> 0 | BV12: =IF(RAND()<$F$1,_xll.dNormalDev($C$3,$D$3),0) -> 0 | BW12: =IF(RAND()<$F$1,_xll.dNormalDev($C$3,$D$3),0) -> 0 | BX12: =IF(RAND()<$F$1,_xll.dNormalDev($C$3,$D$3),0) -> 0 | BY12: =IF(RAND()<$F$1,_xll.dNormalDev($C$3,$D$3),0) -> -0.02895803368 | BZ12: =IF(RAND()<$F$1,_xll.dNormalDev($C$3,$D$3),0) -> 0 | CC12: =_xll.dRandReal($C$1,$D$1) -> 0.02325396324 | CD12: =_xll.dNormalDev($C$2,$D$2) -> 0.04337651992 | CE12: =_xll.dNormalDev($C$4,$D$4) -> 1.184291908 | CF12: 1 | CG12: =_xll.dRandInt($C$6,CA12*$BO$6) -> 1 | CH12: =_xll.dRandInt($C$7,$D$7) -> 17 | CI12: =IF(RAND()<$F$1,_xll.dNormalDev($C$3+PLUS_FACTOR,$D$3),0) -> 0 | CJ12: =IF(RAND()<$F$1,_xll.dNormalDev($C$3+PLUS_FACTOR,$D$3),0) -> 0 | CK12: =IF(RAND()<$F$1,_xll.dNormalDev($C$3+PLUS_FACTOR,$D$3),0) -> 0 | CL12: =IF(RAND()<$F$1,_xll.dNormalDev($C$3+PLUS_FACTOR,$D$3),0) -> 0 | CM12: =IF(RAND()<$F$1,_xll.dNormalDev($C$3+PLUS_FACTOR,$D$3),0) -> 0 | CN12: =IF(RAND()<$F$1,_xll.dNormalDev($C$3+MIN_FACTOR,$D$3),0) -> 0 | CO12: =IF(RAND()<$F$1,_xll.dNormalDev($C$3+MIN_FACTOR,$D$3),0) -> 0 | CP12: =IF(RAND()<$F$1,_xll.dNormalDev($C$3+MIN_FACTOR,$D$3),0) -> 0 | CQ12: =IF(RAND()<$F$1,_xll.dNormalDev($C$3+MIN_FACTOR,$D$3),0) -> 0 | CR12: =IF(RAND()<$F$1,_xll.dNormalDev($C$3+MIN_FACTOR,$D$3),0) -> 0 | CU12: =_xll.dRandReal($C$1,$D$1) -> 0.02532883205 | CV12: =_xll.dNormalDev($C$2,$D$2) -> 0.05775121044 | CW12: =_xll.dNormalDev($C$4,$D$4) -> 0.863698675 | CX12: 1 | CY12: 1 | CZ12: =_xll.dRandInt($C$7,$D$7) -> 22 | DA12: =IF(RAND()<$F$1,_xll.dNormalDev($C$3,$D$3),0) -> 0 | DB12: =IF(RAND()<$F$1,_xll.dNormalDev($C$3,$D$3),0) -> 0 | DC12: 0 | DD12: =IF(DC13<>0,(correlation_F_and_T*DC13+SQRT(1-correlation_F_and_T^2)*_xll.dNormalDev($C$3,$D$3)),0) -> 0 | DE12: =IF(RAND()<$F$1,_xll.dNormalDev($C$3,$D$3),0) -> 0 | DF12: =IF(RAND()<$F$1,_xll.dNormalDev($C$3,$D$3),0) -> 0 | DG12: =IF(RAND()<$F$1,_xll.dNormalDev($C$3,$D$3),0) -> 0 | DH12: =IF(RAND()<$F$1,_xll.dNormalDev($C$3,$D$3),0) -> 0.02302628519 | DI12: =IF(RAND()<$F$1,_xll.dNormalDev($C$3,$D$3),0) -> 0 | DJ12: =IF(RAND()<$F$1,_xll.dNormalDev($C$3,$D$3),0) -> 0
A13: 5 | B13: 1.079115219 | C13: =_xll.dRandReal($C$1,$D$1) -> 0.02130385073 | D13: =_xll.dNormalDev($C$2,$D$2) -> 0.05332185074 | E13: =_xll.dNormalDev($C$4,$D$4) -> 1.079115581 | F13: 1 | G13: =_xll.dRandInt($C$6,A13*$BO$6) -> 134 | H13: =_xll.dRandInt($C$7,$D$7) -> 18 | I13: =IF(RAND()<$F$1,_xll.dNormalDev($C$3,$D$3),0) -> 0 | J13: =IF(RAND()<$F$1,_xll.dNormalDev($C$3,$D$3),0) -> 0 | K13: =IF(RAND()<$F$1,_xll.dNormalDev($C$3,$D$3),0) -> -0.03403931895 | L13: =IF(RAND()<$F$1,_xll.dNormalDev($C$3,$D$3),0) -> 0 | M13: 0 | N13: =IF(RAND()<$F$1,_xll.dNormalDev($C$3,$D$3),0) -> 0 | O13: =IF(RAND()<$F$1,_xll.dNormalDev($C$3,$D$3),0) -> 0.01264597014 | P13: =IF(RAND()<$F$1,_xll.dNormalDev($C$3,$D$3),0) -> 0 | Q13: =IF(RAND()<$F$1,_xll.dNormalDev($C$3,$D$3),0) -> 0 | R13: =IF(RAND()<$F$1,_xll.dNormalDev($C$3,$D$3),0) -> 0.00855470688 | S13: 0 | T13: 0 | U13: 0 | V13: 0 | W13: -0.02092272245 | X13: 0 | AB13: 0 | AE13: 396.5705601 | AF13: -0.02092272245 | AG13: -8.297335761 | BI13: 4 | BK13: =_xll.dRandReal($C$1,$D$1) -> 0.005920472066 | BL13: =_xll.dNormalDev($C$2,$D$2) -> 0.0448272297 | BM13: =_xll.dNormalDev($C$4,$D$4) -> 0.8585804582 | BN13: 1 | BO13: 1 | BP13: =_xll.dRandInt($C$7,$D$7) -> 10 | BQ13: =IF(RAND()<$F$1,_xll.dNormalDev($C$3,$D$3),0) -> 0 | BR13: =IF(RAND()<$F$1,_xll.dNormalDev($C$3,$D$3),0) -> 0 | BS13: =IF(RAND()<$F$1,_xll.dNormalDev($C$3,$D$3),0) -> 0 | BT13: 0 | BU13: =IF(RAND()<$F$1,_xll.dNormalDev($C$3,$D$3),0) -> -0.01002476635 | BV13: =IF(RAND()<$F$1,_xll.dNormalDev($C$3,$D$3),0) -> 0 | BW13: =IF(RAND()<$F$1,_xll.dNormalDev($C$3,$D$3),0) -> -0.006607380814 | BX13: =IF(RAND()<$F$1,_xll.dNormalDev($C$3,$D$3),0) -> 0 | BY13: =IF(RAND()<$F$1,_xll.dNormalDev($C$3,$D$3),0) -> 0 | BZ13: =IF(RAND()<$F$1,_xll.dNormalDev($C$3,$D$3),0) -> 0.0129933227 | CC13: =_xll.dRandReal($C$1,$D$1) -> 0.03099864409 | CD13: =_xll.dNormalDev($C$2,$D$2) -> 0.03236089761 | CE13: =_xll.dNormalDev($C$4,$D$4) -> 0.8800281817 | CF13: 1 | CG13: =_xll.dRandInt($C$6,CA13*$BO$6) -> 1 | CH13: =_xll.dRandInt($C$7,$D$7) -> 24 | CI13: =IF(RAND()<$F$1,_xll.dNormalDev($C$3+PLUS_FACTOR,$D$3),0) -> 0 | CJ13: =IF(RAND()<$F$1,_xll.dNormalDev($C$3+PLUS_FACTOR,$D$3),0) -> -0.0005511063281 | CK13: =IF(RAND()<$F$1,_xll.dNormalDev($C$3+PLUS_FACTOR,$D$3),0) -> 0 | CL13: =IF(RAND()<$F$1,_xll.dNormalDev($C$3+PLUS_FACTOR,$D$3),0) -> 0 | CM13: =IF(RAND()<$F$1,_xll.dNormalDev($C$3+PLUS_FACTOR,$D$3),0) -> 0 | CN13: =IF(RAND()<$F$1,_xll.dNormalDev($C$3+MIN_FACTOR,$D$3),0) -> 0 | CO13: =IF(RAND()<$F$1,_xll.dNormalDev($C$3+MIN_FACTOR,$D$3),0) -> 0 | CP13: =IF(RAND()<$F$1,_xll.dNormalDev($C$3+MIN_FACTOR,$D$3),0) -> 0 | CQ13: =IF(RAND()<$F$1,_xll.dNormalDev($C$3+MIN_FACTOR,$D$3),0) -> -0.02834937767 | CR13: =IF(RAND()<$F$1,_xll.dNormalDev($C$3+MIN_FACTOR,$D$3),0) -> -0.02578877621 | CU13: =_xll.dRandReal($C$1,$D$1) -> 0.004680171597 | CV13: =_xll.dNormalDev($C$2,$D$2) -> 0.05162997565 | CW13: =_xll.dNormalDev($C$4,$D$4) -> 0.9886495288 | CX13: 1 | CY13: 1 | CZ13: =_xll.dRandInt($C$7,$D$7) -> 20 | DA13: =IF(RAND()<$F$1,_xll.dNormalDev($C$3,$D$3),0) -> 0 | DB13: =IF(RAND()<$F$1,_xll.dNormalDev($C$3,$D$3),0) -> 0 | DC13: =IF(RAND()<$F$1,_xll.dNormalDev($C$3,$D$3),0) -> 0 | DD13: 0 | DE13: =IF(RAND()<$F$1,_xll.dNormalDev($C$3,$D$3),0) -> 0 | DF13: =IF(RAND()<$F$1,_xll.dNormalDev($C$3,$D$3),0) -> 0 | DG13: =IF(RAND()<$F$1,_xll.dNormalDev($C$3,$D$3),0) -> 0 | DH13: =IF(RAND()<$F$1,_xll.dNormalDev($C$3,$D$3),0) -> -0.006790824183 | DI13: =IF(RAND()<$F$1,_xll.dNormalDev($C$3,$D$3),0) -> 0 | DJ13: =IF(RAND()<$F$1,_xll.dNormalDev($C$3,$D$3),0) -> 0.01236209467
A14: 6 | B14: 1.023286467 | C14: =_xll.dRandReal($C$1,$D$1) -> 0.02529471335 | D14: =_xll.dNormalDev($C$2,$D$2) -> 0.04020332672 | E14: =_xll.dNormalDev($C$4,$D$4) -> 0.9838046891 | F14: 1 | G14: =_xll.dRandInt($C$6,A14*$BO$6) -> 13 | H14: =_xll.dRandInt($C$7,$D$7) -> 21 | I14: =IF(RAND()<$F$1,_xll.dNormalDev($C$3,$D$3),0) -> 0 | J14: =IF(RAND()<$F$1,_xll.dNormalDev($C$3,$D$3),0) -> 0 | K14: =IF(RAND()<$F$1,_xll.dNormalDev($C$3,$D$3),0) -> 0 | L14: =IF(RAND()<$F$1,_xll.dNormalDev($C$3,$D$3),0) -> 0 | M14: =IF(RAND()<$F$1,_xll.dNormalDev($C$3,$D$3),0) -> 0 | N14: 0 | O14: =IF(RAND()<$F$1,_xll.dNormalDev($C$3,$D$3),0) -> -0.0374140003 | P14: =IF(RAND()<$F$1,_xll.dNormalDev($C$3,$D$3),0) -> 0 | Q14: =IF(RAND()<$F$1,_xll.dNormalDev($C$3,$D$3),0) -> 0 | R14: =IF(RAND()<$F$1,_xll.dNormalDev($C$3,$D$3),0) -> 0 | S14: 0 | T14: -0.05042344294 | U14: 0 | V14: 0.02109724675 | W14: -0.01722731874 | X14: -0.04010981916 | AB14: 0 | AE14: 315.5607365 | AF14: -0.03623989115 | AG14: -11.43588674 | BI14: 5 | BK14: =_xll.dRandReal($C$1,$D$1) -> 0.01610897296 | BL14: =_xll.dNormalDev($C$2,$D$2) -> 0.05125037528 | BM14: =_xll.dNormalDev($C$4,$D$4) -> 0.9679174074 | BN14: 1 | BO14: =_xll.dRandInt($C$6,BI14*$BO$6) -> 134 | BP14: =_xll.dRandInt($C$7,$D$7) -> 10 | BQ14: =IF(RAND()<$F$1,_xll.dNormalDev($C$3,$D$3),0) -> 0 | BR14: =IF(RAND()<$F$1,_xll.dNormalDev($C$3,$D$3),0) -> 0 | BS14: =IF(RAND()<$F$1,_xll.dNormalDev($C$3,$D$3),0) -> 0 | BT14: =IF(RAND()<$F$1,_xll.dNormalDev($C$3,$D$3),0) -> 0 | BU14: 0 | BV14: =IF(RAND()<$F$1,_xll.dNormalDev($C$3,$D$3),0) -> 0 | BW14: =IF(RAND()<$F$1,_xll.dNormalDev($C$3,$D$3),0) -> 0 | BX14: =IF(RAND()<$F$1,_xll.dNormalDev($C$3,$D$3),0) -> 0 | BY14: =IF(RAND()<$F$1,_xll.dNormalDev($C$3,$D$3),0) -> 0 | BZ14: =IF(RAND()<$F$1,_xll.dNormalDev($C$3,$D$3),0) -> 0 | CC14: =_xll.dRandReal($C$1,$D$1) -> 0.02680750762 | CD14: =_xll.dNormalDev($C$2,$D$2) -> 0.04152270325 | CE14: =_xll.dNormalDev($C$4,$D$4) -> 0.8303719615 | CF14: 1 | CG14: =_xll.dRandInt($C$6,CA14*$BO$6) -> 1 | CH14: =_xll.dRandInt($C$7,$D$7) -> 18 | CI14: =IF(RAND()<$F$1,_xll.dNormalDev($C$3+PLUS_FACTOR,$D$3),0) -> 0 | CJ14: =IF(RAND()<$F$1,_xll.dNormalDev($C$3+PLUS_FACTOR,$D$3),0) -> 0.002257982109 | CK14: =IF(RAND()<$F$1,_xll.dNormalDev($C$3+PLUS_FACTOR,$D$3),0) -> 0 | CL14: =IF(RAND()<$F$1,_xll.dNormalDev($C$3+PLUS_FACTOR,$D$3),0) -> 0 | CM14: =IF(RAND()<$F$1,_xll.dNormalDev($C$3+PLUS_FACTOR,$D$3),0) -> 0 | CN14: =IF(RAND()<$F$1,_xll.dNormalDev($C$3+MIN_FACTOR,$D$3),0) -> 0 | CO14: =IF(RAND()<$F$1,_xll.dNormalDev($C$3+MIN_FACTOR,$D$3),0) -> -0.0137846309 | CP14: =IF(RAND()<$F$1,_xll.dNormalDev($C$3+MIN_FACTOR,$D$3),0) -> 0 | CQ14: =IF(RAND()<$F$1,_xll.dNormalDev($C$3+MIN_FACTOR,$D$3),0) -> 0 | CR14: =IF(RAND()<$F$1,_xll.dNormalDev($C$3+MIN_FACTOR,$D$3),0) -> -0.003748410874 | CU14: =_xll.dRandReal($C$1,$D$1) -> 0.020010251 | CV14: =_xll.dNormalDev($C$2,$D$2) -> 0.04620116001 | CW14: =_xll.dNormalDev($C$4,$D$4) -> 1.081774453 | CX14: 1 | CY14: =_xll.dRandInt($C$6,CS14*$BO$6) -> 1 | CZ14: =_xll.dRandInt($C$7,$D$7) -> 23 | DA14: =IF(RAND()<$F$1,_xll.dNormalDev($C$3,$D$3),0) -> 0 | DB14: =IF(RAND()<$F$1,_xll.dNormalDev($C$3,$D$3),0) -> -0.01362235504 | DC14: =IF(RAND()<$F$1,_xll.dNormalDev($C$3,$D$3),0) -> 0 | DD14: =IF(RAND()<$F$1,_xll.dNormalDev($C$3,$D$3),0) -> 0 | DE14: 0 | DF14: =IF(RAND()<$F$1,_xll.dNormalDev($C$3,$D$3),0) -> 0 | DG14: =IF(RAND()<$F$1,_xll.dNormalDev($C$3,$D$3),0) -> 0 | DH14: =IF(RAND()<$F$1,_xll.dNormalDev($C$3,$D$3),0) -> 0 | DI14: =IF(RAND()<$F$1,_xll.dNormalDev($C$3,$D$3),0) -> 0 | DJ14: =IF(RAND()<$F$1,_xll.dNormalDev($C$3,$D$3),0) -> 0.0070608884
A15: 7 | B15: 0.5424662232 | C15: =_xll.dRandReal($C$1,$D$1) -> 0.007863045367 | D15: =_xll.dNormalDev($C$2,$D$2) -> 0.04652337804 | E15: =_xll.dNormalDev($C$4,$D$4) -> 0.7124960129 | F15: 1 | G15: =_xll.dRandInt($C$6,A15*$BO$6) -> 137 | H15: =_xll.dRandInt($C$7,$D$7) -> 16 | I15: =IF(RAND()<$F$1,_xll.dNormalDev($C$3,$D$3),0) -> 0.027393158 | J15: =IF(RAND()<$F$1,_xll.dNormalDev($C$3,$D$3),0) -> 0 | K15: =IF(RAND()<$F$1,_xll.dNormalDev($C$3,$D$3),0) -> 0 | L15: =IF(RAND()<$F$1,_xll.dNormalDev($C$3,$D$3),0) -> 0 | M15: =IF(RAND()<$F$1,_xll.dNormalDev($C$3,$D$3),0) -> 0 | N15: =IF(RAND()<$F$1,_xll.dNormalDev($C$3,$D$3),0) -> 0.05000625869 | O15: 0 | P15: =IF(RAND()<$F$1,_xll.dNormalDev($C$3,$D$3),0) -> 0 | Q15: =IF(RAND()<$F$1,_xll.dNormalDev($C$3,$D$3),0) -> 0 | R15: =IF(RAND()<$F$1,_xll.dNormalDev($C$3,$D$3),0) -> -0.009813172687 | S15: 0 | T15: 0 | U15: 0 | V15: -0.009128951321 | W15: 0 | X15: 0 | AB15: 0 | AE15: 288.9554048 | AF15: -0.009128951321 | AG15: -2.637859824 | BI15: 6 | BK15: =_xll.dRandReal($C$1,$D$1) -> 0.02834868185 | BL15: =_xll.dNormalDev($C$2,$D$2) -> 0.05594513413 | BM15: =_xll.dNormalDev($C$4,$D$4) -> 0.953580351 | BN15: 1 | BO15: =_xll.dRandInt($C$6,BI15*$BO$6) -> 170 | BP15: =_xll.dRandInt($C$7,$D$7) -> 13 | BQ15: =IF(RAND()<$F$1,_xll.dNormalDev($C$3,$D$3),0) -> 0 | BR15: =IF(RAND()<$F$1,_xll.dNormalDev($C$3,$D$3),0) -> 0 | BS15: =IF(RAND()<$F$1,_xll.dNormalDev($C$3,$D$3),0) -> 0.008698501348 | BT15: =IF(RAND()<$F$1,_xll.dNormalDev($C$3,$D$3),0) -> 0 | BU15: =IF(RAND()<$F$1,_xll.dNormalDev($C$3,$D$3),0) -> 0 | BV15: 0 | BW15: =IF(RAND()<$F$1,_xll.dNormalDev($C$3,$D$3),0) -> 0 | BX15: =IF(RAND()<$F$1,_xll.dNormalDev($C$3,$D$3),0) -> 0 | BY15: =IF(RAND()<$F$1,_xll.dNormalDev($C$3,$D$3),0) -> 0 | BZ15: =IF(RAND()<$F$1,_xll.dNormalDev($C$3,$D$3),0) -> 0 | CC15: =_xll.dRandReal($C$1,$D$1) -> 0.03918618525 | CD15: =_xll.dNormalDev($C$2,$D$2) -> 0.05863907184 | CE15: =_xll.dNormalDev($C$4,$D$4) -> 1.163056224 | CF15: 1 | CG15: =_xll.dRandInt($C$6,CA15*$BO$6) -> 1 | CH15: =_xll.dRandInt($C$7,$D$7) -> 24 | CI15: =IF(RAND()<$F$1,_xll.dNormalDev($C$3+MIN_FACTOR,$D$3),0) -> 0 | CJ15: =IF(RAND()<$F$1,_xll.dNormalDev($C$3+MIN_FACTOR,$D$3),0) -> -0.00862484069 | CK15: =IF(RAND()<$F$1,_xll.dNormalDev($C$3+MIN_FACTOR,$D$3),0) -> -0.02310720627 | CL15: =IF(RAND()<$F$1,_xll.dNormalDev($C$3+MIN_FACTOR,$D$3),0) -> 0 | CM15: =IF(RAND()<$F$1,_xll.dNormalDev($C$3+MIN_FACTOR,$D$3),0) -> 0 | CN15: =IF(RAND()<$F$1,_xll.dNormalDev($C$3+PLUS_FACTOR,$D$3),0) -> 0 | CO15: =IF(RAND()<$F$1,_xll.dNormalDev($C$3+PLUS_FACTOR,$D$3),0) -> 0 | CP15: =IF(RAND()<$F$1,_xll.dNormalDev($C$3+PLUS_FACTOR,$D$3),0) -> 0 | CQ15: =IF(RAND()<$F$1,_xll.dNormalDev($C$3+PLUS_FACTOR,$D$3),0) -> 0 | CR15: =IF(RAND()<$F$1,_xll.dNormalDev($C$3+PLUS_FACTOR,$D$3),0) -> 0 | CU15: =_xll.dRandReal($C$1,$D$1) -> 0.003060219658 | CV15: =_xll.dNormalDev($C$2,$D$2) -> 0.05121950989 | CW15: =_xll.dNormalDev($C$4,$D$4) -> 1.141468857 | CX15: 1 | CY15: =_xll.dRandInt($C$6,CS15*$BO$6) -> 1 | CZ15: =_xll.dRandInt($C$7,$D$7) -> 24 | DA15: =IF(RAND()<$F$1,_xll.dNormalDev($C$3,$D$3),0) -> 0 | DB15: =IF(RAND()<$F$1,_xll.dNormalDev($C$3,$D$3),0) -> 0 | DC15: =IF(RAND()<$F$1,_xll.dNormalDev($C$3,$D$3),0) -> 0 | DD15: =IF(RAND()<$F$1,_xll.dNormalDev($C$3,$D$3),0) -> 0 | DE15: =IF(RAND()<$F$1,_xll.dNormalDev($C$3,$D$3),0) -> -0.0176907626 | DF15: 0 | DG15: =IF(RAND()<$F$1,_xll.dNormalDev($C$3,$D$3),0) -> 0 | DH15: =IF(RAND()<$F$1,_xll.dNormalDev($C$3,$D$3),0) -> 0 | DI15: =IF(RAND()<$F$1,_xll.dNormalDev($C$3,$D$3),0) -> 0 | DJ15: =IF(RAND()<$F$1,_xll.dNormalDev($C$3,$D$3),0) -> 0.01478417739
A16: 8 | B16: 1.383879624 | C16: =_xll.dRandReal($C$1,$D$1) -> 0.007967028057 | D16: =_xll.dNormalDev($C$2,$D$2) -> 0.04417457431 | E16: =_xll.dNormalDev($C$4,$D$4) -> 1.247379687 | F16: 1 | G16: =_xll.dRandInt($C$6,A16*$BO$6) -> 223 | H16: =_xll.dRandInt($C$7,$D$7) -> 13 | I16: =IF(RAND()<$F$1,_xll.dNormalDev($C$3,$D$3),0) -> 0 | J16: =IF(RAND()<$F$1,_xll.dNormalDev($C$3,$D$3),0) -> 0 | K16: =IF(RAND()<$F$1,_xll.dNormalDev($C$3,$D$3),0) -> 0 | L16: =IF(RAND()<$F$1,_xll.dNormalDev($C$3,$D$3),0) -> 0 | M16: =IF(RAND()<$F$1,_xll.dNormalDev($C$3,$D$3),0) -> 0 | N16: =IF(RAND()<$F$1,_xll.dNormalDev($C$3,$D$3),0) -> -0.0009500548307 | O16: =IF(RAND()<$F$1,_xll.dNormalDev($C$3,$D$3),0) -> 0 | P16: 0 | Q16: =IF(RAND()<$F$1,_xll.dNormalDev($C$3,$D$3),0) -> 0.0129956127 | R16: =IF(RAND()<$F$1,_xll.dNormalDev($C$3,$D$3),0) -> -0.02786122826 | S16: 0 | T16: -0.03100737922 | U16: 0 | V16: 0 | W16: -0.01070039384 | X16: -0.03834283614 | AB16: 0 | AE16: 172.1411239 | AF16: -0.04904322998 | AG16: -8.442356727 | BI16: 7 | BK16: =_xll.dRandReal($C$1,$D$1) -> 0.02454199762 | BL16: =_xll.dNormalDev($C$2,$D$2) -> 0.03992998603 | BM16: =_xll.dNormalDev($C$4,$D$4) -> 0.9205472458 | BN16: 1 | BO16: =_xll.dRandInt($C$6,BI16*$BO$6) -> 153 | BP16: =_xll.dRandInt($C$7,$D$7) -> 10 | BQ16: =IF(RAND()<$F$1,_xll.dNormalDev($C$3,$D$3),0) -> 0.009191962725 | BR16: =IF(RAND()<$F$1,_xll.dNormalDev($C$3,$D$3),0) -> 0 | BS16: =IF(RAND()<$F$1,_xll.dNormalDev($C$3,$D$3),0) -> 0 | BT16: =IF(RAND()<$F$1,_xll.dNormalDev($C$3,$D$3),0) -> 0.01565832287 | BU16: =IF(RAND()<$F$1,_xll.dNormalDev($C$3,$D$3),0) -> 0.01190682785 | BV16: =IF(RAND()<$F$1,_xll.dNormalDev($C$3,$D$3),0) -> -0.01790772237 | BW16: 0 | BX16: =IF(RAND()<$F$1,_xll.dNormalDev($C$3,$D$3),0) -> 0 | BY16: =IF(RAND()<$F$1,_xll.dNormalDev($C$3,$D$3),0) -> 0 | BZ16: =IF(RAND()<$F$1,_xll.dNormalDev($C$3,$D$3),0) -> 0 | CC16: =_xll.dRandReal($C$1,$D$1) -> 0.00401408996 | CD16: =_xll.dNormalDev($C$2,$D$2) -> 0.0449056415 | CE16: =_xll.dNormalDev($C$4,$D$4) -> 1.007854938 | CF16: 1 | CG16: =_xll.dRandInt($C$6,CA16*$BO$6) -> 1 | CH16: =_xll.dRandInt($C$7,$D$7) -> 23 | CI16: =IF(RAND()<$F$1,_xll.dNormalDev($C$3+MIN_FACTOR,$D$3),0) -> 0 | CJ16: =IF(RAND()<$F$1,_xll.dNormalDev($C$3+MIN_FACTOR,$D$3),0) -> -0.03040401166 | CK16: =IF(RAND()<$F$1,_xll.dNormalDev($C$3+MIN_FACTOR,$D$3),0) -> 0 | CL16: =IF(RAND()<$F$1,_xll.dNormalDev($C$3+MIN_FACTOR,$D$3),0) -> 0 | CM16: =IF(RAND()<$F$1,_xll.dNormalDev($C$3+MIN_FACTOR,$D$3),0) -> 0 | CN16: =IF(RAND()<$F$1,_xll.dNormalDev($C$3+PLUS_FACTOR,$D$3),0) -> 0 | CO16: =IF(RAND()<$F$1,_xll.dNormalDev($C$3+PLUS_FACTOR,$D$3),0) -> 0 | CP16: =IF(RAND()<$F$1,_xll.dNormalDev($C$3+PLUS_FACTOR,$D$3),0) -> 0 | CQ16: =IF(RAND()<$F$1,_xll.dNormalDev($C$3+PLUS_FACTOR,$D$3),0) -> 0 | CR16: =IF(RAND()<$F$1,_xll.dNormalDev($C$3+PLUS_FACTOR,$D$3),0) -> 0 | CU16: =_xll.dRandReal($C$1,$D$1) -> 0.02807309795 | CV16: =_xll.dNormalDev($C$2,$D$2) -> 0.0517486056 | CW16: =_xll.dNormalDev($C$4,$D$4) -> 0.9268339523 | CX16: 1 | CY16: =_xll.dRandInt($C$6,CS16*$BO$6) -> 1 | CZ16: =_xll.dRandInt($C$7,$D$7) -> 25 | DA16: =IF(RAND()<$F$1,_xll.dNormalDev($C$3,$D$3),0) -> 0 | DB16: =IF(RAND()<$F$1,_xll.dNormalDev($C$3,$D$3),0) -> 0 | DC16: =IF(RAND()<$F$1,_xll.dNormalDev($C$3,$D$3),0) -> 0 | DD16: =IF(RAND()<$F$1,_xll.dNormalDev($C$3,$D$3),0) -> 0 | DE16: =IF(RAND()<$F$1,_xll.dNormalDev($C$3,$D$3),0) -> 0 | DF16: =IF(RAND()<$F$1,_xll.dNormalDev($C$3,$D$3),0) -> 0 | DG16: 0 | DH16: =IF(RAND()<$F$1,_xll.dNormalDev($C$3,$D$3),0) -> -0.03672963976 | DI16: =IF(RAND()<$F$1,_xll.dNormalDev($C$3,$D$3),0) -> 0 | DJ16: =IF(RAND()<$F$1,_xll.dNormalDev($C$3,$D$3),0) -> 0
A17: 9 | B17: 1.060974087 | C17: =_xll.dRandReal($C$1,$D$1) -> 0.008023663901 | D17: =_xll.dNormalDev($C$2,$D$2) -> 0.05410635021 | E17: =_xll.dNormalDev($C$4,$D$4) -> 0.9116689643 | F17: 1 | G17: =_xll.dRandInt($C$6,A17*$BO$6) -> 30 | H17: =_xll.dRandInt($C$7,$D$7) -> 15 | I17: =IF(RAND()<$F$1,_xll.dNormalDev($C$3,$D$3),0) -> -0.02657803423 | J17: =IF(RAND()<$F$1,_xll.dNormalDev($C$3,$D$3),0) -> 0 | K17: =IF(RAND()<$F$1,_xll.dNormalDev($C$3,$D$3),0) -> 0 | L17: =IF(RAND()<$F$1,_xll.dNormalDev($C$3,$D$3),0) -> 0 | M17: =IF(RAND()<$F$1,_xll.dNormalDev($C$3,$D$3),0) -> 0 | N17: =IF(RAND()<$F$1,_xll.dNormalDev($C$3,$D$3),0) -> 0 | O17: =IF(RAND()<$F$1,_xll.dNormalDev($C$3,$D$3),0) -> 0 | P17: =IF(RAND()<$F$1,_xll.dNormalDev($C$3,$D$3),0) -> 0 | Q17: 0 | R17: =IF(RAND()<$F$1,_xll.dNormalDev($C$3,$D$3),0) -> 0 | S17: 0 | T17: 0 | U17: 0 | V17: -0.0003044670612 | W17: 0 | X17: -0.008482101949 | AB17: 0 | AE17: 237.9069972 | AF17: -0.00878656901 | AG17: -2.090386249 | BI17: 8 | BK17: =_xll.dRandReal($C$1,$D$1) -> 0.03184491053 | BL17: =_xll.dNormalDev($C$2,$D$2) -> 0.05773889924 | BM17: =_xll.dNormalDev($C$4,$D$4) -> 1.223709147 | BN17: 1 | BO17: =_xll.dRandInt($C$6,BI17*$BO$6) -> 74 | BP17: =_xll.dRandInt($C$7,$D$7) -> 13 | BQ17: =IF(RAND()<$F$1,_xll.dNormalDev($C$3,$D$3),0) -> 0 | BR17: =IF(RAND()<$F$1,_xll.dNormalDev($C$3,$D$3),0) -> 0 | BS17: =IF(RAND()<$F$1,_xll.dNormalDev($C$3,$D$3),0) -> 0 | BT17: =IF(RAND()<$F$1,_xll.dNormalDev($C$3,$D$3),0) -> 0.03118671327 | BU17: =IF(RAND()<$F$1,_xll.dNormalDev($C$3,$D$3),0) -> 0 | BV17: =IF(RAND()<$F$1,_xll.dNormalDev($C$3,$D$3),0) -> 0 | BW17: =IF(RAND()<$F$1,_xll.dNormalDev($C$3,$D$3),0) -> 0 | BX17: 0 | BY17: =IF(RAND()<$F$1,_xll.dNormalDev($C$3,$D$3),0) -> 0.002492052183 | BZ17: =IF(RAND()<$F$1,_xll.dNormalDev($C$3,$D$3),0) -> 0 | CC17: =_xll.dRandReal($C$1,$D$1) -> 0.01321095173 | CD17: =_xll.dNormalDev($C$2,$D$2) -> 0.04394172725 | CE17: =_xll.dNormalDev($C$4,$D$4) -> 0.8862530743 | CF17: 1 | CG17: =_xll.dRandInt($C$6,CA17*$BO$6) -> 1 | CH17: =_xll.dRandInt($C$7,$D$7) -> 12 | CI17: =IF(RAND()<$F$1,_xll.dNormalDev($C$3+MIN_FACTOR,$D$3),0) -> 0 | CJ17: =IF(RAND()<$F$1,_xll.dNormalDev($C$3+MIN_FACTOR,$D$3),0) -> 0 | CK17: =IF(RAND()<$F$1,_xll.dNormalDev($C$3+MIN_FACTOR,$D$3),0) -> 0 | CL17: =IF(RAND()<$F$1,_xll.dNormalDev($C$3+MIN_FACTOR,$D$3),0) -> 0 | CM17: =IF(RAND()<$F$1,_xll.dNormalDev($C$3+MIN_FACTOR,$D$3),0) -> 0 | CN17: =IF(RAND()<$F$1,_xll.dNormalDev($C$3+PLUS_FACTOR,$D$3),0) -> 0 | CO17: =IF(RAND()<$F$1,_xll.dNormalDev($C$3+PLUS_FACTOR,$D$3),0) -> 0 | CP17: =IF(RAND()<$F$1,_xll.dNormalDev($C$3+PLUS_FACTOR,$D$3),0) -> 0 | CQ17: =IF(RAND()<$F$1,_xll.dNormalDev($C$3+PLUS_FACTOR,$D$3),0) -> 0 | CR17: =IF(RAND()<$F$1,_xll.dNormalDev($C$3+PLUS_FACTOR,$D$3),0) -> 0 | CU17: =_xll.dRandReal($C$1,$D$1) -> 0.02183342677 | CV17: =_xll.dNormalDev($C$2,$D$2) -> 0.05392951715 | CW17: =_xll.dNormalDev($C$4,$D$4) -> 1.037914068 | CX17: 1 | CY17: =_xll.dRandInt($C$6,CS17*$BO$6) -> 1 | CZ17: =_xll.dRandInt($C$7,$D$7) -> 13 | DA17: =IF(RAND()<$F$1,_xll.dNormalDev($C$3,$D$3),0) -> 0 | DB17: =IF(RAND()<$F$1,_xll.dNormalDev($C$3,$D$3),0) -> 0 | DC17: =IF(RAND()<$F$1,_xll.dNormalDev($C$3,$D$3),0) -> 0 | DD17: =IF(RAND()<$F$1,_xll.dNormalDev($C$3,$D$3),0) -> 0.002164460054 | DE17: =IF(RAND()<$F$1,_xll.dNormalDev($C$3,$D$3),0) -> 0 | DF17: =IF(RAND()<$F$1,_xll.dNormalDev($C$3,$D$3),0) -> 0 | DG17: =IF(RAND()<$F$1,_xll.dNormalDev($C$3,$D$3),0) -> 0 | DH17: 0 | DI17: =IF(RAND()<$F$1,_xll.dNormalDev($C$3,$D$3),0) -> 0 | DJ17: =IF(RAND()<$F$1,_xll.dNormalDev($C$3,$D$3),0) -> 0
A18: 10 | B18: 0.006836247143 | C18: =_xll.dRandReal($C$1,$D$1) -> 0.03544754562 | D18: =_xll.dNormalDev($C$2,$D$2) -> 0.04623635354 | E18: =_xll.dNormalDev($C$4,$D$4) -> 0.914997789 | F18: 1 | G18: =_xll.dRandInt($C$6,A18*$BO$6) -> 141 | H18: =_xll.dRandInt($C$7,$D$7) -> 18 | I18: =IF(RAND()<$F$1,_xll.dNormalDev($C$3,$D$3),0) -> 0 | J18: =IF(RAND()<$F$1,_xll.dNormalDev($C$3,$D$3),0) -> 0 | K18: =IF(RAND()<$F$1,_xll.dNormalDev($C$3,$D$3),0) -> 0 | L18: =IF(RAND()<$F$1,_xll.dNormalDev($C$3,$D$3),0) -> 0 | M18: =IF(RAND()<$F$1,_xll.dNormalDev($C$3,$D$3),0) -> 0 | N18: =IF(RAND()<$F$1,_xll.dNormalDev($C$3,$D$3),0) -> 0 | O18: =IF(RAND()<$F$1,_xll.dNormalDev($C$3,$D$3),0) -> 0 | P18: =IF(RAND()<$F$1,_xll.dNormalDev($C$3,$D$3),0) -> 0 | Q18: =IF(RAND()<$F$1,_xll.dNormalDev($C$3,$D$3),0) -> 0 | R18: 0 | S18: 0 | T18: 0 | U18: 0 | V18: 0 | W18: 0 | X18: -0.02397815626 | AB18: 0 | AE18: 331.1586677 | AF18: -0.02397815626 | AG18: -7.940574281 | BI18: 9 | BK18: =_xll.dRandReal($C$1,$D$1) -> 0.0196006852 | BL18: =_xll.dNormalDev($C$2,$D$2) -> 0.06335746668 | BM18: =_xll.dNormalDev($C$4,$D$4) -> 0.911988535 | BN18: 1 | BO18: =_xll.dRandInt($C$6,BI18*$BO$6) -> 23 | BP18: =_xll.dRandInt($C$7,$D$7) -> 14 | BQ18: =IF(RAND()<$F$1,_xll.dNormalDev($C$3,$D$3),0) -> 0 | BR18: =IF(RAND()<$F$1,_xll.dNormalDev($C$3,$D$3),0) -> 0 | BS18: =IF(RAND()<$F$1,_xll.dNormalDev($C$3,$D$3),0) -> -0.001900601376 | BT18: =IF(RAND()<$F$1,_xll.dNormalDev($C$3,$D$3),0) -> 0 | BU18: =IF(RAND()<$F$1,_xll.dNormalDev($C$3,$D$3),0) -> 0 | BV18: =IF(RAND()<$F$1,_xll.dNormalDev($C$3,$D$3),0) -> 0 | BW18: =IF(RAND()<$F$1,_xll.dNormalDev($C$3,$D$3),0) -> 0 | BX18: =IF(RAND()<$F$1,_xll.dNormalDev($C$3,$D$3),0) -> 0 | BY18: 0 | BZ18: =IF(RAND()<$F$1,_xll.dNormalDev($C$3,$D$3),0) -> 0 | CC18: =_xll.dRandReal($C$1,$D$1) -> 0.01999901574 | CD18: =_xll.dNormalDev($C$2,$D$2) -> 0.03868200346 | CE18: =_xll.dNormalDev($C$4,$D$4) -> 0.9166023278 | CF18: 1 | CG18: =_xll.dRandInt($C$6,CA18*$BO$6) -> 1 | CH18: =_xll.dRandInt($C$7,$D$7) -> 16 | CI18: =IF(RAND()<$F$1,_xll.dNormalDev($C$3+MIN_FACTOR,$D$3),0) -> 0 | CJ18: =IF(RAND()<$F$1,_xll.dNormalDev($C$3+MIN_FACTOR,$D$3),0) -> 0 | CK18: =IF(RAND()<$F$1,_xll.dNormalDev($C$3+MIN_FACTOR,$D$3),0) -> 0 | CL18: =IF(RAND()<$F$1,_xll.dNormalDev($C$3+MIN_FACTOR,$D$3),0) -> -0.01981043058 | CM18: =IF(RAND()<$F$1,_xll.dNormalDev($C$3+MIN_FACTOR,$D$3),0) -> 0 | CN18: =IF(RAND()<$F$1,_xll.dNormalDev($C$3+PLUS_FACTOR,$D$3),0) -> 0 | CO18: =IF(RAND()<$F$1,_xll.dNormalDev($C$3+PLUS_FACTOR,$D$3),0) -> 0 | CP18: =IF(RAND()<$F$1,_xll.dNormalDev($C$3+PLUS_FACTOR,$D$3),0) -> 0 | CQ18: =IF(RAND()<$F$1,_xll.dNormalDev($C$3+PLUS_FACTOR,$D$3),0) -> 0 | CR18: =IF(RAND()<$F$1,_xll.dNormalDev($C$3+PLUS_FACTOR,$D$3),0) -> 0 | CU18: =_xll.dRandReal($C$1,$D$1) -> 0.004889072245 | CV18: =_xll.dNormalDev($C$2,$D$2) -> 0.0448070814 | CW18: =_xll.dNormalDev($C$4,$D$4) -> 1.152128962 | CX18: 1 | CY18: =_xll.dRandInt($C$6,CS18*$BO$6) -> 1 | CZ18: =_xll.dRandInt($C$7,$D$7) -> 18 | DA18: =IF(RAND()<$F$1,_xll.dNormalDev($C$3,$D$3),0) -> 0 | DB18: =IF(RAND()<$F$1,_xll.dNormalDev($C$3,$D$3),0) -> -0.01389196342 | DC18: =IF(RAND()<$F$1,_xll.dNormalDev($C$3,$D$3),0) -> 0 | DD18: =IF(RAND()<$F$1,_xll.dNormalDev($C$3,$D$3),0) -> 0 | DE18: =IF(RAND()<$F$1,_xll.dNormalDev($C$3,$D$3),0) -> 0 | DF18: =IF(RAND()<$F$1,_xll.dNormalDev($C$3,$D$3),0) -> -0.02202918742 | DG18: =IF(RAND()<$F$1,_xll.dNormalDev($C$3,$D$3),0) -> 0 | DH18: =IF(RAND()<$F$1,_xll.dNormalDev($C$3,$D$3),0) -> 0 | DI18: 0 | DJ18: =IF(RAND()<$F$1,_xll.dNormalDev($C$3,$D$3),0) -> 0
S19: quadratic_condition | T19: 1 | U19: =IF(I$21=MAX(maxlevel10),I19,"") ->  | V19: =IF(J$21=MAX(maxlevel10),J19,"") ->  | W19: =IF(K$21=MAX(maxlevel10),K19,"") ->  | X19: =IF(L$21=MAX(maxlevel10),L19,"") ->  | AB19: 0 | AE19: 36.66419114 | AF19: 0 | AG19: 0 | BI19: 10 | BK19: =_xll.dRandReal($C$1,$D$1) -> 0.002951662592 | BL19: =_xll.dNormalDev($C$2,$D$2) -> 0.05270770272 | BM19: =_xll.dNormalDev($C$4,$D$4) -> 0.7046638501 | BN19: 1 | BO19: =_xll.dRandInt($C$6,BI19*$BO$6) -> 298 | BP19: =_xll.dRandInt($C$7,$D$7) -> 16 | BQ19: =IF(RAND()<$F$1,_xll.dNormalDev($C$3,$D$3),0) -> 0 | BR19: =IF(RAND()<$F$1,_xll.dNormalDev($C$3,$D$3),0) -> 0 | BS19: =IF(RAND()<$F$1,_xll.dNormalDev($C$3,$D$3),0) -> 0 | BT19: =IF(RAND()<$F$1,_xll.dNormalDev($C$3,$D$3),0) -> 0 | BU19: =IF(RAND()<$F$1,_xll.dNormalDev($C$3,$D$3),0) -> 0 | BV19: =IF(RAND()<$F$1,_xll.dNormalDev($C$3,$D$3),0) -> 0 | BW19: =IF(RAND()<$F$1,_xll.dNormalDev($C$3,$D$3),0) -> 0 | BX19: =IF(RAND()<$F$1,_xll.dNormalDev($C$3,$D$3),0) -> 0 | BY19: =IF(RAND()<$F$1,_xll.dNormalDev($C$3,$D$3),0) -> 0 | BZ19: 0 | CC19: =_xll.dRandReal($C$1,$D$1) -> 0.03140570595 | CD19: =_xll.dNormalDev($C$2,$D$2) -> 0.05225153672 | CE19: =_xll.dNormalDev($C$4,$D$4) -> 1.007481051 | CF19: 1 | CG19: =_xll.dRandInt($C$6,CA19*$BO$6) -> 1 | CH19: =_xll.dRandInt($C$7,$D$7) -> 16 | CI19: =IF(RAND()<$F$1,_xll.dNormalDev($C$3+MIN_FACTOR,$D$3),0) -> 0 | CJ19: =IF(RAND()<$F$1,_xll.dNormalDev($C$3+MIN_FACTOR,$D$3),0) -> 0 | CK19: =IF(RAND()<$F$1,_xll.dNormalDev($C$3+MIN_FACTOR,$D$3),0) -> 0 | CL19: =IF(RAND()<$F$1,_xll.dNormalDev($C$3+MIN_FACTOR,$D$3),0) -> 0 | CM19: =IF(RAND()<$F$1,_xll.dNormalDev($C$3+MIN_FACTOR,$D$3),0) -> 0 | CN19: =IF(RAND()<$F$1,_xll.dNormalDev($C$3+PLUS_FACTOR,$D$3),0) -> 0 | CO19: =IF(RAND()<$F$1,_xll.dNormalDev($C$3+PLUS_FACTOR,$D$3),0) -> 0 | CP19: =IF(RAND()<$F$1,_xll.dNormalDev($C$3+PLUS_FACTOR,$D$3),0) -> 0 | CQ19: =IF(RAND()<$F$1,_xll.dNormalDev($C$3+PLUS_FACTOR,$D$3),0) -> 0 | CR19: =IF(RAND()<$F$1,_xll.dNormalDev($C$3+PLUS_FACTOR,$D$3),0) -> 0 | CU19: =_xll.dRandReal($C$1,$D$1) -> 0.006586764427 | CV19: =_xll.dNormalDev($C$2,$D$2) -> 0.05838556406 | CW19: =_xll.dNormalDev($C$4,$D$4) -> 0.757991569 | CX19: 1 | CY19: =_xll.dRandInt($C$6,CS19*$BO$6) -> 1 | CZ19: =_xll.dRandInt($C$7,$D$7) -> 16 | DA19: =IF(RAND()<$F$1,_xll.dNormalDev($C$3,$D$3),0) -> 0 | DB19: =IF(RAND()<$F$1,_xll.dNormalDev($C$3,$D$3),0) -> 0 | DC19: =IF(RAND()<$F$1,_xll.dNormalDev($C$3,$D$3),0) -> 0 | DD19: =IF(RAND()<$F$1,_xll.dNormalDev($C$3,$D$3),0) -> 0 | DE19: =IF(RAND()<$F$1,_xll.dNormalDev($C$3,$D$3),0) -> 0 | DF19: =IF(RAND()<$F$1,_xll.dNormalDev($C$3,$D$3),0) -> 0.004850802451 | DG19: =IF(RAND()<$F$1,_xll.dNormalDev($C$3,$D$3),0) -> 0 | DH19: =IF(RAND()<$F$1,_xll.dNormalDev($C$3,$D$3),0) -> -0.00245726251 | DI19: =IF(RAND()<$F$1,_xll.dNormalDev($C$3,$D$3),0) -> 0 | DJ19: 0
H20: Sum | I20: =SUM(I9:I18) -> 0.0008151237613 | J20: =SUM(J9:J18) -> 0 | K20: -0.05597511028 | L20: 0 | M20: 0 | N20: 0.01220690069 | O20: -0.01033720651 | P20: 0.008962096249 | Q20: 0.003283965855 | R20: -0.05760644899 | S20: pref_attach_on | T20: 0 | AG20: =SUM(AG10:AG19) -> -43.1800489
B21: Max | H21: Max | I21: =MAX(I24:I522) -> 0.6986846936 | J21: 1.064614547 | K21: 0.9197176206 | L21: 0.9383112203 | M21: 1.079115219 | N21: 1.068230823 | O21: 0.7460262832 | P21: 1.383886444 | Q21: 1.060974087 | R21: 0.1856189289 | S21: threshold | T21: 0 | BQ21: 25
A22: grower1 | B22: =TRANSPOSE(maxlevel10) -> 0.6986846936 | C22: =TRANSPOSE(early_levels) -> 0.047839244 | F22: =B22 -> 0.6986846936 | I22: =I21*I20 -> 0.0005695144954 | J22: 0 | K22: -0.05148129524 | L22: 0 | M22: 0 | N22: 0.01303978757 | O22: -0.007711827754 | P22: 0.01240252351 | Q22: 0.003484202674 | R22: -0.01069284736 | S22: poisson prob | T22: 0.002 | AJ22: =COUNTIF(AJ24:AJ33,"<>0") -> 0 | AK22: =COUNTIF(AK24:AK33,"<>0") -> 1 | AL22: 4 | AM22: 0 | AN22: 0 | AO22: 3 | AP22: 3 | AQ22: 2 | AR22: 2 | AS22: 0 | BI22: grower | BK22: initial40 | BL22: rate40 | BM22: carcap40 | BN22: effect_type | BO22: delay | BP22: MyMax | BQ22: grower1 | BR22: grower2 | BS22: grower3 | BT22: grower4 | BU22: grower5 | BV22: grower6 | BW22: grower7 | BX22: grower8 | BY22: grower9 | BZ22: grower10 | CC22: initial40 | CD22: rate40 | CE22: carcap40 | CF22: effect_type | CG22: delay | CH22: MyMax | CI22: grower1 | CJ22: grower2 | CK22: grower3 | CL22: grower4 | CM22: grower5 | CN22: grower6 | CO22: grower7 | CP22: grower8 | CQ22: grower9 | CR22: grower10
A23: grower2 | B23: 1.064614547 | C23: 0.186712404 | F23: =E10 -> 1.06461455 | G23: step | H23: time | I23: grower1 | J23: grower2 | K23: grower3 | L23: grower4 | M23: grower5 | N23: grower6 | O23: grower7 | P23: grower8 | Q23: grower9 | R23: grower10 | S23: products 3 | T23: =S522 -> 0 | X23: grower1 | Y23: grower2 | Z23: grower3 | AA23: grower4 | AB23: grower5 | AC23: grower6 | AD23: grower7 | AE23: grower8 | AF23: grower9 | AG23: grower10 | AJ23: grower1 | AK23: grower2 | AL23: grower3 | AM23: grower4 | AN23: grower5 | AO23: grower6 | AP23: grower7 | AQ23: grower8 | AR23: grower9 | AS23: grower10 | BI23: 1 | BK23: =_xll.dRandReal($C$1,$D$1) -> 0.02843130487 | BL23: =_xll.dNormalDev($C$2,$D$2) -> 0.04511114616 | BM23: =_xll.dNormalDev($C$4,$D$4) -> 1.054140698 | BN23: =IF(RAND()<$L$2,1,0) -> 1 | BO23: 1 | BP23: =_xll.dRandInt($C$7,$D$7) -> 10 | BQ23: =IF(RAND()<$F$1,_xll.dNormalDev($C$3-((1-(501-$BO23)/500)/$BQ$21),$D$3),0) -> 0 | BR23: =IF(RAND()<$F$1,_xll.dNormalDev($C$3-((1-(501-$BO23)/500)/$BQ$21),$D$3),0) -> -0.0306495368 | BS23: =IF(RAND()<$F$1,_xll.dNormalDev($C$3-((1-(501-$BO23)/500)/$BQ$21),$D$3),0) -> 0 | BT23: =IF(RAND()<$F$1,_xll.dNormalDev($C$3-((1-(501-$BO23)/500)/$BQ$21),$D$3),0) -> -0.009309683111 | BU23: =IF(RAND()<$F$1,_xll.dNormalDev($C$3-((1-(501-$BO23)/500)/$BQ$21),$D$3),0) -> 0 | BV23: =IF(RAND()<$F$1,_xll.dNormalDev($C$3-((1-(501-$BO23)/500)/$BQ$21),$D$3),0) -> 0 | BW23: =IF(RAND()<$F$1,_xll.dNormalDev($C$3-((1-(501-$BO23)/500)/$BQ$21),$D$3),0) -> 0 | BX23: =IF(RAND()<$F$1,_xll.dNormalDev($C$3-((1-(501-$BO23)/500)/$BQ$21),$D$3),0) -> 0 | BY23: =IF(RAND()<$F$1,_xll.dNormalDev($C$3-((1-(501-$BO23)/500)/$BQ$21),$D$3),0) -> 0 | BZ23: =IF(RAND()<$F$1,_xll.dNormalDev($C$3-((1-(501-$BO23)/500)/$BQ$21),$D$3),0) -> 0 | CC23: =_xll.dRandReal($C$1,$D$1) -> 0.0197319824 | CD23: =_xll.dNormalDev($C$2,$D$2) -> 0.05670837284 | CE23: =_xll.dNormalDev($C$4,$D$4) -> 0.8887390634 | CF23: =IF(RAND()<$L$2,1,0) -> 1 | CG23: 1 | CH23: =_xll.dRandInt($C$7,$D$7) -> 24 | CI23: 0 | CJ23: =IF(RAND()<$F$1,_xll.dNormalDev($C$3,$D$3),0) -> 0 | CK23: =IF(RAND()<$F$1,_xll.dNormalDev($C$3,$D$3),0) -> 0 | CL23: =IF(RAND()<$F$1,_xll.dNormalDev($C$3,$D$3),0) -> 0 | CM23: =IF(RAND()<$F$1,_xll.dNormalDev($C$3,$D$3),0) -> 0 | CN23: =IF(RAND()<$F$1,_xll.dNormalDev($C$3,$D$3),0) -> 0 | CO23: =IF(RAND()<$F$1,_xll.dNormalDev($C$3,$D$3),0) -> 0 | CP23: =IF(RAND()<$F$1,_xll.dNormalDev($C$3,$D$3),0) -> 0 | CQ23: =IF(RAND()<$F$1,_xll.dNormalDev($C$3,$D$3),0) -> -0.01888117206 | CR23: =IF(RAND()<$F$1,_xll.dNormalDev($C$3,$D$3),0) -> 0
A24: grower3 | B24: 0.9197176206 | C24: 0.3095223312 | D24: =B35 -> 1.383886444 | F24: =D10 -> 0.04917718339 | G24: 1 | H24: 0.1 | I24: =FGrowthMatrix8(C9:C18,D9:D18,E9:E18,F9:F18,G9:G18,H9:H18,I9:R18,500) -> 0.004270844383 | J24: 0.02117756202 | K24: 0.03330721903 | L24: 0.0377132798 | M24: 0.02130385073 | N24: 0.02529471335 | O24: 0.007863045367 | P24: 0.007967028057 | Q24: 0.008023663901 | R24: 0.03544754562 | S24: 0 | T24: 0 | U24: =calculate_product_slope(T24:T522) -> 0 | V24: =SUM(T24:T43) -> 0 | X24: =I9*AVERAGE($I24:$I522) -> 0 | Y24: 0 | Z24: -0.01031578474 | AA24: 0 | AB24: 0 | AC24: 0 | AD24: 0 | AE24: 0.004214621405 | AF24: 0 | AG24: 0 | AJ24: 0 | AK24: =IF(RAND()<$F$1,_xll.dNormalDev($C$3,$D$3),0) -> 0 | AL24: =IF(RAND()<$F$1,_xll.dNormalDev($C$3,$D$3),0) -> 0.01316707448 | AM24: =IF(RAND()<$F$1,_xll.dNormalDev($C$3,$D$3),0) -> 0 | AN24: =IF(RAND()<$F$1,_xll.dNormalDev($C$3,$D$3),0) -> 0 | AO24: =IF(RAND()<$F$1,_xll.dNormalDev($C$3,$D$3),0) -> 0.01928354128 | AP24: =IF(RAND()<$F$1,_xll.dNormalDev($C$3,$D$3),0) -> 0.001337334641 | AQ24: =IF(RAND()<$F$1,_xll.dNormalDev($C$3,$D$3),0) -> 0 | AR24: =IF(RAND()<$F$1,_xll.dNormalDev($C$3,$D$3),0) -> 0 | AS24: =IF(RAND()<$F$1,_xll.dNormalDev($C$3,$D$3),0) -> 0 | BI24: 2 | BK24: =_xll.dRandReal($C$1,$D$1) -> 0.04494574687 | BL24: =_xll.dNormalDev($C$2,$D$2) -> 0.0432502841 | BM24: =_xll.dNormalDev($C$4,$D$4) -> 0.8709394115 | BN24: 1 | BO24: 1 | BP24: =_xll.dRandInt($C$7,$D$7) -> 21 | BQ24: =IF(RAND()<$F$1,_xll.dNormalDev($C$3-((1-(501-$BO24)/500)/$BQ$21),$D$3),0) -> 0 | BR24: =IF(RAND()<$F$1,_xll.dNormalDev($C$3-((1-(501-$BO24)/500)/$BQ$21),$D$3),0) -> 0 | BS24: =IF(RAND()<$F$1,_xll.dNormalDev($C$3-((1-(501-$BO24)/500)/$BQ$21),$D$3),0) -> 0 | BT24: =IF(RAND()<$F$1,_xll.dNormalDev($C$3-((1-(501-$BO24)/500)/$BQ$21),$D$3),0) -> 0 | BU24: =IF(RAND()<$F$1,_xll.dNormalDev($C$3-((1-(501-$BO24)/500)/$BQ$21),$D$3),0) -> 0 | BV24: =IF(RAND()<$F$1,_xll.dNormalDev($C$3-((1-(501-$BO24)/500)/$BQ$21),$D$3),0) -> 0 | BW24: =IF(RAND()<$F$1,_xll.dNormalDev($C$3-((1-(501-$BO24)/500)/$BQ$21),$D$3),0) -> -0.0458466037 | BX24: =IF(RAND()<$F$1,_xll.dNormalDev($C$3-((1-(501-$BO24)/500)/$BQ$21),$D$3),0) -> 0 | BY24: =IF(RAND()<$F$1,_xll.dNormalDev($C$3-((1-(501-$BO24)/500)/$BQ$21),$D$3),0) -> 0 | BZ24: =IF(RAND()<$F$1,_xll.dNormalDev($C$3-((1-(501-$BO24)/500)/$BQ$21),$D$3),0) -> 0.03734361484 | CC24: =_xll.dRandReal($C$1,$D$1) -> 0.0113901773 | CD24: =_xll.dNormalDev($C$2,$D$2) -> 0.05283556047 | CE24: =_xll.dNormalDev($C$4,$D$4) -> 0.8656843735 | CF24: 1 | CG24: 1 | CH24: =_xll.dRandInt($C$7,$D$7) -> 14 | CI24: =IF(RAND()<$F$1,_xll.dNormalDev($C$3,$D$3),0) -> 0 | CJ24: 0 | CK24: =IF(RAND()<$F$1,_xll.dNormalDev($C$3,$D$3),0) -> 0 | CL24: =IF(RAND()<$F$1,_xll.dNormalDev($C$3,$D$3),0) -> 0 | CM24: =IF(RAND()<$F$1,_xll.dNormalDev($C$3,$D$3),0) -> 0 | CN24: =IF(RAND()<$F$1,_xll.dNormalDev($C$3,$D$3),0) -> 0 | CO24: =IF(RAND()<$F$1,_xll.dNormalDev($C$3,$D$3),0) -> 0.01119070448 | CP24: =IF(RAND()<$F$1,_xll.dNormalDev($C$3,$D$3),0) -> -0.009873710721 | CQ24: =IF(RAND()<$F$1,_xll.dNormalDev($C$3,$D$3),0) -> 0 | CR24: =IF(RAND()<$F$1,_xll.dNormalDev($C$3,$D$3),0) -> 0
A25: grower4 | B25: 0.9383112203 | C25: 0.2348319562 | F25: =I20 -> 0.0008151237613 | G25: 2 | H25: 0.2 | I25: 0.004491406131 | J25: 0.02219694701 | K25: 0.03502077478 | L25: 0.03927697825 | M25: 0.02130385073 | N25: 0.02529471335 | O25: 0.007863045367 | P25: 0.007967028057 | Q25: 0.008023663901 | R25: 0.03544754562 | S25: 0 | T25: =S25-S24 -> 0 | V25: =SUM(T44:T63) -> 0 | X25: =I10*AVERAGE($J24:$J522) -> 0 | Y25: 0 | Z25: 0 | AA25: 0 | AB25: 0 | AC25: -0.01597271861 | AD25: 0 | AE25: 0 | AF25: 0 | AG25: -0.03070468488 | AJ25: =IF(RAND()<$F$1,_xll.dNormalDev($C$3,$D$3),0) -> 0 | AK25: 0 | AL25: =IF(RAND()<$F$1,_xll.dNormalDev($C$3,$D$3),0) -> 0 | AM25: =IF(RAND()<$F$1,_xll.dNormalDev($C$3,$D$3),0) -> 0 | AN25: =IF(RAND()<$F$1,_xll.dNormalDev($C$3,$D$3),0) -> 0 | AO25: =IF(RAND()<$F$1,_xll.dNormalDev($C$3,$D$3),0) -> 0 | AP25: =IF(RAND()<$F$1,_xll.dNormalDev($C$3,$D$3),0) -> 0 | AQ25: =IF(RAND()<$F$1,_xll.dNormalDev($C$3,$D$3),0) -> 0 | AR25: =IF(RAND()<$F$1,_xll.dNormalDev($C$3,$D$3),0) -> 0.01275978583 | AS25: =IF(RAND()<$F$1,_xll.dNormalDev($C$3,$D$3),0) -> 0 | BI25: 3 | BK25: =_xll.dRandReal($C$1,$D$1) -> 0.011145697 | BL25: =_xll.dNormalDev($C$2,$D$2) -> 0.03208366446 | BM25: =_xll.dNormalDev($C$4,$D$4) -> 1.119236308 | BN25: 1 | BO25: =_xll.dRandInt($C$6,BI25*$BO$6) -> 89 | BP25: =_xll.dRandInt($C$7,$D$7) -> 15 | BQ25: =IF(RAND()<$F$1,_xll.dNormalDev($C$3-((1-(501-$BO25)/500)/$BQ$21),$D$3),0) -> 0.01552230029 | BR25: =IF(RAND()<$F$1,_xll.dNormalDev($C$3-((1-(501-$BO25)/500)/$BQ$21),$D$3),0) -> 0 | BS25: =IF(RAND()<$F$1,_xll.dNormalDev($C$3-((1-(501-$BO25)/500)/$BQ$21),$D$3),0) -> 0 | BT25: =IF(RAND()<$F$1,_xll.dNormalDev($C$3-((1-(501-$BO25)/500)/$BQ$21),$D$3),0) -> 0 | BU25: =IF(RAND()<$F$1,_xll.dNormalDev($C$3-((1-(501-$BO25)/500)/$BQ$21),$D$3),0) -> 0 | BV25: =IF(RAND()<$F$1,_xll.dNormalDev($C$3-((1-(501-$BO25)/500)/$BQ$21),$D$3),0) -> 0 | BW25: =IF(RAND()<$F$1,_xll.dNormalDev($C$3-((1-(501-$BO25)/500)/$BQ$21),$D$3),0) -> 0 | BX25: =IF(RAND()<$F$1,_xll.dNormalDev($C$3-((1-(501-$BO25)/500)/$BQ$21),$D$3),0) -> 0 | BY25: =IF(RAND()<$F$1,_xll.dNormalDev($C$3-((1-(501-$BO25)/500)/$BQ$21),$D$3),0) -> 0 | BZ25: =IF(RAND()<$F$1,_xll.dNormalDev($C$3-((1-(501-$BO25)/500)/$BQ$21),$D$3),0) -> 0 | CC25: =_xll.dRandReal($C$1,$D$1) -> 0.02524166647 | CD25: =_xll.dNormalDev($C$2,$D$2) -> 0.04286164608 | CE25: =_xll.dLogNormalDev($C$5,$D$5) -> 0.3499750248 | CF25: 1 | CG25: 1 | CH25: =_xll.dRandInt($C$7,$D$7) -> 24 | CI25: =IF(RAND()<$F$1,_xll.dNormalDev($C$3,$D$3),0) -> 0 | CJ25: =IF(RAND()<$F$1,_xll.dNormalDev($C$3,$D$3),0) -> -0.002532437379 | CK25: 0 | CL25: =IF(RAND()<$F$1,_xll.dNormalDev($C$3,$D$3),0) -> 0 | CM25: =IF(RAND()<$F$1,_xll.dNormalDev($C$3,$D$3),0) -> 0 | CN25: =IF(RAND()<$F$1,_xll.dNormalDev($C$3,$D$3),0) -> -0.003133328213 | CO25: =IF(RAND()<$F$1,_xll.dNormalDev($C$3,$D$3),0) -> 0 | CP25: =IF(RAND()<$F$1,_xll.dNormalDev($C$3,$D$3),0) -> 0 | CQ25: =IF(RAND()<$F$1,_xll.dNormalDev($C$3,$D$3),0) -> -0.01970718407 | CR25: =IF(RAND()<$F$1,_xll.dNormalDev($C$3,$D$3),0) -> 0
A26: grower5 | B26: 1.079115219 | C26: 0.02130385073 | G26: 3 | H26: 0.3 | I26: 0.004723282256 | J26: 0.02326428831 | K26: 0.03681937609 | L26: 0.04090256868 | M26: 0.02130385073 | N26: 0.02529471335 | O26: 0.007863045367 | P26: 0.007967028057 | Q26: 0.008023663901 | R26: 0.03544754562 | S26: 0 | T26: =S26-S25 -> 0 | V26: =SUM(T64:T83) -> 0 | X26: =I11*AVERAGE($K24:$K522) -> 0 | Y26: 0 | Z26: 0 | AA26: 0 | AB26: 0 | AC26: -0.005934470038 | AD26: 0 | AE26: 0 | AF26: 0 | AG26: -0.000183282794 | AJ26: =IF(RAND()<$F$1,_xll.dNormalDev($C$3,$D$3),0) -> 0 | AK26: =IF(RAND()<$F$1,_xll.dNormalDev($C$3,$D$3),0) -> 0 | AL26: 0 | AM26: =IF(RAND()<$F$1,_xll.dNormalDev($C$3,$D$3),0) -> 0 | AN26: =IF(RAND()<$F$1,_xll.dNormalDev($C$3,$D$3),0) -> 0 | AO26: =IF(RAND()<$F$1,_xll.dNormalDev($C$3,$D$3),0) -> -0.03464818768 | AP26: =IF(RAND()<$F$1,_xll.dNormalDev($C$3,$D$3),0) -> 0 | AQ26: =IF(RAND()<$F$1,_xll.dNormalDev($C$3,$D$3),0) -> 0 | AR26: =IF(RAND()<$F$1,_xll.dNormalDev($C$3,$D$3),0) -> 0 | AS26: =IF(RAND()<$F$1,_xll.dNormalDev($C$3,$D$3),0) -> 0 | BI26: 4 | BK26: =_xll.dRandReal($C$1,$D$1) -> 0.02126854567 | BL26: =_xll.dNormalDev($C$2,$D$2) -> 0.04723996978 | BM26: =_xll.dNormalDev($C$4,$D$4) -> 1.084288608 | BN26: 1 | BO26: =_xll.dRandInt($C$6,BI26*$BO$6) -> 74 | BP26: =_xll.dRandInt($C$7,$D$7) -> 13 | BQ26: =IF(RAND()<$F$1,_xll.dNormalDev($C$3-((1-(501-$BO26)/500)/$BQ$21),$D$3),0) -> 0 | BR26: =IF(RAND()<$F$1,_xll.dNormalDev($C$3-((1-(501-$BO26)/500)/$BQ$21),$D$3),0) -> 0 | BS26: =IF(RAND()<$F$1,_xll.dNormalDev($C$3-((1-(501-$BO26)/500)/$BQ$21),$D$3),0) -> 0 | BT26: =IF(RAND()<$F$1,_xll.dNormalDev($C$3-((1-(501-$BO26)/500)/$BQ$21),$D$3),0) -> 0 | BU26: =IF(RAND()<$F$1,_xll.dNormalDev($C$3-((1-(501-$BO26)/500)/$BQ$21),$D$3),0) -> 0 | BV26: =IF(RAND()<$F$1,_xll.dNormalDev($C$3-((1-(501-$BO26)/500)/$BQ$21),$D$3),0) -> -0.01531301071 | BW26: =IF(RAND()<$F$1,_xll.dNormalDev($C$3-((1-(501-$BO26)/500)/$BQ$21),$D$3),0) -> -0.002406803872 | BX26: =IF(RAND()<$F$1,_xll.dNormalDev($C$3-((1-(501-$BO26)/500)/$BQ$21),$D$3),0) -> 0 | BY26: =IF(RAND()<$F$1,_xll.dNormalDev($C$3-((1-(501-$BO26)/500)/$BQ$21),$D$3),0) -> 0 | BZ26: =IF(RAND()<$F$1,_xll.dNormalDev($C$3-((1-(501-$BO26)/500)/$BQ$21),$D$3),0) -> 0 | CC26: =_xll.dRandReal($C$1,$D$1) -> 0.02302871435 | CD26: =_xll.dNormalDev($C$2,$D$2) -> 0.043525291 | CE26: =_xll.dLogNormalDev($C$5,$D$5) -> 1.180135154 | CF26: 1 | CG26: 1 | CH26: =_xll.dRandInt($C$7,$D$7) -> 23 | CI26: =IF(RAND()<$F$1,_xll.dNormalDev($C$3,$D$3),0) -> 0 | CJ26: =IF(RAND()<$F$1,_xll.dNormalDev($C$3,$D$3),0) -> 0 | CK26: =IF(RAND()<$F$1,_xll.dNormalDev($C$3,$D$3),0) -> 0 | CL26: 0 | CM26: =IF(RAND()<$F$1,_xll.dNormalDev($C$3,$D$3),0) -> 0 | CN26: =IF(RAND()<$F$1,_xll.dNormalDev($C$3,$D$3),0) -> -0.01408093129 | CO26: =IF(RAND()<$F$1,_xll.dNormalDev($C$3,$D$3),0) -> 0 | CP26: =IF(RAND()<$F$1,_xll.dNormalDev($C$3,$D$3),0) -> 0 | CQ26: =IF(RAND()<$F$1,_xll.dNormalDev($C$3,$D$3),0) -> 0 | CR26: =IF(RAND()<$F$1,_xll.dNormalDev($C$3,$D$3),0) -> 0
A27: grower6 | B27: 1.068230823 | C27: 0.08698917266 | G27: 4 | H27: 0.4 | I27: 0.004967045092 | J27: 0.02438173271 | K27: 0.03870691655 | L27: 0.04259225279 | M27: 0.02130385073 | N27: 0.02529471335 | O27: 0.007863045367 | P27: 0.007967028057 | Q27: 0.008023663901 | R27: 0.03544754562 | S27: 0 | T27: 0 | V27: =SUM(T84:T103) -> 0 | X27: =I12*AVERAGE($L24:$L522) -> 0 | Y27: 0 | Z27: 0 | AA27: 0 | AB27: 0 | AC27: -0.002907834078 | AD27: 0.01146861687 | AE27: 0 | AF27: -0.00771814274 | AG27: 0.005194014366 | AJ27: =IF(RAND()<$F$1,_xll.dNormalDev($C$3,$D$3),0) -> 0 | AK27: =IF(RAND()<$F$1,_xll.dNormalDev($C$3,$D$3),0) -> 0 | AL27: =IF(RAND()<$F$1,_xll.dNormalDev($C$3,$D$3),0) -> -0.009399898465 | AM27: 0 | AN27: =IF(RAND()<$F$1,_xll.dNormalDev($C$3,$D$3),0) -> 0 | AO27: =IF(RAND()<$F$1,_xll.dNormalDev($C$3,$D$3),0) -> 0 | AP27: =IF(RAND()<$F$1,_xll.dNormalDev($C$3,$D$3),0) -> 0 | AQ27: =IF(RAND()<$F$1,_xll.dNormalDev($C$3,$D$3),0) -> -0.00681999888 | AR27: =IF(RAND()<$F$1,_xll.dNormalDev($C$3,$D$3),0) -> 0 | AS27: =IF(RAND()<$F$1,_xll.dNormalDev($C$3,$D$3),0) -> 0 | BI27: 5 | BK27: =_xll.dRandReal($C$1,$D$1) -> 0.03321598682 | BL27: =_xll.dNormalDev($C$2,$D$2) -> 0.06187093885 | BM27: =_xll.dNormalDev($C$4,$D$4) -> 1.070354028 | BN27: 1 | BO27: =_xll.dRandInt($C$6,BI27*$BO$6) -> 1 | BP27: =_xll.dRandInt($C$7,$D$7) -> 15 | BQ27: =IF(RAND()<$F$1,_xll.dNormalDev($C$3-((1-(501-$BO27)/500)/$BQ$21),$D$3),0) -> 0 | BR27: =IF(RAND()<$F$1,_xll.dNormalDev($C$3-((1-(501-$BO27)/500)/$BQ$21),$D$3),0) -> 0 | BS27: =IF(RAND()<$F$1,_xll.dNormalDev($C$3-((1-(501-$BO27)/500)/$BQ$21),$D$3),0) -> 0 | BT27: =IF(RAND()<$F$1,_xll.dNormalDev($C$3-((1-(501-$BO27)/500)/$BQ$21),$D$3),0) -> 0 | BU27: =IF(RAND()<$F$1,_xll.dNormalDev($C$3-((1-(501-$BO27)/500)/$BQ$21),$D$3),0) -> 0.008205280072 | BV27: =IF(RAND()<$F$1,_xll.dNormalDev($C$3-((1-(501-$BO27)/500)/$BQ$21),$D$3),0) -> 0 | BW27: =IF(RAND()<$F$1,_xll.dNormalDev($C$3-((1-(501-$BO27)/500)/$BQ$21),$D$3),0) -> 0 | BX27: =IF(RAND()<$F$1,_xll.dNormalDev($C$3-((1-(501-$BO27)/500)/$BQ$21),$D$3),0) -> 0 | BY27: =IF(RAND()<$F$1,_xll.dNormalDev($C$3-((1-(501-$BO27)/500)/$BQ$21),$D$3),0) -> 0 | BZ27: =IF(RAND()<$F$1,_xll.dNormalDev($C$3-((1-(501-$BO27)/500)/$BQ$21),$D$3),0) -> 0 | CC27: =_xll.dRandReal($C$1,$D$1) -> 0.007584421511 | CD27: =_xll.dNormalDev($C$2,$D$2) -> 0.06322130024 | CE27: =_xll.dNormalDev($C$4,$D$4) -> 0.9246236012 | CF27: 1 | CG27: =_xll.dRandInt($C$6,CA27*$BO$6) -> 1 | CH27: =_xll.dRandInt($C$7,$D$7) -> 24 | CI27: =IF(RAND()<$F$1,_xll.dNormalDev($C$3,$D$3),0) -> 0 | CJ27: =IF(RAND()<$F$1,_xll.dNormalDev($C$3,$D$3),0) -> 0 | CK27: =IF(RAND()<$F$1,_xll.dNormalDev($C$3,$D$3),0) -> 0 | CL27: =IF(RAND()<$F$1,_xll.dNormalDev($C$3,$D$3),0) -> 0 | CM27: 0 | CN27: =IF(RAND()<$F$1,_xll.dNormalDev($C$3,$D$3),0) -> 0 | CO27: =IF(RAND()<$F$1,_xll.dNormalDev($C$3,$D$3),0) -> -0.03774978521 | CP27: =IF(RAND()<$F$1,_xll.dNormalDev($C$3,$D$3),0) -> 0 | CQ27: =IF(RAND()<$F$1,_xll.dNormalDev($C$3,$D$3),0) -> 0 | CR27: =IF(RAND()<$F$1,_xll.dNormalDev($C$3,$D$3),0) -> 0
A28: grower7 | B28: 0.7460262832 | C28: 0.007863045367 | G28: 5 | H28: 0.5 | I28: 0.005223295074 | J28: 0.02555151236 | K28: 0.0406874337 | L28: 0.04434828972 | M28: 0.02130385073 | N28: 0.02529471335 | O28: 0.007863045367 | P28: 0.007967028057 | Q28: 0.008023663901 | R28: 0.03544754562 | S28: 0 | T28: 0 | V28: =SUM(T104:T123) -> 0 | X28: =I14*AVERAGE($N24:$N522) -> 0 | Y28: 0 | Z28: 0 | AA28: 0 | AB28: 0 | AC28: 0 | AD28: -0.02166528578 | AE28: 0 | AF28: 0 | AG28: 0 | AJ28: =IF(RAND()<$F$1,_xll.dNormalDev($C$3,$D$3),0) -> 0 | AK28: =IF(RAND()<$F$1,_xll.dNormalDev($C$3,$D$3),0) -> 0.00129898678 | AL28: =IF(RAND()<$F$1,_xll.dNormalDev($C$3,$D$3),0) -> 0 | AM28: =IF(RAND()<$F$1,_xll.dNormalDev($C$3,$D$3),0) -> 0 | AN28: 0 | AO28: =IF(RAND()<$F$1,_xll.dNormalDev($C$3,$D$3),0) -> 0 | AP28: =IF(RAND()<$F$1,_xll.dNormalDev($C$3,$D$3),0) -> 0 | AQ28: =IF(RAND()<$F$1,_xll.dNormalDev($C$3,$D$3),0) -> -0.03108031842 | AR28: =IF(RAND()<$F$1,_xll.dNormalDev($C$3,$D$3),0) -> 0 | AS28: =IF(RAND()<$F$1,_xll.dNormalDev($C$3,$D$3),0) -> 0 | BI28: 6 | BK28: =_xll.dRandReal($C$1,$D$1) -> 0.03285677723 | BL28: =_xll.dNormalDev($C$2,$D$2) -> 0.03954494989 | BM28: =_xll.dNormalDev($C$4,$D$4) -> 0.988366089 | BN28: 1 | BO28: =_xll.dRandInt($C$6,BI28*$BO$6) -> 132 | BP28: =_xll.dRandInt($C$7,$D$7) -> 23 | BQ28: =IF(RAND()<$F$1,_xll.dNormalDev($C$3-((1-(501-$BO28)/500)/$BQ$21),$D$3),0) -> 0 | BR28: =IF(RAND()<$F$1,_xll.dNormalDev($C$3-((1-(501-$BO28)/500)/$BQ$21),$D$3),0) -> -0.01348505921 | BS28: =IF(RAND()<$F$1,_xll.dNormalDev($C$3-((1-(501-$BO28)/500)/$BQ$21),$D$3),0) -> 0 | BT28: =IF(RAND()<$F$1,_xll.dNormalDev($C$3-((1-(501-$BO28)/500)/$BQ$21),$D$3),0) -> -0.004973787522 | BU28: =IF(RAND()<$F$1,_xll.dNormalDev($C$3-((1-(501-$BO28)/500)/$BQ$21),$D$3),0) -> 0 | BV28: =IF(RAND()<$F$1,_xll.dNormalDev($C$3-((1-(501-$BO28)/500)/$BQ$21),$D$3),0) -> 0 | BW28: =IF(RAND()<$F$1,_xll.dNormalDev($C$3-((1-(501-$BO28)/500)/$BQ$21),$D$3),0) -> 0 | BX28: =IF(RAND()<$F$1,_xll.dNormalDev($C$3-((1-(501-$BO28)/500)/$BQ$21),$D$3),0) -> 0 | BY28: =IF(RAND()<$F$1,_xll.dNormalDev($C$3-((1-(501-$BO28)/500)/$BQ$21),$D$3),0) -> 0 | BZ28: =IF(RAND()<$F$1,_xll.dNormalDev($C$3-((1-(501-$BO28)/500)/$BQ$21),$D$3),0) -> 0 | CC28: =_xll.dRandReal($C$1,$D$1) -> 0.008637171483 | CD28: =_xll.dNormalDev($C$2,$D$2) -> 0.05861920249 | CE28: =_xll.dNormalDev($C$4,$D$4) -> 1.166948839 | CF28: 1 | CG28: =_xll.dRandInt($C$6,CA28*$BO$6) -> 1 | CH28: =_xll.dRandInt($C$7,$D$7) -> 16 | CI28: =IF(RAND()<$F$1,_xll.dNormalDev($C$3,$D$3),0) -> 0 | CJ28: =IF(RAND()<$F$1,_xll.dNormalDev($C$3,$D$3),0) -> 0 | CK28: =IF(RAND()<$F$1,_xll.dNormalDev($C$3,$D$3),0) -> 0 | CL28: =IF(RAND()<$F$1,_xll.dNormalDev($C$3,$D$3),0) -> 0 | CM28: =IF(RAND()<$F$1,_xll.dNormalDev($C$3,$D$3),0) -> 0.01697896698 | CN28: 0 | CO28: =IF(RAND()<$F$1,_xll.dNormalDev($C$3,$D$3),0) -> 0 | CP28: =IF(RAND()<$F$1,_xll.dNormalDev($C$3,$D$3),0) -> 0 | CQ28: =IF(RAND()<$F$1,_xll.dNormalDev($C$3,$D$3),0) -> 0 | CR28: =IF(RAND()<$F$1,_xll.dNormalDev($C$3,$D$3),0) -> 0
A29: grower8 | B29: 1.383886444 | C29: 0.007967028057 | G29: 6 | H29: 0.6 | I29: 0.005492662024 | J29: 0.02677594713 | K29: 0.04276511055 | L29: 0.0461729958 | M29: 0.02130385073 | N29: 0.02529471335 | O29: 0.007863045367 | P29: 0.007967028057 | Q29: 0.008023663901 | R29: 0.03544754562 | S29: 0 | T29: 0 | V29: =SUM(T124:T143) -> 0 | X29: =I15*AVERAGE($O24:$O522) -> 0.009449877764 | Y29: 0 | Z29: 0 | AA29: 0 | AB29: 0 | AC29: 0.01725076868 | AD29: 0 | AE29: 0 | AF29: 0 | AG29: -0.003385271694 | AJ29: =IF(RAND()<$F$1,_xll.dNormalDev($C$3,$D$3),0) -> 0 | AK29: =IF(RAND()<$F$1,_xll.dNormalDev($C$3,$D$3),0) -> 0 | AL29: =IF(RAND()<$F$1,_xll.dNormalDev($C$3,$D$3),0) -> 0 | AM29: =IF(RAND()<$F$1,_xll.dNormalDev($C$3,$D$3),0) -> 0 | AN29: =IF(RAND()<$F$1,_xll.dNormalDev($C$3,$D$3),0) -> 0 | AO29: 0 | AP29: =IF(RAND()<$F$1,_xll.dNormalDev($C$3,$D$3),0) -> 0 | AQ29: =IF(RAND()<$F$1,_xll.dNormalDev($C$3,$D$3),0) -> 0 | AR29: =IF(RAND()<$F$1,_xll.dNormalDev($C$3,$D$3),0) -> -0.0008384433093 | AS29: =IF(RAND()<$F$1,_xll.dNormalDev($C$3,$D$3),0) -> 0 | BI29: 7 | BK29: =_xll.dRandReal($C$1,$D$1) -> 0.04344365089 | BL29: =_xll.dNormalDev($C$2,$D$2) -> 0.05079187988 | BM29: =_xll.dNormalDev($C$4,$D$4) -> 0.9509197949 | BN29: 1 | BO29: =_xll.dRandInt($C$6,BI29*$BO$6) -> 188 | BP29: =_xll.dRandInt($C$7,$D$7) -> 17 | BQ29: =IF(RAND()<$F$1,_xll.dNormalDev($C$3-((1-(501-$BO29)/500)/$BQ$21),$D$3),0) -> 0 | BR29: =IF(RAND()<$F$1,_xll.dNormalDev($C$3-((1-(501-$BO29)/500)/$BQ$21),$D$3),0) -> 0 | BS29: =IF(RAND()<$F$1,_xll.dNormalDev($C$3-((1-(501-$BO29)/500)/$BQ$21),$D$3),0) -> 0 | BT29: =IF(RAND()<$F$1,_xll.dNormalDev($C$3-((1-(501-$BO29)/500)/$BQ$21),$D$3),0) -> 0 | BU29: =IF(RAND()<$F$1,_xll.dNormalDev($C$3-((1-(501-$BO29)/500)/$BQ$21),$D$3),0) -> 0 | BV29: =IF(RAND()<$F$1,_xll.dNormalDev($C$3-((1-(501-$BO29)/500)/$BQ$21),$D$3),0) -> 0 | BW29: =IF(RAND()<$F$1,_xll.dNormalDev($C$3-((1-(501-$BO29)/500)/$BQ$21),$D$3),0) -> 0 | BX29: =IF(RAND()<$F$1,_xll.dNormalDev($C$3-((1-(501-$BO29)/500)/$BQ$21),$D$3),0) -> 0 | BY29: =IF(RAND()<$F$1,_xll.dNormalDev($C$3-((1-(501-$BO29)/500)/$BQ$21),$D$3),0) -> -0.01080474736 | BZ29: =IF(RAND()<$F$1,_xll.dNormalDev($C$3-((1-(501-$BO29)/500)/$BQ$21),$D$3),0) -> 0 | CC29: =_xll.dRandReal($C$1,$D$1) -> 0.01938420058 | CD29: =_xll.dNormalDev($C$2,$D$2) -> 0.05017762132 | CE29: =_xll.dNormalDev($C$4,$D$4) -> 0.79335223 | CF29: 1 | CG29: =_xll.dRandInt($C$6,CA29*$BO$6) -> 1 | CH29: =_xll.dRandInt($C$7,$D$7) -> 11 | CI29: =IF(RAND()<$F$1,_xll.dNormalDev($C$3,$D$3),0) -> -0.03526167482 | CJ29: =IF(RAND()<$F$1,_xll.dNormalDev($C$3,$D$3),0) -> 0.0136139113 | CK29: =IF(RAND()<$F$1,_xll.dNormalDev($C$3,$D$3),0) -> 0 | CL29: =IF(RAND()<$F$1,_xll.dNormalDev($C$3,$D$3),0) -> 0 | CM29: =IF(RAND()<$F$1,_xll.dNormalDev($C$3,$D$3),0) -> 0.00794203037 | CN29: =IF(RAND()<$F$1,_xll.dNormalDev($C$3,$D$3),0) -> 0.01536125677 | CO29: 0 | CP29: =IF(RAND()<$F$1,_xll.dNormalDev($C$3,$D$3),0) -> 0 | CQ29: =IF(RAND()<$F$1,_xll.dNormalDev($C$3,$D$3),0) -> 0 | CR29: =IF(RAND()<$F$1,_xll.dNormalDev($C$3,$D$3),0) -> 0
A30: grower9 | B30: 1.060974087 | C30: 0.02200066064 | G30: 7 | H30: 0.7 | I30: 0.005775806486 | J30: 0.02805744685 | K30: 0.04494427683 | L30: 0.04806874393 | M30: 0.02130385073 | N30: 0.02529471335 | O30: 0.007863045367 | P30: 0.007967028057 | Q30: 0.008023663901 | R30: 0.03544754562 | S30: 0 | T30: 0 | V30: =SUM(T144:T163) -> 0 | W30: =SLOPE(V28:V33,U28:U33) ->  | X30: =I16*AVERAGE($P24:$P522) -> 0 | Y30: 0 | Z30: 0 | AA30: 0 | AB30: 0 | AC30: -0.0004529552945 | AD30: 0 | AE30: 0 | AF30: 0.006195886159 | AG30: -0.01328332897 | AJ30: =IF(RAND()<$F$1,_xll.dNormalDev($C$3,$D$3),0) -> 0 | AK30: =IF(RAND()<$F$1,_xll.dNormalDev($C$3,$D$3),0) -> 0 | AL30: =IF(RAND()<$F$1,_xll.dNormalDev($C$3,$D$3),0) -> 0 | AM30: =IF(RAND()<$F$1,_xll.dNormalDev($C$3,$D$3),0) -> 0 | AN30: =IF(RAND()<$F$1,_xll.dNormalDev($C$3,$D$3),0) -> 0 | AO30: =IF(RAND()<$F$1,_xll.dNormalDev($C$3,$D$3),0) -> 0 | AP30: 0 | AQ30: =IF(RAND()<$F$1,_xll.dNormalDev($C$3,$D$3),0) -> 0 | AR30: =IF(RAND()<$F$1,_xll.dNormalDev($C$3,$D$3),0) -> 0 | AS30: =IF(RAND()<$F$1,_xll.dNormalDev($C$3,$D$3),0) -> 0 | BI30: 8 | BK30: =_xll.dRandReal($C$1,$D$1) -> 0.04251499324 | BL30: =_xll.dNormalDev($C$2,$D$2) -> 0.05127478902 | BM30: =_xll.dNormalDev($C$4,$D$4) -> 1.11842485 | BN30: 1 | BO30: =_xll.dRandInt($C$6,BI30*$BO$6) -> 179 | BP30: =_xll.dRandInt($C$7,$D$7) -> 18 | BQ30: =IF(RAND()<$F$1,_xll.dNormalDev($C$3-((1-(501-$BO30)/500)/$BQ$21),$D$3),0) -> 0 | BR30: =IF(RAND()<$F$1,_xll.dNormalDev($C$3-((1-(501-$BO30)/500)/$BQ$21),$D$3),0) -> 0 | BS30: =IF(RAND()<$F$1,_xll.dNormalDev($C$3-((1-(501-$BO30)/500)/$BQ$21),$D$3),0) -> 0 | BT30: =IF(RAND()<$F$1,_xll.dNormalDev($C$3-((1-(501-$BO30)/500)/$BQ$21),$D$3),0) -> 0 | BU30: =IF(RAND()<$F$1,_xll.dNormalDev($C$3-((1-(501-$BO30)/500)/$BQ$21),$D$3),0) -> 0 | BV30: =IF(RAND()<$F$1,_xll.dNormalDev($C$3-((1-(501-$BO30)/500)/$BQ$21),$D$3),0) -> 0 | BW30: =IF(RAND()<$F$1,_xll.dNormalDev($C$3-((1-(501-$BO30)/500)/$BQ$21),$D$3),0) -> 0 | BX30: =IF(RAND()<$F$1,_xll.dNormalDev($C$3-((1-(501-$BO30)/500)/$BQ$21),$D$3),0) -> 0 | BY30: =IF(RAND()<$F$1,_xll.dNormalDev($C$3-((1-(501-$BO30)/500)/$BQ$21),$D$3),0) -> 0 | BZ30: =IF(RAND()<$F$1,_xll.dNormalDev($C$3-((1-(501-$BO30)/500)/$BQ$21),$D$3),0) -> 0 | CC30: =_xll.dRandReal($C$1,$D$1) -> 0.04530438281 | CD30: =_xll.dNormalDev($C$2,$D$2) -> 0.0462412349 | CE30: =_xll.dNormalDev($C$4,$D$4) -> 1.121281188 | CF30: 1 | CG30: =_xll.dRandInt($C$6,CA30*$BO$6) -> 1 | CH30: =_xll.dRandInt($C$7,$D$7) -> 22 | CI30: =IF(RAND()<$F$1,_xll.dNormalDev($C$3,$D$3),0) -> 0 | CJ30: =IF(RAND()<$F$1,_xll.dNormalDev($C$3,$D$3),0) -> 0 | CK30: =IF(RAND()<$F$1,_xll.dNormalDev($C$3,$D$3),0) -> 0 | CL30: =IF(RAND()<$F$1,_xll.dNormalDev($C$3,$D$3),0) -> 0 | CM30: =IF(RAND()<$F$1,_xll.dNormalDev($C$3,$D$3),0) -> 0.003377543413 | CN30: =IF(RAND()<$F$1,_xll.dNormalDev($C$3,$D$3),0) -> 0 | CO30: =IF(RAND()<$F$1,_xll.dNormalDev($C$3,$D$3),0) -> 0 | CP30: 0 | CQ30: =IF(RAND()<$F$1,_xll.dNormalDev($C$3,$D$3),0) -> 0 | CR30: =IF(RAND()<$F$1,_xll.dNormalDev($C$3,$D$3),0) -> 0
A31: grower10 | B31: 0.1856189289 | C31: 0.03544754562 | D31: emerg | G31: 8 | H31: 0.8 | I31: 0.006073421122 | J31: 0.02939851359 | K31: 0.04722940961 | L31: 0.05003796293 | M31: 0.02130385073 | N31: 0.02529471335 | O31: 0.007863045367 | P31: 0.007967028057 | Q31: 0.008023663901 | R31: 0.03544754562 | S31: 0 | T31: 0 | V31: =SUM(T164:T183) -> 0 | X31: =I17*AVERAGE($Q24:$Q522) -> -0.01763836955 | Y31: 0 | Z31: 0 | AA31: 0 | AB31: 0 | AC31: 0 | AD31: 0 | AE31: 0 | AF31: 0 | AG31: 0 | AJ31: =IF(RAND()<$F$1,_xll.dNormalDev($C$3,$D$3),0) -> 0 | AK31: =IF(RAND()<$F$1,_xll.dNormalDev($C$3,$D$3),0) -> 0 | AL31: =IF(RAND()<$F$1,_xll.dNormalDev($C$3,$D$3),0) -> 0.02159507354 | AM31: =IF(RAND()<$F$1,_xll.dNormalDev($C$3,$D$3),0) -> 0 | AN31: =IF(RAND()<$F$1,_xll.dNormalDev($C$3,$D$3),0) -> 0 | AO31: =IF(RAND()<$F$1,_xll.dNormalDev($C$3,$D$3),0) -> 0 | AP31: =IF(RAND()<$F$1,_xll.dNormalDev($C$3,$D$3),0) -> 0 | AQ31: 0 | AR31: =IF(RAND()<$F$1,_xll.dNormalDev($C$3,$D$3),0) -> 0 | AS31: =IF(RAND()<$F$1,_xll.dNormalDev($C$3,$D$3),0) -> 0 | BI31: 9 | BK31: =_xll.dRandReal($C$1,$D$1) -> 0.04785119251 | BL31: =_xll.dNormalDev($C$2,$D$2) -> 0.04166027237 | BM31: =_xll.dNormalDev($C$4,$D$4) -> 1.025110647 | BN31: 1 | BO31: =_xll.dRandInt($C$6,BI31*$BO$6) -> 223 | BP31: =_xll.dRandInt($C$7,$D$7) -> 18 | BQ31: =IF(RAND()<$F$1,_xll.dNormalDev($C$3-((1-(501-$BO31)/500)/$BQ$21),$D$3),0) -> 0 | BR31: =IF(RAND()<$F$1,_xll.dNormalDev($C$3-((1-(501-$BO31)/500)/$BQ$21),$D$3),0) -> 0 | BS31: =IF(RAND()<$F$1,_xll.dNormalDev($C$3-((1-(501-$BO31)/500)/$BQ$21),$D$3),0) -> 0 | BT31: =IF(RAND()<$F$1,_xll.dNormalDev($C$3-((1-(501-$BO31)/500)/$BQ$21),$D$3),0) -> 0 | BU31: =IF(RAND()<$F$1,_xll.dNormalDev($C$3-((1-(501-$BO31)/500)/$BQ$21),$D$3),0) -> 0 | BV31: =IF(RAND()<$F$1,_xll.dNormalDev($C$3-((1-(501-$BO31)/500)/$BQ$21),$D$3),0) -> 0 | BW31: =IF(RAND()<$F$1,_xll.dNormalDev($C$3-((1-(501-$BO31)/500)/$BQ$21),$D$3),0) -> 0 | BX31: =IF(RAND()<$F$1,_xll.dNormalDev($C$3-((1-(501-$BO31)/500)/$BQ$21),$D$3),0) -> 0 | BY31: =IF(RAND()<$F$1,_xll.dNormalDev($C$3-((1-(501-$BO31)/500)/$BQ$21),$D$3),0) -> -0.01003826178 | BZ31: =IF(RAND()<$F$1,_xll.dNormalDev($C$3-((1-(501-$BO31)/500)/$BQ$21),$D$3),0) -> 0 | CC31: =_xll.dRandReal($C$1,$D$1) -> 0.02852611075 | CD31: =_xll.dNormalDev($C$2,$D$2) -> 0.04581109933 | CE31: =_xll.dNormalDev($C$4,$D$4) -> 1.168502743 | CF31: 1 | CG31: =_xll.dRandInt($C$6,CA31*$BO$6) -> 1 | CH31: =_xll.dRandInt($C$7,$D$7) -> 23 | CI31: =IF(RAND()<$F$1,_xll.dNormalDev($C$3,$D$3),0) -> 0 | CJ31: =IF(RAND()<$F$1,_xll.dNormalDev($C$3,$D$3),0) -> 0 | CK31: =IF(RAND()<$F$1,_xll.dNormalDev($C$3,$D$3),0) -> 0 | CL31: =IF(RAND()<$F$1,_xll.dNormalDev($C$3,$D$3),0) -> 0 | CM31: =IF(RAND()<$F$1,_xll.dNormalDev($C$3,$D$3),0) -> 0.01288228842 | CN31: =IF(RAND()<$F$1,_xll.dNormalDev($C$3,$D$3),0) -> 0.01065610898 | CO31: =IF(RAND()<$F$1,_xll.dNormalDev($C$3,$D$3),0) -> 0 | CP31: =IF(RAND()<$F$1,_xll.dNormalDev($C$3,$D$3),0) -> 0 | CQ31: 0 | CR31: =IF(RAND()<$F$1,_xll.dNormalDev($C$3,$D$3),0) -> 0
A32: avg | B32: =AVERAGE(I24:R522) -> 0.5313971436 | D32: =K24 -> 0.03330721903 | G32: 9 | H32: 0.9 | I32: 0.006386232144 | J32: 0.03080174374 | K32: 0.04962513343 | L32: 0.05208313654 | M32: 0.02130385073 | N32: 0.02529471335 | O32: 0.007863045367 | P32: 0.007967028057 | Q32: 0.008023663901 | R32: 0.03544754562 | S32: 0 | T32: 0 | V32: =SUM(T184:T203) -> 0 | X32: =I18*AVERAGE($R24:$R522) -> 0 | Y32: 0 | Z32: 0 | AA32: 0 | AB32: 0 | AC32: 0 | AD32: 0 | AE32: 0 | AF32: 0 | AG32: 0 | AJ32: =IF(RAND()<$F$1,_xll.dNormalDev($C$3,$D$3),0) -> 0 | AK32: =IF(RAND()<$F$1,_xll.dNormalDev($C$3,$D$3),0) -> 0 | AL32: =IF(RAND()<$F$1,_xll.dNormalDev($C$3,$D$3),0) -> 0.01313928093 | AM32: =IF(RAND()<$F$1,_xll.dNormalDev($C$3,$D$3),0) -> 0 | AN32: =IF(RAND()<$F$1,_xll.dNormalDev($C$3,$D$3),0) -> 0 | AO32: =IF(RAND()<$F$1,_xll.dNormalDev($C$3,$D$3),0) -> 0 | AP32: =IF(RAND()<$F$1,_xll.dNormalDev($C$3,$D$3),0) -> -0.02245972629 | AQ32: =IF(RAND()<$F$1,_xll.dNormalDev($C$3,$D$3),0) -> 0 | AR32: 0 | AS32: =IF(RAND()<$F$1,_xll.dNormalDev($C$3,$D$3),0) -> 0 | BI32: 10 | BK32: =_xll.dRandReal($C$1,$D$1) -> 0.04067054061 | BL32: =_xll.dNormalDev($C$2,$D$2) -> 0.04062260315 | BM32: =_xll.dNormalDev($C$4,$D$4) -> 1.13147436 | BN32: 1 | BO32: =_xll.dRandInt($C$6,BI32*$BO$6) -> 115 | BP32: =_xll.dRandInt($C$7,$D$7) -> 17 | BQ32: =IF(RAND()<$F$1,_xll.dNormalDev($C$3-((1-(501-$BO32)/500)/$BQ$21),$D$3),0) -> -0.007191353603 | BR32: =IF(RAND()<$F$1,_xll.dNormalDev($C$3-((1-(501-$BO32)/500)/$BQ$21),$D$3),0) -> -0.01574514906 | BS32: =IF(RAND()<$F$1,_xll.dNormalDev($C$3-((1-(501-$BO32)/500)/$BQ$21),$D$3),0) -> 0 | BT32: =IF(RAND()<$F$1,_xll.dNormalDev($C$3-((1-(501-$BO32)/500)/$BQ$21),$D$3),0) -> -0.006448706457 | BU32: =IF(RAND()<$F$1,_xll.dNormalDev($C$3-((1-(501-$BO32)/500)/$BQ$21),$D$3),0) -> 0 | BV32: =IF(RAND()<$F$1,_xll.dNormalDev($C$3-((1-(501-$BO32)/500)/$BQ$21),$D$3),0) -> 0 | BW32: =IF(RAND()<$F$1,_xll.dNormalDev($C$3-((1-(501-$BO32)/500)/$BQ$21),$D$3),0) -> 0 | BX32: =IF(RAND()<$F$1,_xll.dNormalDev($C$3-((1-(501-$BO32)/500)/$BQ$21),$D$3),0) -> 0 | BY32: =IF(RAND()<$F$1,_xll.dNormalDev($C$3-((1-(501-$BO32)/500)/$BQ$21),$D$3),0) -> -0.007438342616 | BZ32: =IF(RAND()<$F$1,_xll.dNormalDev($C$3-((1-(501-$BO32)/500)/$BQ$21),$D$3),0) -> 0 | CC32: =_xll.dRandReal($C$1,$D$1) -> 0.03898847773 | CD32: =_xll.dNormalDev($C$2,$D$2) -> 0.03756919297 | CE32: =_xll.dNormalDev($C$4,$D$4) -> 1.153285482 | CF32: 1 | CG32: =_xll.dRandInt($C$6,CA32*$BO$6) -> 1 | CH32: =_xll.dRandInt($C$7,$D$7) -> 23 | CI32: =IF(RAND()<$F$1,_xll.dNormalDev($C$3,$D$3),0) -> 0 | CJ32: =IF(RAND()<$F$1,_xll.dNormalDev($C$3,$D$3),0) -> 0.01296340042 | CK32: =IF(RAND()<$F$1,_xll.dNormalDev($C$3,$D$3),0) -> 0 | CL32: =IF(RAND()<$F$1,_xll.dNormalDev($C$3,$D$3),0) -> 0 | CM32: =IF(RAND()<$F$1,_xll.dNormalDev($C$3,$D$3),0) -> 0 | CN32: =IF(RAND()<$F$1,_xll.dNormalDev($C$3,$D$3),0) -> 0 | CO32: =IF(RAND()<$F$1,_xll.dNormalDev($C$3,$D$3),0) -> 0 | CP32: =IF(RAND()<$F$1,_xll.dNormalDev($C$3,$D$3),0) -> 0 | CQ32: =IF(RAND()<$F$1,_xll.dNormalDev($C$3,$D$3),0) -> 0 | CR32: 0
A33: stdev | B33: =STDEV(I24:R522) -> 0.4240059415 | D33: =K44 -> 0.08887545434 | G33: 10 | H33: 1 | I33: 0.00671500081 | J33: 0.03226983007 | K33: 0.05213621975 | L33: 0.05420680219 | M33: 0.02130385073 | N33: 0.02529471335 | O33: 0.007863045367 | P33: 0.007967028057 | Q33: 0.008023663901 | R33: 0.03544754562 | S33: 0 | T33: 0 | V33: =SUM(T104:T123) -> 0 | X33: =SUM(X24:X32) -> -0.008188491791 | Y33: 0 | Z33: -0.01031578474 | AA33: 0 | AB33: 0 | AC33: -0.008017209339 | AD33: -0.01019666891 | AE33: 0.004214621405 | AF33: -0.00152225658 | AG33: -0.04236255397 | AJ33: =IF(RAND()<$F$1,_xll.dNormalDev($C$3,$D$3),0) -> 0 | AK33: =IF(RAND()<$F$1,_xll.dNormalDev($C$3,$D$3),0) -> 0 | AL33: =IF(RAND()<$F$1,_xll.dNormalDev($C$3,$D$3),0) -> 0 | AM33: =IF(RAND()<$F$1,_xll.dNormalDev($C$3,$D$3),0) -> 0 | AN33: =IF(RAND()<$F$1,_xll.dNormalDev($C$3,$D$3),0) -> 0 | AO33: =IF(RAND()<$F$1,_xll.dNormalDev($C$3,$D$3),0) -> -0.04750992497 | AP33: =IF(RAND()<$F$1,_xll.dNormalDev($C$3,$D$3),0) -> 0.003531435331 | AQ33: =IF(RAND()<$F$1,_xll.dNormalDev($C$3,$D$3),0) -> 0 | AR33: =IF(RAND()<$F$1,_xll.dNormalDev($C$3,$D$3),0) -> 0 | AS33: 0
D34: =K64 -> 0.2176983743 | G34: 11 | H34: 1.1 | I34: 0.007060524962 | J34: 0.03380556363 | K34: 0.05476758571 | L34: 0.05641154954 | M34: 0.02130385073 | N34: 0.02529471335 | O34: 0.007863045367 | P34: 0.007967028057 | Q34: 0.008023663901 | R34: 0.03544754562 | S34: 0 | T34: 0 | V34: =SUM(T124:T143) -> 0
A35: maxlevel | B35: =MAX(B22:B31) -> 1.383886444 | D35: =K84 -> 0.4469863476 | G35: 12 | H35: 1.2 | I35: 0.007423640627 | J35: 0.03541183553 | K35: 0.05752429207 | L35: 0.05870001867 | M35: 0.02130385073 | N35: 0.02529471335 | O35: 0.007863045367 | P35: 0.007967028057 | Q35: 0.008023663901 | R35: 0.03544754562 | S35: 0 | T35: 0 | V35: =SUM(T144:T163) -> 0 | W35: =IF(RAND()<poisson_parameter*model!K35,1,0) -> 0 | X35: =IF(RAND()<K24*$T$22,1,0) -> 0 | Y35: 1
A36: average endlevel | B36: =AVERAGE(endlevel10) -> 0.7746034753 | D36: =K104 -> 0.706382918 | G36: 13 | H36: 1.3 | I36: 0.007805223656 | J36: 0.03709163853 | K36: 0.06041154026 | L36: 0.06107489798 | M36: 0.02130385073 | N36: 0.02529471335 | O36: 0.007863045367 | P36: 0.007967028057 | Q36: 0.008023663901 | R36: 0.03544754562 | S36: 0 | T36: 0 | V36: =SUM(T164:T183) -> 0 | W36: =IF(RAND()<poisson_parameter*model!K36,1,0) -> 0 | X36: =IF(RAND()<K25*$T$22,1,0) -> 0 | Y36: 2 | BO36: =$C$3-BP36/50 -> 0 | BP36: =1-(501-BO23)/500 -> 0
A37: totsupport maxlevel | B37: =AG20 -> -43.1800489 | D37: =K124 -> 0.868846938 | G37: 14 | H37: 1.4 | I37: 0.008206191425 | J37: 0.03884806844 | K37: 0.06343466845 | L37: 0.06353892178 | M37: 0.02130385073 | N37: 0.02624833493 | O37: 0.007863045367 | P37: 0.007967028057 | Q37: 0.008023663901 | R37: 0.03544754562 | S37: 0 | T37: 0 | V37: =SUM(T184:T203) -> 0 | W37: =IF(RAND()<poisson_parameter*model!K37,1,0) -> 0 | X37: =IF(RAND()<(K26-$T$21)*$T$22*(1+SUM($X$35:X36)),1,0) -> 0 | Y37: 3 | BO37: =$C$3-BP37/50 -> 0 | BP37: =1-(501-BO24)/500 -> 0
A38: support maxlevel | B38: =my_lookup(B35,B22:B31,connectionsum) -> 0.008962096249 | D38: =K144 -> 0.9176130402 | G38: 15 | H38: 1.5 | I38: 0.008627504585 | J38: 0.04068432532 | K38: 0.06659914661 | L38: 0.0660948675 | M38: 0.02130385073 | N38: 0.02723457193 | O38: 0.007863045367 | P38: 0.007967028057 | Q38: 0.008023663901 | R38: 0.03544754562 | S38: 0 | T38: 0 | V38: =SUM(T204:T223) -> 0 | W38: =IF(RAND()<poisson_parameter*model!K38,1,0) -> 0 | X38: =IF(RAND()<(K27-$T$21)*$T$22*(1+pref_attach_on*SUM($X$35:X37)),1,0) -> 0 | Y38: 4 | Z38: =IF(AND(SUM($X$35:X37)=0,X38=1),Y38,"") ->  | AJ38: Average | AK38: Median | AL38: Minimum | AM38: Maximum | AN38: Perc 0.025 | AO38: Perc 0.975 | AP38: StDev | AQ38: Skewness | AR38: P value | AS38: # of simulations | BO38: =$C$3-BP38/50 -> -0.00352 | BP38: =1-(501-BO25)/500 -> 0.176
A39: correl sum and max | B39: =CORREL(connectionsum,maxlevel10) -> 0.679904044 | D39: =K164 -> 0.9157084876 | G39: 16 | H39: 1.6 | I39: 0.009070168858 | J39: 0.04260371439 | K39: 0.06991057032 | L39: 0.0687455525 | M39: 0.02130385073 | N39: 0.02825425905 | O39: 0.007863045367 | P39: 0.007967028057 | Q39: 0.008023663901 | R39: 0.03544754562 | S39: 0 | T39: 0 | V39: =SUM(T224:T243) -> 0 | W39: =IF(RAND()<poisson_parameter*model!K39,1,0) -> 0 | X39: =IF(RAND()<(K28^quadratic_condition*L28-$T$21)*$T$22*(1+pref_attach_on*SUM($X$35:X38)),1,0) -> 0 | Y39: 5 | Z39: =IF(AND(SUM($X$35:X38)=0,X39=1),Y39,"") ->  | AJ39: 2.238 | AK39: 2 | AL39: 0 | AM39: 6 | AN39: 0 | AO39: 5 | AP39: 1.261959224 | AQ39: 0.3192296336 | AR39: 0.574 | AS39: 500 | BO39: -0.00292 | BP39: 0.146
A40: correl carcap | B40: =CORREL(B22:B31,E10:E19) -> -0.514472696 | D40: =K184 -> 0.8959257915 | G40: 17 | H40: 1.7 | I40: 0.009535236885 | J40: 0.04460964667 | K40: 0.07337465333 | L40: 0.07149383051 | M40: 0.02130385073 | N40: 0.02930822814 | O40: 0.007863045367 | P40: 0.007967028057 | Q40: 0.008023663901 | R40: 0.03544754562 | S40: 0 | T40: 0 | V40: =SUM(T244:T263) -> 0 | W40: =IF(RAND()<poisson_parameter*model!K40,1,0) -> 0 | X40: =IF(RAND()<(K29^quadratic_condition*L29-$T$21)*$T$22*(1+pref_attach_on*SUM($X$35:X39)),1,0) -> 0 | Y40: 6 | Z40: =IF(AND(SUM($X$35:X39)=0,X40=1),Y40,"") ->  | AJ40: 2.308 | AK40: 2 | AL40: 0 | AM40: 6 | AN40: 0 | AO40: 5 | AP40: 1.280787583 | AQ40: 0.2423192205 | AR40: 0.628 | AS40: 500 | BO40: 0 | BP40: 0
A41: correl rate | B41: =CORREL(B22:B31,D10:D19) -> 0.311141504 | D41: =K204 -> 0.8546740211 | G41: 18 | H41: 1.8 | I41: 0.01002381012 | J41: 0.04670563928 | K41: 0.07699721879 | L41: 0.07434258765 | M41: 0.02130385073 | N41: 0.03039730574 | O41: 0.007863045367 | P41: 0.007967028057 | Q41: 0.008023663901 | R41: 0.03544754562 | S41: 0 | T41: 0 | V41: =SUM(T264:T283) -> 0 | W41: =IF(RAND()<poisson_parameter*model!K41,1,0) -> 0 | X41: =IF(RAND()<(K30^quadratic_condition*L30-$T$21)*$T$22*(1+pref_attach_on*SUM($X$35:X40)),1,0) -> 0 | Y41: 7 | Z41: =IF(AND(SUM($X$35:X40)=0,X41=1),Y41,"") ->  | AJ41: 2.27 | AK41: 2 | AL41: 0 | AM41: 7 | AN41: 0 | AO41: 5 | AP41: 1.239424199 | AQ41: 0.534992646 | AR41: 0.606 | AS41: 500 | BO41: -0.00524 | BP41: 0.262
D42: =K224 -> 0.771196089 | G42: 19 | H42: 1.9 | I42: 0.01053704076 | J42: 0.04889531543 | K42: 0.08078418891 | L42: 0.077294738 | M42: 0.02130385073 | N42: 0.03152231029 | O42: 0.007863045367 | P42: 0.007967028057 | Q42: 0.008023663901 | R42: 0.03544754562 | S42: 0 | T42: 0 | V42: =SUM(T284:T303) -> 0 | W42: =IF(RAND()<poisson_parameter*model!K42,1,0) -> 0 | X42: =IF(RAND()<(K31^quadratic_condition*L31-$T$21)*$T$22*(1+pref_attach_on*SUM($X$35:X41)),1,0) -> 0 | Y42: 8 | Z42: =IF(AND(SUM($X$35:X41)=0,X42=1),Y42,"") ->  | AJ42: 2.32 | AK42: 2 | AL42: 0 | AM42: 8 | AN42: 0 | AO42: 5 | AP42: 1.287211648 | AQ42: 0.4734749909 | AR42: 0.598 | AS42: 500 | BO42: -0.00748 | BP42: 0.374
D43: =E11 -> 1.15819088 | G43: 20 | H43: 2 | I43: 0.01107613374 | J43: 0.0511824039 | K43: 0.08474157309 | L43: 0.08035321865 | M43: 0.02130385073 | N43: 0.03268404921 | O43: 0.007863045367 | P43: 0.007967028057 | Q43: 0.008023663901 | R43: 0.03544754562 | S43: 0 | T43: 0 | V43: =SUM(T304:T323) -> 0 | W43: =IF(RAND()<poisson_parameter*model!K43,1,0) -> 0 | X43: =IF(RAND()<(K32^quadratic_condition*L32-$T$21)*$T$22*(1+pref_attach_on*SUM($X$35:X42)),1,0) -> 0 | Y43: 9 | Z43: =IF(AND(SUM($X$35:X42)=0,X43=1),Y43,"") ->  | AJ43: 2.264 | AK43: 2 | AL43: 0 | AM43: 7 | AN43: 0 | AO43: 5 | AP43: 1.254372712 | AQ43: 0.3781700279 | AR43: 0.628 | AS43: 500 | BO43: -0.00712 | BP43: 0.356
G44: 21 | H44: 2.1 | I44: 0.01164234875 | J44: 0.05357073821 | K44: 0.08887545434 | L44: 0.08352098439 | M44: 0.02130385073 | N44: 0.03388331571 | O44: 0.007863045367 | P44: 0.007967028057 | Q44: 0.008023663901 | R44: 0.03544754562 | S44: 0 | T44: 0 | V44: =SUM(T324:T343) -> 0 | W44: =IF(RAND()<poisson_parameter*model!K44,1,0) -> 0 | X44: =IF(RAND()<(K33^quadratic_condition*L33-$T$21)*$T$22*(1+pref_attach_on*SUM($X$35:X43)),1,0) -> 0 | Y44: 10 | Z44: =IF(AND(SUM($X$35:X43)=0,X44=1),Y44,"") ->  | AJ44: 2.274 | AK44: 2 | AL44: 0 | AM44: 6 | AN44: 0 | AO44: 5 | AP44: 1.364789104 | AQ44: 0.3646352869 | AR44: 0.62 | AS44: 500 | BO44: -0.00888 | BP44: 0.444
G45: 22 | H45: 2.2 | I45: 0.01223700224 | J45: 0.05606425518 | K45: 0.09319197386 | L45: 0.08680100172 | M45: 0.02130385073 | N45: 0.03512088538 | O45: 0.007863045367 | P45: 0.007967028057 | Q45: 0.008023663901 | R45: 0.03544754562 | S45: 0 | T45: 0 | V45: =SUM(T344:T363) -> 0 | W45: =IF(RAND()<poisson_parameter*model!K45,1,0) -> 0 | X45: =IF(RAND()<(K34^quadratic_condition*L34-$T$21)*$T$22*(1+pref_attach_on*SUM($X$35:X44)),1,0) -> 0 | Y45: 11 | Z45: =IF(AND(SUM($X$35:X44)=0,X45=1),Y45,"") ->  | AJ45: 2.286 | AK45: 2 | AL45: 0 | AM45: 7 | AN45: 0 | AO45: 5 | AP45: 1.278856892 | AQ45: 0.3993135887 | AR45: 0.594 | AS45: 500 | BO45: -0.00456 | BP45: 0.228
G46: 23 | H46: 2.3 | I46: 0.01286146958 | J46: 0.05866699301 | K46: 0.0976973137 | L46: 0.09019624253 | M46: 0.02130385073 | N46: 0.03639751252 | O46: 0.007863045367 | P46: 0.007967028057 | Q46: 0.008023663901 | R46: 0.03544754562 | S46: 0 | T46: 0 | V46: =SUM(T364:T383) -> 0 | W46: =IF(RAND()<poisson_parameter*model!K46,1,0) -> 0 | X46: =IF(RAND()<(K35^quadratic_condition*L35-$T$21)*$T$22*(1+pref_attach_on*SUM($X$35:X45)),1,0) -> 0 | Y46: 12 | Z46: =IF(AND(SUM($X$35:X45)=0,X46=1),Y46,"") ->  | AJ46: 2.29 | AK46: 2 | AL46: 0 | AM46: 7 | AN46: 0 | AO46: 5 | AP46: 1.24458748 | AQ46: 0.2445729401 | AR46: 0.608 | AS46: 500 | BO46: =$C$3-BP46/50 -> -0.0198 | BP46: 0.99
G47: 24 | H47: 2.4 | I47: 0.01351718711 | J47: 0.06138308875 | K47: 0.1023976774 | L47: 0.09370967706 | M47: 0.02130385073 | N47: 0.03771392628 | O47: 0.007863045367 | P47: 0.007967028057 | Q47: 0.008023663901 | R47: 0.03544754562 | S47: 0 | T47: 0 | V47: =SUM(T384:T403) -> 0 | W47: =IF(RAND()<poisson_parameter*model!K47,1,0) -> 0 | X47: =IF(RAND()<(K36^quadratic_condition*L36-$T$21)*$T$22*(1+pref_attach_on*SUM($X$35:X46)),1,0) -> 0 | Y47: 13 | Z47: =IF(AND(SUM($X$35:X46)=0,X47=1),Y47,"") ->  | AJ47: 2.22 | AK47: 2 | AL47: 0 | AM47: 7 | AN47: 0 | AO47: 5 | AP47: 1.287989843 | AQ47: 0.3976973316 | AR47: 0.62 | AS47: 500
G48: 25 | H48: 2.5 | I48: 0.01420565425 | J48: 0.06421677514 | K48: 0.1072992688 | L48: 0.09734426641 | M48: 0.02130385073 | N48: 0.03907082648 | O48: 0.007863045367 | P48: 0.007967028057 | Q48: 0.008023663901 | R48: 0.03544754562 | S48: 0 | T48: 0 | V48: =SUM(T404:T423) -> 0 | W48: =IF(RAND()<poisson_parameter*model!K48,1,0) -> 0 | X48: =IF(RAND()<(K37^quadratic_condition*L37-$T$21)*$T$22*(1+pref_attach_on*SUM($X$35:X47)),1,0) -> 0 | Y48: 14 | Z48: =IF(AND(SUM($X$35:X47)=0,X48=1),Y48,"") ->  | AJ48: 2.22 | AK48: 2 | AL48: 0 | AM48: 6 | AN48: 0 | AO48: 5 | AP48: 1.248486057 | AQ48: 0.3218897947 | AR48: 1 | AS48: 500
G49: 26 | H49: 2.6 | I49: 0.0149284357 | J49: 0.06717237674 | K49: 0.1124082678 | L49: 0.1011029544 | M49: 0.02130385073 | N49: 0.0404688793 | O49: 0.007863045367 | P49: 0.007967028057 | Q49: 0.008023663901 | R49: 0.03544754562 | S49: 0 | T49: 0 | V49: =SUM(T424:T463) -> 0 | W49: =IF(RAND()<poisson_parameter*model!K49,1,0) -> 0 | X49: =IF(RAND()<(K38^quadratic_condition*L38-$T$21)*$T$22*(1+pref_attach_on*SUM($X$35:X48)),1,0) -> 0 | Y49: 15 | Z49: =IF(AND(SUM($X$35:X48)=0,X49=1),Y49,"") ->  | AJ49: =AVERAGE(AJ39:AJ48) -> 2.269 | AP49: =AVERAGE(AP39:AP48) -> 1.274846474
G50: 27 | H50: 2.7 | I50: 0.01568716348 | J50: 0.07025430532 | K50: 0.1177308052 | L50: 0.1049886592 | M50: 0.02130385073 | N50: 0.04190871261 | O50: 0.007863045367 | P50: 0.007967028057 | Q50: 0.008023663901 | R50: 0.03544754562 | S50: 0 | T50: 0 | V50: =SUM(T464:T483) -> 0 | W50: =IF(RAND()<poisson_parameter*model!K50,1,0) -> 0 | X50: =IF(RAND()<(K39^quadratic_condition*L39-$T$21)*$T$22*(1+pref_attach_on*SUM($X$35:X49)),1,0) -> 0 | Y50: 16 | Z50: =IF(AND(SUM($X$35:X49)=0,X50=1),Y50,"") -> 
G51: 28 | H51: 2.8 | I51: 0.01648353913 | J51: 0.07346705442 | K51: 0.1232729338 | L51: 0.1090042634 | M51: 0.02130385073 | N51: 0.04339091114 | O51: 0.007863045367 | P51: 0.007967028057 | Q51: 0.008023663901 | R51: 0.03544754562 | S51: 0 | T51: 0 | V51: =SUM(T484:T503) -> 0 | W51: =IF(RAND()<poisson_parameter*model!K51,1,0) -> 0 | X51: =IF(RAND()<(K40^quadratic_condition*L40-$T$21)*$T$22*(1+pref_attach_on*SUM($X$35:X50)),1,0) -> 0 | Y51: 17 | Z51: =IF(AND(SUM($X$35:X50)=0,X51=1),Y51,"") ->  | AJ51: Average | AK51: Median | AL51: Minimum | AM51: Maximum | AN51: Perc 0.025 | AO51: Perc 0.975 | AP51: StDev | AQ51: Skewness | AR51: P value | AS51: # of simulations
G52: 29 | H52: 2.9 | I52: 0.01731933577 | J52: 0.07681519304 | K52: 0.1290405985 | L52: 0.113152605 | M52: 0.02130385073 | N52: 0.04491601145 | O52: 0.007863045367 | P52: 0.007967028057 | Q52: 0.008023663901 | R52: 0.03544754562 | S52: 0 | T52: 0 | V52: =SUM(T504:T523) -> 0 | W52: =IF(RAND()<poisson_parameter*model!K52,1,0) -> 0 | X52: =IF(RAND()<(K41^quadratic_condition*L41-$T$21)*$T$22*(1+pref_attach_on*SUM($X$35:X51)),1,0) -> 0 | Y52: 18 | Z52: =IF(AND(SUM($X$35:X51)=0,X52=1),Y52,"") ->  | AJ52: 2.222 | AK52: 2 | AL52: 0 | AM52: 6 | AN52: 0 | AO52: 5 | AP52: 1.333602075 | AQ52: 0.2840817038 | AR52: 1 | AS52: 1000
G53: 30 | H53: 3 | I53: 0.01819640019 | J53: 0.08030335846 | K53: 0.1350396026 | L53: 0.1174364663 | M53: 0.02130385073 | N53: 0.0464844966 | O53: 0.007863045367 | P53: 0.007967028057 | Q53: 0.008023663901 | R53: 0.03544754562 | S53: 0 | T53: 0 | W53: =IF(RAND()<poisson_parameter*model!K53,1,0) -> 0 | X53: =IF(RAND()<(K42^quadratic_condition*L42-$T$21)*$T$22*(1+pref_attach_on*SUM($X$35:X52)),1,0) -> 0 | Y53: 19 | Z53: =IF(AND(SUM($X$35:X52)=0,X53=1),Y53,"") ->  | AJ53: 2.303 | AK53: 2 | AL53: 0 | AM53: 7 | AN53: 0 | AO53: 5 | AP53: 1.372980727 | AQ53: 0.4151897123 | AR53: 1 | AS53: 1000
G54: 31 | H54: 3.1 | I54: 0.01911665488 | J54: 0.08393624798 | K54: 0.141275573 | L54: 0.1218585633 | M54: 0.02130385073 | N54: 0.04809679071 | O54: 0.007863045367 | P54: 0.007967028057 | Q54: 0.008445428264 | R54: 0.03544754562 | S54: 0 | T54: 0 | W54: =IF(RAND()<poisson_parameter*model!K54,1,0) -> 0 | X54: =IF(RAND()<(K43^quadratic_condition*L43-$T$21)*$T$22*(1+pref_attach_on*SUM($X$35:X53)),1,0) -> 0 | Y54: 20 | Z54: =IF(AND(SUM($X$35:X53)=0,X54=1),Y54,"") ->  | AJ54: 2.244 | AK54: 2 | AL54: 0 | AM54: 7 | AN54: 0 | AO54: 5 | AP54: 1.283008227 | AQ54: 0.5118277556 | AR54: 1 | AS54: 1000
G55: 32 | H55: 3.2 | I55: 0.0200818861 | J55: 0.0877186097 | K55: 0.1477539221 | L55: 0.1264215341 | M55: 0.02130385073 | N55: 0.04975325329 | O55: 0.007863045367 | P55: 0.007967028057 | Q55: 0.008888776435 | R55: 0.03544754562 | S55: 0 | T55: 0 | W55: =IF(RAND()<poisson_parameter*model!K55,1,0) -> 0 | X55: =IF(RAND()<(K44^quadratic_condition*L44-$T$21)*$T$22*(1+pref_attach_on*SUM($X$35:X54)),1,0) -> 0 | Y55: 21 | Z55: =IF(AND(SUM($X$35:X54)=0,X55=1),Y55,"") ->  | AJ55: 2.25 | AK55: 2 | AL55: 0 | AM55: 6 | AN55: 0 | AO55: 5 | AP55: 1.267717282 | AQ55: 0.299446234 | AR55: 1 | AS55: 1000
E56: =B22 -> 0.6986846936 | F56: =B24 -> 0.9197176206 | G56: 33 | H56: 3.3 | I56: 0.02109413004 | J56: 0.09165523216 | K56: 0.1544798089 | L56: 0.1311279263 | M56: 0.02130385073 | N56: 0.0514541734 | O56: 0.007863045367 | P56: 0.007967028057 | Q56: 0.009354757245 | R56: 0.03544754562 | S56: 0 | T56: 0 | W56: =IF(RAND()<poisson_parameter*model!K56,1,0) -> 0 | X56: =IF(RAND()<(K45^quadratic_condition*L45-$T$21)*$T$22*(1+pref_attach_on*SUM($X$35:X55)),1,0) -> 0 | Y56: 22 | Z56: =IF(AND(SUM($X$35:X55)=0,X56=1),Y56,"") ->  | AJ56: 2.225 | AK56: 2 | AL56: 0 | AM56: 6 | AN56: 0 | AO56: 5 | AP56: 1.279066461 | AQ56: 0.3328421035 | AR56: 1 | AS56: 1000
G57: 34 | H57: 3.4 | I57: 0.02215549829 | J57: 0.09575093282 | K57: 0.1614580961 | L57: 0.1359801849 | M57: 0.02130385073 | N57: 0.05319976374 | O57: 0.007863045367 | P57: 0.007967028057 | Q57: 0.009844465302 | R57: 0.03544754562 | S57: 0 | T57: 0 | W57: =IF(RAND()<poisson_parameter*model!K57,1,0) -> 0 | X57: =IF(RAND()<(K46^quadratic_condition*L46-$T$21)*$T$22*(1+pref_attach_on*SUM($X$35:X56)),1,0) -> 0 | Y57: 23 | Z57: =IF(AND(SUM($X$35:X56)=0,X57=1),Y57,"") ->  | AJ57: 2.211 | AK57: 2 | AL57: 0 | AM57: 7 | AN57: 0 | AO57: 5 | AP57: 1.279889494 | AQ57: 0.3959745748 | AR57: 1 | AS57: 1000
B58: 1 | C58: =TRANSPOSE(maxlevel10) -> 0.6986846936 | D58: =C58 -> 0.6986846936 | E58: within person corrleation endlevel | F58: within person corrleation gen factor | G58: 35 | H58: 3.5 | I58: 0.02326817894 | J58: 0.1000105454 | K58: 0.1686933058 | L58: 0.1409806389 | M58: 0.02130385073 | N58: 0.0549901546 | O58: 0.007863045367 | P58: 0.007967028057 | Q58: 0.01035904251 | R58: 0.03544754562 | S58: 0 | T58: 0 | W58: =IF(RAND()<poisson_parameter*model!K58,1,0) -> 0 | X58: =IF(RAND()<(K47^quadratic_condition*L47-$T$21)*$T$22*(1+pref_attach_on*SUM($X$35:X57)),1,0) -> 0 | Y58: 24 | Z58: =IF(AND(SUM($X$35:X57)=0,X58=1),Y58,"") ->  | AJ58: 2.243 | AK58: 2 | AL58: 0 | AM58: 7 | AN58: 0 | AO58: 5 | AP58: 1.287481498 | AQ58: 0.4311907651 | AR58: 1 | AS58: 1000
B59: 2 | C59: 1.064614547 | D59: =C68 -> 0.05197021459 | E59: =CORREL(I60:R60,endlevel10) -> -0.2742758934 | F59: =CORREL(I60:R60,$E$9:$E$18) -> 0.3249646074 | G59: 36 | H59: 3.6 | I59: 0.02443443731 | J59: 0.1044389059 | K59: 0.1761895739 | L59: 0.1461314873 | M59: 0.02130385073 | N59: 0.05682538769 | O59: 0.007863045367 | P59: 0.007967028057 | Q59: 0.01089967958 | R59: 0.03544754562 | S59: 0 | T59: 0 | W59: =IF(RAND()<poisson_parameter*model!K59,1,0) -> 0 | X59: =IF(RAND()<(K48^quadratic_condition*L48-$T$21)*$T$22*(1+pref_attach_on*SUM($X$35:X58)),1,0) -> 0 | Y59: 25 | Z59: =IF(AND(SUM($X$35:X58)=0,X59=1),Y59,"") ->  | AJ59: 2.204 | AK59: 2 | AL59: 0 | AM59: 8 | AN59: 0 | AO59: 5 | AP59: 1.289203648 | AQ59: 0.3994563208 | AR59: 1 | AS59: 1000
B60: 3 | C60: 0.9197176206 | D60: =C59 -> 1.064614547 | E60: =CORREL(I80:R80,endlevel10) -> -0.2524100071 | F60: =CORREL(I80:R80,$E$9:$E$18) -> 0.3155721244 | G60: 37 | H60: 3.7 | I60: 0.02565661661 | J60: 0.1090408372 | K60: 0.183950602 | L60: 0.1514347856 | M60: 0.02130385073 | N60: 0.05870541008 | O60: 0.007863045367 | P60: 0.007967028057 | Q60: 0.01146761761 | R60: 0.03544754562 | S60: 0 | T60: 0 | W60: =IF(RAND()<poisson_parameter*model!K60,1,0) -> 0 | X60: =IF(RAND()<(K49^quadratic_condition*L49-$T$21)*$T$22*(1+pref_attach_on*SUM($X$35:X59)),1,0) -> 0 | Y60: 26 | Z60: =IF(AND(SUM($X$35:X59)=0,X60=1),Y60,"") ->  | AJ60: 2.27 | AK60: 2 | AL60: 0 | AM60: 6 | AN60: 0 | AO60: 5 | AP60: 1.255657866 | AQ60: 0.3133429148 | AR60: 1 | AS60: 1000
B61: 4 | C61: 0.9383112203 | D61: =C69 -> 0.04917718339 | E61: =CORREL(I100:R100,endlevel10) -> -0.2252625365 | F61: =CORREL(I100:R100,$E$9:$E$18) -> 0.2866990238 | G61: 38 | H61: 3.8 | I61: 0.02693713821 | J61: 0.1138211328 | K61: 0.1919796085 | L61: 0.1568924309 | M61: 0.02130385073 | N61: 0.060630068 | O61: 0.007863045367 | P61: 0.007967028057 | Q61: 0.01206414952 | R61: 0.03544754562 | S61: 0 | T61: 0 | W61: =IF(RAND()<poisson_parameter*model!K61,1,0) -> 0 | X61: =IF(RAND()<(K50^quadratic_condition*L50-$T$21)*$T$22*(1+pref_attach_on*SUM($X$35:X60)),1,0) -> 0 | Y61: 27 | Z61: =IF(AND(SUM($X$35:X60)=0,X61=1),Y61,"") ->  | AJ61: 2.297 | AK61: 2 | AL61: 0 | AM61: 6 | AN61: 0 | AO61: 5 | AP61: 1.284695077 | AQ61: 0.2534247724 | AR61: 1 | AS61: 1000
B62: 5 | C62: 1.079115219 | D62: =C60 -> 0.9197176206 | E62: =CORREL(I120:R120,endlevel10) -> -0.1809225594 | F62: =CORREL(I120:R120,$E$9:$E$18) -> 0.2307174934 | G62: 39 | H62: 3.9 | I62: 0.02827850174 | J62: 0.1187845386 | K62: 0.2002792782 | L62: 0.1625061473 | M62: 0.02130385073 | N62: 0.06259910083 | O62: 0.007863045367 | P62: 0.007967028057 | Q62: 0.01269062166 | R62: 0.03544754562 | S62: 0 | T62: 0 | W62: =IF(RAND()<poisson_parameter*model!K62,1,0) -> 0 | X62: =IF(RAND()<(K51^quadratic_condition*L51-$T$21)*$T$22*(1+pref_attach_on*SUM($X$35:X61)),1,0) -> 0 | Y62: 28 | Z62: =IF(AND(SUM($X$35:X61)=0,X62=1),Y62,"") ->  | AJ62: =AVERAGE(AJ52:AJ61) -> 2.2469 | AP62: =AVERAGE(AP52:AP61) -> 1.293330236
B63: 6 | C63: 1.068230823 | D63: =C70 -> 0.05390175647 | E63: =CORREL(I140:R140,endlevel10) -> -0.1269520383 | F63: =CORREL(I140:R140,$E$9:$E$18) -> 0.1663590641 | G63: 40 | H63: 4 | I63: 0.02968328475 | J63: 0.1239357339 | K63: 0.2088517118 | L63: 0.1682774706 | M63: 0.02130385073 | N63: 0.06461213514 | O63: 0.007863045367 | P63: 0.007967028057 | Q63: 0.01334843523 | R63: 0.03544754562 | S63: 0 | T63: 0 | W63: =IF(RAND()<poisson_parameter*model!K63,1,0) -> 0 | X63: =IF(RAND()<(K52^quadratic_condition*L52-$T$21)*$T$22*(1+pref_attach_on*SUM($X$35:X62)),1,0) -> 0 | Y63: 29 | Z63: =IF(AND(SUM($X$35:X62)=0,X63=1),Y63,"") -> 
B64: 7 | C64: 0.7460262832 | D64: =C61 -> 0.9383112203 | E64: =CORREL(I160:R160,endlevel10) -> -0.0754821933 | F64: =CORREL(I160:R160,$E$9:$E$18) -> 0.1226308042 | G64: 41 | H64: 4.1 | I64: 0.03115414205 | J64: 0.1292793103 | K64: 0.2176983743 | L64: 0.1742077333 | M64: 0.02130385073 | N64: 0.06666867894 | O64: 0.007863045367 | P64: 0.007967028057 | Q64: 0.01403904778 | R64: 0.03544754562 | S64: 0 | T64: 0 | W64: =IF(RAND()<poisson_parameter*model!K64,1,0) -> 0 | X64: =IF(RAND()<(K53^quadratic_condition*L53-$T$21)*$T$22*(1+pref_attach_on*SUM($X$35:X63)),1,0) -> 0 | Y64: 30 | Z64: =IF(AND(SUM($X$35:X63)=0,X64=1),Y64,"") -> 
A65: =rate10 -> 0.04917718339 | B65: 8 | C65: 1.383886444 | D65: =C71 -> 0.04327327733 | E65: =CORREL(I180:R180,endlevel10) -> -0.03558142813 | F65: =CORREL(I180:R180,$E$9:$E$18) -> 0.103427744 | G65: 42 | H65: 4.2 | I65: 0.03269380464 | J65: 0.1348197502 | K65: 0.2268200442 | L65: 0.1802980494 | M65: 0.02130385073 | N65: 0.06876811614 | O65: 0.007863045367 | P65: 0.007967028057 | Q65: 0.01476397465 | R65: 0.03544754562 | S65: 0 | T65: 0 | W65: =IF(RAND()<poisson_parameter*model!K65,1,0) -> 0 | X65: =IF(RAND()<(K54^quadratic_condition*L54-$T$21)*$T$22*(1+pref_attach_on*SUM($X$35:X64)),1,0) -> 0 | Y65: 31 | Z65: =IF(AND(SUM($X$35:X64)=0,X65=1),Y65,"") -> 
A66: 0.05390175647 | B66: 9 | C66: 1.060974087 | D66: =C62 -> 1.079115219 | E66: =CORREL(I200:R200,endlevel10) -> 0.003131055463 | F66: =CORREL(I200:R200,$E$9:$E$18) -> 0.09345686962 | G66: 43 | H66: 4.3 | I66: 0.03430507818 | J66: 0.1405614028 | K66: 0.2362167633 | L66: 0.1865492983 | M66: 0.02130385073 | N66: 0.07090970136 | O66: 0.007863045367 | P66: 0.007967028057 | Q66: 0.01552479035 | R66: 0.03544754562 | S66: 0 | T66: 0 | W66: =IF(RAND()<poisson_parameter*model!K66,1,0) -> 0 | X66: =IF(RAND()<(K55^quadratic_condition*L55-$T$21)*$T$22*(1+pref_attach_on*SUM($X$35:X65)),1,0) -> 0 | Y66: 32 | Z66: =IF(AND(SUM($X$35:X65)=0,X66=1),Y66,"") -> 
A67: 0.04327327733 | B67: 10 | C67: 0.1856189289 | D67: =C72 -> 0.05332185074 | E67: =CORREL(I220:R220,endlevel10) -> 0.06183482968 | F67: =CORREL(I220:R220,$E$9:$E$18) -> 0.06599526257 | G67: 44 | H67: 4.4 | I67: 0.03599084096 | J67: 0.14650846 | K67: 0.2458877873 | L67: 0.1929621104 | M67: 0.02130385073 | N67: 0.07309255509 | O67: 0.007863045367 | P67: 0.007967028057 | Q67: 0.0163231299 | R67: 0.03544754562 | S67: 0 | T67: 0 | W67: =IF(RAND()<poisson_parameter*model!K67,1,0) -> 0 | X67: =IF(RAND()<(K56^quadratic_condition*L56-$T$21)*$T$22*(1+pref_attach_on*SUM($X$35:X66)),1,0) -> 0 | Y67: 33 | Z67: =IF(AND(SUM($X$35:X66)=0,X67=1),Y67,"") -> 
A68: 0.05332185074 | B68: 1 | C68: =D9:D18 -> 0.05197021459 | D68: =C63 -> 1.068230823 | E68: =CORREL(I240:R240,endlevel10) -> 0.1439245809 | F68: =CORREL(I240:R240,$E$9:$E$18) -> -0.0281040501 | G68: 45 | H68: 4.5 | I68: 0.03775404132 | J68: 0.15266493 | K68: 0.2558315389 | L68: 0.1995368515 | M68: 0.02130385073 | N68: 0.07531565925 | O68: 0.007863045367 | P68: 0.007967028057 | Q68: 0.01716069014 | R68: 0.03544754562 | S68: 0 | T68: 0 | W68: =IF(RAND()<poisson_parameter*model!K68,1,0) -> 0 | X68: =IF(RAND()<(K57^quadratic_condition*L57-$T$21)*$T$22*(1+pref_attach_on*SUM($X$35:X67)),1,0) -> 0 | Y68: 34 | Z68: =IF(AND(SUM($X$35:X67)=0,X68=1),Y68,"") -> 
A69: 0.04020332672 | B69: 2 | C69: 0.04917718339 | D69: =C73 -> 0.04020332672 | E69: =CORREL(I260:R260,endlevel10) -> 0.2233549019 | F69: =CORREL(I260:R260,$E$9:$E$18) -> -0.1817552279 | G69: 46 | H69: 4.6 | I69: 0.03959769443 | J69: 0.1590346104 | K69: 0.2660455629 | L69: 0.2062736081 | M69: 0.02130385073 | N69: 0.0775778534 | O69: 0.007863045367 | P69: 0.007967028057 | Q69: 0.01803923089 | R69: 0.03544754562 | S69: 0 | T69: 0 | W69: =IF(RAND()<poisson_parameter*model!K69,1,0) -> 0 | X69: =IF(RAND()<(K58^quadratic_condition*L58-$T$21)*$T$22*(1+pref_attach_on*SUM($X$35:X68)),1,0) -> 0 | Y69: 35 | Z69: =IF(AND(SUM($X$35:X68)=0,X69=1),Y69,"") -> 
A70: 0.04652337804 | B70: 3 | C70: 0.05390175647 | D70: =C64 -> 0.7460262832 | E70: =CORREL(I280:R280,endlevel10) -> 0.3117291099 | F70: =CORREL(I280:R280,$E$9:$E$18) -> -0.28095943 | G70: 47 | H70: 4.7 | I70: 0.04152487854 | J70: 0.1656210597 | K70: 0.2765264843 | L70: 0.213172173 | M70: 0.02130385073 | N70: 0.0798778314 | O70: 0.007863045367 | P70: 0.007967028057 | Q70: 0.0189605761 | R70: 0.03544754562 | S70: 0 | T70: 0 | W70: =IF(RAND()<poisson_parameter*model!K70,1,0) -> 0 | X70: =IF(RAND()<(K59^quadratic_condition*L59-$T$21)*$T$22*(1+pref_attach_on*SUM($X$35:X69)),1,0) -> 0 | Y70: 36 | Z70: =IF(AND(SUM($X$35:X69)=0,X70=1),Y70,"") -> 
A71: 0.04417457431 | B71: 4 | C71: 0.04327327733 | D71: =C74 -> 0.04652337804 | E71: =CORREL(I300:R300,endlevel10) -> 0.4197395937 | F71: =CORREL(I300:R300,$E$9:$E$18) -> -0.2697936842 | G71: 48 | H71: 4.8 | I71: 0.04353873037 | J71: 0.1724275686 | K71: 0.2872699711 | L71: 0.2202320316 | M71: 0.02130385073 | N71: 0.08221413884 | O71: 0.007863045367 | P71: 0.007967028057 | Q71: 0.01992661489 | R71: 0.03544754562 | S71: 0 | T71: 0 | W71: =IF(RAND()<poisson_parameter*model!K71,1,0) -> 0 | X71: =IF(RAND()<(K60^quadratic_condition*L60-$T$21)*$T$22*(1+pref_attach_on*SUM($X$35:X70)),1,0) -> 0 | Y71: 37 | Z71: =IF(AND(SUM($X$35:X70)=0,X71=1),Y71,"") -> 
A72: 0.05410635021 | B72: 5 | C72: 0.05332185074 | D72: =C65 -> 1.383886444 | E72: =CORREL(I320:R320,endlevel10) -> 0.5490847286 | F72: =CORREL(I320:R320,$E$9:$E$18) -> -0.1804682386 | G72: 49 | H72: 4.9 | I72: 0.04564243986 | J72: 0.179457129 | K72: 0.2982707005 | L72: 0.2274523488 | M72: 0.02130385073 | N72: 0.08458517116 | O72: 0.007863045367 | P72: 0.007967028057 | Q72: 0.0209393024 | R72: 0.03544754562 | S72: 0 | T72: 0 | W72: =IF(RAND()<poisson_parameter*model!K72,1,0) -> 0 | X72: =IF(RAND()<(K61^quadratic_condition*L61-$T$21)*$T$22*(1+pref_attach_on*SUM($X$35:X71)),1,0) -> 0 | Y72: 38 | Z72: =IF(AND(SUM($X$35:X71)=0,X72=1),Y72,"") -> 
A73: 0.04623635354 | B73: 6 | C73: 0.04020332672 | D73: =C75 -> 0.04417457431 | E73: =CORREL(I340:R340,endlevel10) -> 0.7420263584 | F73: =CORREL(I340:R340,$E$9:$E$18) -> -0.05964989812 | G73: 50 | H73: 5 | I73: 0.047839244 | J73: 0.186712404 | K73: 0.3095223312 | L73: 0.2348319562 | M73: 0.02130385073 | N73: 0.08698917266 | O73: 0.007863045367 | P73: 0.007967028057 | Q73: 0.02200066064 | R73: 0.03544754562 | S73: 0 | T73: 0 | W73: =IF(RAND()<poisson_parameter*model!K73,1,0) -> 0 | X73: =IF(RAND()<(K62^quadratic_condition*L62-$T$21)*$T$22*(1+pref_attach_on*SUM($X$35:X72)),1,0) -> 0 | Y73: 39 | Z73: =IF(AND(SUM($X$35:X72)=0,X73=1),Y73,"") -> 
A74: 0 | B74: 7 | C74: 0.04652337804 | D74: =C66 -> 1.060974087 | E74: =CORREL(I360:R360,endlevel10) -> 0.9051213842 | F74: =CORREL(I360:R360,$E$9:$E$18) -> 0.1243795937 | G74: 51 | H74: 5.1 | I74: 0.05013241994 | J74: 0.1941956966 | K74: 0.3210174812 | L74: 0.2423693416 | M74: 0.02130385073 | N74: 0.0894242363 | O74: 0.007863045367 | P74: 0.007967028057 | Q74: 0.0231127791 | R74: 0.03544754562 | S74: 0 | T74: 0 | W74: =IF(RAND()<poisson_parameter*model!K74,1,0) -> 0 | X74: =IF(RAND()<(K63^quadratic_condition*L63-$T$21)*$T$22*(1+pref_attach_on*SUM($X$35:X73)),1,0) -> 0 | Y74: 40 | Z74: =IF(AND(SUM($X$35:X73)=0,X74=1),Y74,"") -> 
A75: =carcap10 -> 1.06461455 | B75: 8 | C75: 0.04417457431 | D75: =C76 -> 0.05410635021 | E75: =CORREL(I380:R380,endlevel10) -> 0.97807724 | F75: =CORREL(I380:R380,$E$9:$E$18) -> 0.2521071235 | G75: 52 | H75: 5.2 | I75: 0.05252527698 | J75: 0.2019089173 | K75: 0.3327477119 | L75: 0.2500626379 | M75: 0.02130385073 | N75: 0.09188830452 | O75: 0.007863045367 | P75: 0.007967028057 | Q75: 0.02427781524 | R75: 0.03544754562 | S75: 0 | T75: 0 | W75: =IF(RAND()<poisson_parameter*model!K75,1,0) -> 0 | X75: =IF(RAND()<(K64^quadratic_condition*L64-$T$21)*$T$22*(1+pref_attach_on*SUM($X$35:X74)),1,0) -> 0 | Y75: 41 | Z75: =IF(AND(SUM($X$35:X74)=0,X75=1),Y75,"") -> 
A76: 1.15819088 | B76: 9 | C76: 0.05410635021 | D76: =C67 -> 0.1856189289 | E76: =CORREL(I400:R400,endlevel10) -> 0.9957148112 | F76: =CORREL(I400:R400,$E$9:$E$18) -> 0.3099752432 | G76: 53 | H76: 5.3 | I76: 0.05502114776 | J76: 0.2098535536 | K76: 0.3447035202 | L76: 0.2579096142 | M76: 0.02130385073 | N76: 0.09437917104 | O76: 0.007863045367 | P76: 0.007967028057 | Q76: 0.02549799476 | R76: 0.03544754562 | S76: 0 | T76: 0 | W76: =IF(RAND()<poisson_parameter*model!K76,1,0) -> 0 | X76: =IF(RAND()<(K65^quadratic_condition*L65-$T$21)*$T$22*(1+pref_attach_on*SUM($X$35:X75)),1,0) -> 0 | Y76: 42 | Z76: =IF(AND(SUM($X$35:X75)=0,X76=1),Y76,"") -> 
A77: 0.938311236 | B77: 10 | C77: 0.04623635354 | D77: =C77 -> 0.04623635354 | E77: =CORREL(I420:R420,endlevel10) -> 0.9991101998 | F77: =CORREL(I420:R420,$E$9:$E$18) -> 0.3326250744 | G77: 54 | H77: 5.4 | I77: 0.0576233783 | J77: 0.2180306375 | K77: 0.3568743374 | L77: 0.2659076687 | M77: 0.02130385073 | N77: 0.09689448377 | O77: 0.007863045367 | P77: 0.007967028057 | Q77: 0.02677561176 | R77: 0.03544754562 | S77: 0 | T77: 0 | W77: =IF(RAND()<poisson_parameter*model!K77,1,0) -> 0 | X77: =IF(RAND()<(K66^quadratic_condition*L66-$T$21)*$T$22*(1+pref_attach_on*SUM($X$35:X76)),1,0) -> 0 | Y77: 43 | Z77: =IF(AND(SUM($X$35:X76)=0,X77=1),Y77,"") -> 
A78: 1.079115581 | E78: =CORREL(I440:R440,endlevel10) -> 0.9997804728 | F78: =CORREL(I440:R440,$E$9:$E$18) -> 0.3414264887 | G78: 55 | H78: 5.5 | I78: 0.06033531699 | J78: 0.2264407151 | K78: 0.3692485372 | L78: 0.2740538218 | M78: 0.02130385073 | N78: 0.09943174869 | O78: 0.007863045367 | P78: 0.007967028057 | Q78: 0.02811302859 | R78: 0.03544754562 | S78: 0 | T78: 0 | W78: =IF(RAND()<poisson_parameter*model!K78,1,0) -> 0 | X78: =IF(RAND()<(K67^quadratic_condition*L67-$T$21)*$T$22*(1+pref_attach_on*SUM($X$35:X77)),1,0) -> 0 | Y78: 44 | Z78: =IF(AND(SUM($X$35:X77)=0,X78=1),Y78,"") -> 
A79: 0.9838046891 | C79: max | D79: =B24 -> 0.9197176206 | E79: =CORREL(I460:R460,endlevel10) -> 0.9999380119 | F79: =CORREL(I460:R460,$E$9:$E$18) -> 0.3450141116 | G79: 56 | H79: 5.6 | I79: 0.0631603025 | J79: 0.2350838161 | K79: 0.3818134511 | L79: 0.282344712 | M79: 0.02130385073 | N79: 0.101988335 | O79: 0.007863045367 | P79: 0.007967028057 | Q79: 0.02951267555 | R79: 0.03544754562 | S79: 0 | T79: 0 | W79: =IF(RAND()<poisson_parameter*model!K79,1,0) -> 0 | X79: =IF(RAND()<(K68^quadratic_condition*L68-$T$21)*$T$22*(1+pref_attach_on*SUM($X$35:X78)),1,0) -> 0 | Y79: 45 | Z79: =IF(AND(SUM($X$35:X78)=0,X79=1),Y79,"") -> 
A80: 0.7124960129 | C80: totsup | D80: =Z33 -> -0.01031578474 | E80: =CORREL(I480:R480,endlevel10) -> 0.9999832609 | F80: =CORREL(I480:R480,$E$9:$E$18) -> 0.3466061775 | G80: 57 | H80: 5.7 | I80: 0.06610165043 | J80: 0.2439594249 | K80: 0.3945553943 | L80: 0.2907765929 | M80: 0.02130385073 | N80: 0.1045614815 | O80: 0.007863045367 | P80: 0.007967028057 | Q80: 0.0309770502 | R80: 0.03544754562 | S80: 0 | T80: 0 | W80: =IF(RAND()<poisson_parameter*model!K80,1,0) -> 0 | X80: =IF(RAND()<(K69^quadratic_condition*L69-$T$21)*$T$22*(1+pref_attach_on*SUM($X$35:X79)),1,0) -> 0 | Y80: 46 | Z80: =IF(AND(SUM($X$35:X79)=0,X80=1),Y80,"") -> 
A81: 1.247379687 | C81: sup | D81: =K20 -> -0.05597511028 | G81: 58 | H81: 5.8 | I81: 0.06916263887 | J81: 0.2530664524 | K81: 0.4074596994 | L81: 0.2993453322 | M81: 0.02130385073 | N81: 0.1071483035 | O81: 0.007863045367 | P81: 0.007967028057 | Q81: 0.03250871657 | R81: 0.03544754562 | S81: 0 | T81: 0 | W81: =IF(RAND()<poisson_parameter*model!K81,1,0) -> 0 | X81: =IF(RAND()<(K70^quadratic_condition*L70-$T$21)*$T$22*(1+pref_attach_on*SUM($X$35:X80)),1,0) -> 0 | Y81: 47 | Z81: =IF(AND(SUM($X$35:X80)=0,X81=1),Y81,"") -> 
A82: 0.9116689643 | C82: carcap | D82: =E11 -> 1.15819088 | G82: 59 | H82: 5.9 | I82: 0.07234649266 | J82: 0.2624032105 | K82: 0.4205107597 | L82: 0.308046413 | M82: 0.02130385073 | N82: 0.109745802 | O82: 0.007863045367 | P82: 0.007967028057 | Q82: 0.03411030389 | R82: 0.03544754562 | S82: 0 | T82: 0 | W82: =IF(RAND()<poisson_parameter*model!K82,1,0) -> 0 | X82: =IF(RAND()<(K71^quadratic_condition*L71-$T$21)*$T$22*(1+pref_attach_on*SUM($X$35:X81)),1,0) -> 0 | Y82: 48 | Z82: =IF(AND(SUM($X$35:X81)=0,X82=1),Y82,"") -> 
A83: 0.914997789 | C83: rate | D83: =D11 -> 0.05390175647 | G83: 60 | H83: 6 | I83: 0.07565636641 | J83: 0.271967388 | K83: 0.433692082 | L83: 0.3168749365 | M83: 0.02130385073 | N83: 0.112350873 | O83: 0.007863045367 | P83: 0.007967028057 | Q83: 0.03578450512 | R83: 0.03544754562 | S83: 0 | T83: 0 | W83: =IF(RAND()<poisson_parameter*model!K83,1,0) -> 0 | X83: =IF(RAND()<(K72^quadratic_condition*L72-$T$21)*$T$22*(1+pref_attach_on*SUM($X$35:X82)),1,0) -> 0 | Y83: 49 | Z83: =IF(AND(SUM($X$35:X82)=0,X83=1),Y83,"") -> 
A84: 0 | D84: =B25 -> 0.9383112203 | G84: 61 | H84: 6.1 | I84: 0.07909532634 | J84: 0.2817560292 | K84: 0.4469863476 | L84: 0.3258256277 | M84: 0.02130385073 | N84: 0.1149603182 | O84: 0.007863045367 | P84: 0.007967028057 | Q84: 0.03753407503 | R84: 0.03544754562 | S84: 0 | T84: 0 | W84: =IF(RAND()<poisson_parameter*model!K84,1,0) -> 0 | X84: =IF(RAND()<(K73^quadratic_condition*L73-$T$21)*$T$22*(1+pref_attach_on*SUM($X$35:X83)),1,0) -> 0 | Y84: 50 | Z84: =IF(AND(SUM($X$35:X83)=0,X84=1),Y84,"") -> 
A85: =TRANSPOSE(connectionsum) -> 0.0008151237613 | D85: =AA33 -> 0 | G85: 62 | H85: 6.2 | I85: 0.08266633082 | J85: 0.2917655157 | K85: 0.4603754824 | L85: 0.3348928421 | M85: 0.02130385073 | N85: 0.1175708569 | O85: 0.007863045367 | P85: 0.007967028057 | Q85: 0.03936182795 | R85: 0.03544754562 | S85: 0 | T85: 0 | W85: =IF(RAND()<poisson_parameter*model!K85,1,0) -> 0 | X85: =IF(RAND()<(K74^quadratic_condition*L74-$T$21)*$T$22*(1+pref_attach_on*SUM($X$35:X84)),1,0) -> 0 | Y85: 51 | Z85: =IF(AND(SUM($X$35:X84)=0,X85=1),Y85,"") -> 
A86: 0 | D86: =L20 -> 0 | G86: 63 | H86: 6.3 | I86: 0.08637220972 | J86: 0.3019915507 | K86: 0.473840735 | L86: 0.3440705755 | M86: 0.02130385073 | N86: 0.1201791386 | O86: 0.007863045367 | P86: 0.007967028057 | Q86: 0.04127063509 | R86: 0.03544754562 | S86: 0 | T86: 0 | W86: =IF(RAND()<poisson_parameter*model!K86,1,0) -> 0 | X86: =IF(RAND()<(K75^quadratic_condition*L75-$T$21)*$T$22*(1+pref_attach_on*SUM($X$35:X85)),1,0) -> 0 | Y86: 52 | Z86: =IF(AND(SUM($X$35:X85)=0,X86=1),Y86,"") -> 
A87: -0.05597511028 | D87: =E12 -> 0.938311236 | G87: 64 | H87: 6.4 | I87: 0.0902156426 | J87: 0.3124291476 | K87: 0.4873627622 | L87: 0.3533524762 | M87: 0.02130385073 | N87: 0.1227817569 | O87: 0.007863045367 | P87: 0.007967028057 | Q87: 0.04326342147 | R87: 0.03544754562 | S87: 0 | T87: 0 | W87: =IF(RAND()<poisson_parameter*model!K87,1,0) -> 0 | X87: =IF(RAND()<(K76^quadratic_condition*L76-$T$21)*$T$22*(1+pref_attach_on*SUM($X$35:X86)),1,0) -> 0 | Y87: 53 | Z87: =IF(AND(SUM($X$35:X86)=0,X87=1),Y87,"") -> 
A88: 0 | D88: =D12 -> 0.04327327733 | G88: 65 | H88: 6.5 | I88: 0.09419913577 | J88: 0.3230726219 | K88: 0.5009217209 | L88: 0.3627318582 | M88: 0.02130385073 | N88: 0.1253752636 | O88: 0.007863045367 | P88: 0.007967028057 | Q88: 0.04534316227 | R88: 0.03544754562 | S88: 0 | T88: 0 | W88: =IF(RAND()<poisson_parameter*model!K88,1,0) -> 0 | X88: =IF(RAND()<(K77^quadratic_condition*L77-$T$21)*$T$22*(1+pref_attach_on*SUM($X$35:X87)),1,0) -> 0 | Y88: 54 | Z88: =IF(AND(SUM($X$35:X87)=0,X88=1),Y88,"") -> 
A89: 0 | D89: =B26 -> 1.079115219 | G89: 66 | H89: 6.6 | I89: 0.09832499831 | J89: 0.3339155877 | K89: 0.5144973667 | L89: 0.3722017179 | M89: 0.02130385073 | N89: 0.1279561837 | O89: 0.007863045367 | P89: 0.007967028057 | Q89: 0.04751287882 | R89: 0.03544754562 | S89: 0 | T89: 0 | W89: =IF(RAND()<poisson_parameter*model!K89,1,0) -> 0 | X89: =IF(RAND()<(K78^quadratic_condition*L78-$T$21)*$T$22*(1+pref_attach_on*SUM($X$35:X88)),1,0) -> 0 | Y89: 55 | Z89: =IF(AND(SUM($X$35:X88)=0,X89=1),Y89,"") -> 
A90: 0.01220690069 | D90: =AB33 -> 0 | G90: 67 | H90: 6.7 | I90: 0.1025953172 | J90: 0.3449509581 | K90: 0.5280691566 | L90: 0.381754752 | M90: 0.02130385073 | N90: 0.1305210314 | O90: 0.007863045367 | P90: 0.007967028057 | Q90: 0.049775634 | R90: 0.03544754562 | S90: 0 | T90: =S90-S89 -> 0 | W90: =IF(RAND()<poisson_parameter*model!K90,1,0) -> 0 | X90: =IF(RAND()<(K79^quadratic_condition*L79-$T$21)*$T$22*(1+pref_attach_on*SUM($X$35:X89)),1,0) -> 0 | Y90: 56 | Z90: =IF(AND(SUM($X$35:X89)=0,X90=1),Y90,"") -> 
A91: -0.01033720651 | D91: =M20 -> 0 | G91: 68 | H91: 6.8 | I91: 0.1070119314 | J91: 0.3561709513 | K91: 0.5416163558 | L91: 0.3913833783 | M91: 0.02130385073 | N91: 0.1330663254 | O91: 0.007863045367 | P91: 0.007967028057 | Q91: 0.05213452707 | R91: 0.03544754562 | S91: 0 | T91: 0 | W91: =IF(RAND()<poisson_parameter*model!K91,1,0) -> 0 | X91: =IF(RAND()<(K80^quadratic_condition*L80-$T$21)*$T$22*(1+pref_attach_on*SUM($X$35:X90)),1,0) -> 0 | Y91: 57 | Z91: =IF(AND(SUM($X$35:X90)=0,X91=1),Y91,"") -> 
A92: 0.008962096249 | D92: =E13 -> 1.079115581 | G92: 69 | H92: 6.9 | I92: 0.1115764057 | J92: 0.3675671 | K92: 0.5551181474 | L92: 0.4010797571 | M92: 0.02130385073 | N92: 0.135588606 | O92: 0.007863045367 | P92: 0.007967028057 | Q92: 0.05459268802 | R92: 0.03544754562 | S92: 0 | T92: 0 | W92: =IF(RAND()<poisson_parameter*model!K92,1,0) -> 0 | X92: =IF(RAND()<(K81^quadratic_condition*L81-$T$21)*$T$22*(1+pref_attach_on*SUM($X$35:X91)),1,0) -> 0 | Y92: 58 | Z92: =IF(AND(SUM($X$35:X91)=0,X92=1),Y92,"") -> 
A93: 0.003283965855 | D93: =D13 -> 0.05332185074 | G93: 70 | H93: 7 | I93: 0.1162900038 | J93: 0.3791302676 | K93: 0.5685537435 | L93: 0.4108358163 | M93: 0.02130385073 | N93: 0.1380844507 | O93: 0.007863045367 | P93: 0.007967028057 | Q93: 0.05715327117 | R93: 0.03544754562 | S93: 0 | T93: 0 | W93: =IF(RAND()<poisson_parameter*model!K93,1,0) -> 0 | X93: =IF(RAND()<(K82^quadratic_condition*L82-$T$21)*$T$22*(1+pref_attach_on*SUM($X$35:X92)),1,0) -> 0 | Y93: 59 | Z93: =IF(AND(SUM($X$35:X92)=0,X93=1),Y93,"") -> 
A94: -0.05760644899 | D94: =B27 -> 1.068230823 | G94: 71 | H94: 7.1 | I94: 0.1211536607 | J94: 0.3908506677 | K94: 0.5819024964 | L94: 0.4206432763 | M94: 0.02130385073 | N94: 0.1405504911 | O94: 0.007863045367 | P94: 0.007967028057 | Q94: 0.05981944829 | R94: 0.03544754562 | S94: 0 | T94: 0 | W94: =IF(RAND()<poisson_parameter*model!K94,1,0) -> 0 | X94: =IF(RAND()<(K83^quadratic_condition*L83-$T$21)*$T$22*(1+pref_attach_on*SUM($X$35:X93)),1,0) -> 0 | Y94: 60 | Z94: =IF(AND(SUM($X$35:X93)=0,X94=1),Y94,"") -> 
D95: =AC33 -> -0.008017209339 | G95: 72 | H95: 7.2 | I95: 0.1261679559 | J95: 0.4027178904 | K95: 0.5951440094 | L95: 0.4304936776 | M95: 0.02130385073 | N95: 0.1429834286 | O95: 0.007863045367 | P95: 0.007967028057 | Q95: 0.062594401 | R95: 0.03544754562 | S95: 0 | T95: 0 | W95: =IF(RAND()<poisson_parameter*model!K95,1,0) -> 0 | X95: =IF(RAND()<(K84^quadratic_condition*L84-$T$21)*$T$22*(1+pref_attach_on*SUM($X$35:X94)),1,0) -> 0 | Y95: 61 | Z95: =IF(AND(SUM($X$35:X94)=0,X95=1),Y95,"") -> 
D96: =N20 -> 0.01220690069 | G96: 73 | H96: 7.3 | I96: 0.1313330859 | J96: 0.414720932 | K96: 0.6082582452 | L96: 0.4403784093 | M96: 0.02130385073 | N96: 0.1453800503 | O96: 0.007863045367 | P96: 0.007967028057 | Q96: 0.06548131247 | R96: 0.03544754562 | S96: 0 | T96: 0 | W96: =IF(RAND()<poisson_parameter*model!K96,1,0) -> 0 | X96: =IF(RAND()<(K85^quadratic_condition*L85-$T$21)*$T$22*(1+pref_attach_on*SUM($X$35:X95)),1,0) -> 0 | Y96: 62 | Z96: =IF(AND(SUM($X$35:X95)=0,X96=1),Y96,"") -> 
D97: =E14 -> 0.9838046891 | G97: 74 | H97: 7.4 | I97: 0.1366488377 | J97: 0.4268482309 | K97: 0.621225631 | L97: 0.4502887389 | M97: 0.02130385073 | N97: 0.1477372443 | O97: 0.007863045367 | P97: 0.007967028057 | Q97: 0.06848335848 | R97: 0.03544754562 | S97: 0 | T97: 0 | W97: =IF(RAND()<poisson_parameter*model!K97,1,0) -> 0 | X97: =IF(RAND()<(K86^quadratic_condition*L86-$T$21)*$T$22*(1+pref_attach_on*SUM($X$35:X96)),1,0) -> 0 | Y97: 63 | Z97: =IF(AND(SUM($X$35:X96)=0,X97=1),Y97,"") -> 
D98: =D14 -> 0.04020332672 | G98: 75 | H98: 7.5 | I98: 0.1421145625 | J98: 0.4390877077 | K98: 0.6340271599 | L98: 0.460215843 | M98: 0.02130385073 | N98: 0.1500520141 | O98: 0.007863045367 | P98: 0.007967028057 | Q98: 0.07160369777 | R98: 0.03544754562 | S98: 0 | T98: 0 | W98: =IF(RAND()<poisson_parameter*model!K98,1,0) -> 0 | X98: =IF(RAND()<(K87^quadratic_condition*L87-$T$21)*$T$22*(1+pref_attach_on*SUM($X$35:X97)),1,0) -> 0 | Y98: 64 | Z98: =IF(AND(SUM($X$35:X97)=0,X98=1),Y98,"") -> 
B99: early_levels | G99: 76 | H99: 7.6 | I99: 0.1477291511 | J99: 0.4514268097 | K99: 0.6466444861 | L99: 0.4701508382 | M99: 0.02130385073 | N99: 0.1523214927 | O99: 0.007863045367 | P99: 0.007967028057 | Q99: 0.07484546165 | R99: 0.03544754562 | S99: 0 | T99: 0 | W99: =IF(RAND()<poisson_parameter*model!K99,1,0) -> 0 | X99: =IF(RAND()<(K88^quadratic_condition*L88-$T$21)*$T$22*(1+pref_attach_on*SUM($X$35:X98)),1,0) -> 0 | Y99: 65 | Z99: =IF(AND(SUM($X$35:X98)=0,X99=1),Y99,"") -> 
B100: =TRANSPOSE(early_levels) -> 0.047839244 | C100: =TRANSPOSE(maxlevel10) -> 0.6986846936 | E100: =B100 -> 0.047839244 | G100: 77 | H100: 7.7 | I100: 0.1534910102 | J100: 0.4638525601 | K100: 0.6590600144 | L100: 0.4800848132 | M100: 0.02130385073 | N100: 0.1545429549 | O100: 0.007863045367 | P100: 0.007967028057 | Q100: 0.07821174288 | R100: 0.03544754562 | S100: 0 | T100: 0 | W100: =IF(RAND()<poisson_parameter*model!K100,1,0) -> 0 | X100: =IF(RAND()<(K89^quadratic_condition*L89-$T$21)*$T$22*(1+pref_attach_on*SUM($X$35:X99)),1,0) -> 0 | Y100: 66 | Z100: =IF(AND(SUM($X$35:X99)=0,X100=1),Y100,"") -> 
B101: 0.186712404 | C101: 1.064614547 | E101: =C100 -> 0.6986846936 | G101: 78 | H101: 7.8 | I101: 0.1593980401 | J101: 0.4763516102 | K101: 0.671256983 | L101: 0.4900088609 | M101: 0.02130385073 | N101: 0.1567138297 | O101: 0.007863045367 | P101: 0.007967028057 | Q101: 0.08170558385 | R101: 0.03544754562 | S101: 0 | T101: 0 | W101: =IF(RAND()<poisson_parameter*model!K101,1,0) -> 0 | X101: =IF(RAND()<(K90^quadratic_condition*L90-$T$21)*$T$22*(1+pref_attach_on*SUM($X$35:X100)),1,0) -> 0 | Y101: 67 | Z101: =IF(AND(SUM($X$35:X100)=0,X101=1),Y101,"") -> 
B102: 0.3095223312 | C102: 0.9197176206 | E102: =B101 -> 0.186712404 | G102: 79 | H102: 7.9 | I102: 0.1654476158 | J102: 0.488910296 | K102: 0.6832195377 | L102: 0.4999141099 | M102: 0.02130385073 | N102: 0.1588317105 | O102: 0.007863045367 | P102: 0.007967028057 | Q102: 0.08532996399 | R102: 0.03544754562 | S102: 0 | T102: 0 | W102: =IF(RAND()<poisson_parameter*model!K102,1,0) -> 0 | X102: =IF(RAND()<(K91^quadratic_condition*L91-$T$21)*$T$22*(1+pref_attach_on*SUM($X$35:X101)),1,0) -> 0 | Y102: 68 | Z102: =IF(AND(SUM($X$35:X101)=0,X102=1),Y102,"") -> 
B103: 0.2348319562 | C103: 0.9383112203 | E103: =C101 -> 1.064614547 | G103: 80 | H103: 8 | I103: 0.1716365686 | J103: 0.5015146968 | K103: 0.6949327986 | L103: 0.5097917563 | M103: 0.02130385073 | N103: 0.1608943646 | O103: 0.007863045367 | P103: 0.007967028057 | Q103: 0.08908778653 | R103: 0.03544754562 | S103: 0 | T103: 0 | W103: =IF(RAND()<poisson_parameter*model!K103,1,0) -> 0 | X103: =IF(RAND()<(K92^quadratic_condition*L92-$T$21)*$T$22*(1+pref_attach_on*SUM($X$35:X102)),1,0) -> 0 | Y103: 69 | Z103: =IF(AND(SUM($X$35:X102)=0,X103=1),Y103,"") -> 
B104: 0.02130385073 | C104: 1.079115219 | E104: =B102 -> 0.3095223312 | G104: 81 | H104: 8.1 | I104: 0.1779611724 | J104: 0.5141506964 | K104: 0.706382918 | L104: 0.5196330953 | M104: 0.02130385073 | N104: 0.1628997412 | O104: 0.007863045367 | P104: 0.007967028057 | Q104: 0.09298186449 | R104: 0.03544754562 | S104: 0 | T104: 0 | W104: =IF(RAND()<poisson_parameter*model!K104,1,0) -> 0 | X104: =IF(RAND()<(K93^quadratic_condition*L93-$T$21)*$T$22*(1+pref_attach_on*SUM($X$35:X103)),1,0) -> 0 | Y104: 70 | Z104: =IF(AND(SUM($X$35:X103)=0,X104=1),Y104,"") -> 
B105: 0.08698917266 | C105: 1.068230823 | E105: =C102 -> 0.9197176206 | G105: 82 | H105: 8.2 | I105: 0.1844171317 | J105: 0.5268040468 | K105: 0.7175571288 | L105: 0.529429551 | M105: 0.02130385073 | N105: 0.1648459785 | O105: 0.007863045367 | P105: 0.007967028057 | Q105: 0.097014906 | R105: 0.03544754562 | S105: 0 | T105: 0 | W105: =IF(RAND()<poisson_parameter*model!K105,1,0) -> 0 | X105: =IF(RAND()<(K94^quadratic_condition*L94-$T$21)*$T$22*(1+pref_attach_on*SUM($X$35:X104)),1,0) -> 0 | Y105: 71 | Z105: =IF(AND(SUM($X$35:X104)=0,X105=1),Y105,"") -> 
B106: 0.007863045367 | C106: 0.7460262832 | E106: =B103 -> 0.2348319562 | G106: 83 | H106: 8.3 | I106: 0.1909995739 | J106: 0.5394604319 | K106: 0.7284437845 | L106: 0.5391727059 | M106: 0.02130385073 | N106: 0.1667314083 | O106: 0.007863045367 | P106: 0.007967028057 | Q106: 0.101189499 | R106: 0.03544754562 | S106: 0 | T106: 0 | W106: =IF(RAND()<poisson_parameter*model!K106,1,0) -> 0 | X106: =IF(RAND()<(K95^quadratic_condition*L95-$T$21)*$T$22*(1+pref_attach_on*SUM($X$35:X105)),1,0) -> 0 | Y106: 72 | Z106: =IF(AND(SUM($X$35:X105)=0,X106=1),Y106,"") -> 
B107: 0.007967028057 | C107: 1.383886444 | E107: =C103 -> 0.9383112203 | G107: 84 | H107: 8.4 | I107: 0.1977030455 | J107: 0.5521055325 | K107: 0.7390323898 | L107: 0.5488543297 | M107: 0.02130385073 | N107: 0.1685545604 | O107: 0.007863045367 | P107: 0.007967028057 | Q107: 0.1055080955 | R107: 0.03544754562 | S107: 0 | T107: 0 | W107: =IF(RAND()<poisson_parameter*model!K107,1,0) -> 0 | X107: =IF(RAND()<(K96^quadratic_condition*L96-$T$21)*$T$22*(1+pref_attach_on*SUM($X$35:X106)),1,0) -> 0 | Y107: 73 | Z107: =IF(AND(SUM($X$35:X106)=0,X107=1),Y107,"") -> 
B108: 0.02200066064 | C108: 1.060974087 | G108: 85 | H108: 8.5 | I108: 0.2045215115 | J108: 0.5647250914 | K108: 0.7493136215 | L108: 0.5584664055 | M108: 0.02130385073 | N108: 0.1703141648 | O108: 0.007863045367 | P108: 0.007967028057 | Q108: 0.1099729947 | R108: 0.03544754562 | S108: 0 | T108: 0 | W108: =IF(RAND()<poisson_parameter*model!K108,1,0) -> 0 | X108: =IF(RAND()<(K97^quadratic_condition*L97-$T$21)*$T$22*(1+pref_attach_on*SUM($X$35:X107)),1,0) -> 0 | Y108: 74 | Z108: =IF(AND(SUM($X$35:X107)=0,X108=1),Y108,"") -> 
B109: 0.03544754562 | C109: 0.1856189289 | G109: 86 | H109: 8.6 | I109: 0.2114483605 | J109: 0.5773049773 | K109: 0.7592793419 | L109: 0.5680011555 | M109: 0.02130385073 | N109: 0.1720091531 | O109: 0.007863045367 | P109: 0.007967028057 | Q109: 0.1145863266 | R109: 0.03544754562 | S109: 0 | T109: 0 | W109: =IF(RAND()<poisson_parameter*model!K109,1,0) -> 0 | X109: =IF(RAND()<(K98^quadratic_condition*L98-$T$21)*$T$22*(1+pref_attach_on*SUM($X$35:X108)),1,0) -> 0 | Y109: 75 | Z109: =IF(AND(SUM($X$35:X108)=0,X109=1),Y109,"") -> 
G110: 87 | H110: 8.7 | I110: 0.2184764129 | J110: 0.5898312478 | K110: 0.7689226019 | L110: 0.5774510644 | M110: 0.02130385073 | N110: 0.1736386573 | O110: 0.007863045367 | P110: 0.007967028057 | Q110: 0.119350034 | R110: 0.03544754562 | S110: 0 | T110: 0 | W110: =IF(RAND()<poisson_parameter*model!K110,1,0) -> 0 | X110: =IF(RAND()<(K99^quadratic_condition*L99-$T$21)*$T$22*(1+pref_attach_on*SUM($X$35:X109)),1,0) -> 0 | Y110: 76 | Z110: =IF(AND(SUM($X$35:X109)=0,X110=1),Y110,"") -> 
B111: =CORREL(B100:B109,C100:C109) -> 0.06909936055 | G111: 88 | H111: 8.8 | I111: 0.2255979356 | J111: 0.6022902103 | K111: 0.7782376377 | L111: 0.5868089013 | M111: 0.02130385073 | N111: 0.1752020092 | O111: 0.007863045367 | P111: 0.007967028057 | Q111: 0.1242658552 | R111: 0.03544754562 | S111: 0 | T111: 0 | W111: =IF(RAND()<poisson_parameter*model!K111,1,0) -> 0 | X111: =IF(RAND()<(K100^quadratic_condition*L100-$T$21)*$T$22*(1+pref_attach_on*SUM($X$35:X110)),1,0) -> 0 | Y111: 77 | Z111: =IF(AND(SUM($X$35:X110)=0,X111=1),Y111,"") -> 
G112: 89 | H112: 8.9 | I112: 0.2328046597 | J112: 0.6146684807 | K112: 0.7872198581 | L112: 0.5960677394 | M112: 0.02130385073 | N112: 0.1766987364 | O112: 0.007863045367 | P112: 0.007967028057 | Q112: 0.1293353062 | R112: 0.03544754562 | S112: 0 | T112: 0 | W112: =IF(RAND()<poisson_parameter*model!K112,1,0) -> 0 | X112: =IF(RAND()<(K101^quadratic_condition*L101-$T$21)*$T$22*(1+pref_attach_on*SUM($X$35:X111)),1,0) -> 0 | Y112: 78 | Z112: =IF(AND(SUM($X$35:X111)=0,X112=1),Y112,"") -> 
G113: 90 | H113: 9 | I113: 0.2400878044 | J113: 0.6269530387 | K113: 0.795865826 | L113: 0.6052209737 | M113: 0.02130385073 | N113: 0.1781285592 | O113: 0.007863045367 | P113: 0.007967028057 | Q113: 0.1345596621 | R113: 0.03544754562 | S113: 0 | T113: 0 | W113: =IF(RAND()<poisson_parameter*model!K113,1,0) -> 0 | X113: =IF(RAND()<(K102^quadratic_condition*L102-$T$21)*$T$22*(1+pref_attach_on*SUM($X$35:X112)),1,0) -> 0 | Y113: 79 | Z113: =IF(AND(SUM($X$35:X112)=0,X113=1),Y113,"") -> 
G114: 91 | H114: 9.1 | I114: 0.2474381057 | J114: 0.6391312805 | K114: 0.8041732321 | L114: 0.6142623366 | M114: 0.02130385073 | N114: 0.1794913844 | O114: 0.007863045367 | P114: 0.007967028057 | Q114: 0.1399399392 | R114: 0.03544754562 | S114: 0 | T114: 0 | W114: =IF(RAND()<poisson_parameter*model!K114,1,0) -> 0 | X114: =IF(RAND()<(K103^quadratic_condition*L103-$T$21)*$T$22*(1+pref_attach_on*SUM($X$35:X113)),1,0) -> 0 | Y114: 80 | Z114: =IF(AND(SUM($X$35:X113)=0,X114=1),Y114,"") -> 
G115: 92 | H115: 9.2 | I115: 0.2548458489 | J115: 0.6511910667 | K115: 0.8121408635 | L115: 0.6231859113 | M115: 0.02130385073 | N115: 0.1807872995 | O115: 0.007863045367 | P115: 0.007967028057 | Q115: 0.1454768772 | R115: 0.03544754562 | S115: 0 | T115: 0 | W115: =IF(RAND()<poisson_parameter*model!K115,1,0) -> 0 | X115: =IF(RAND()<(K104^quadratic_condition*L104-$T$21)*$T$22*(1+pref_attach_on*SUM($X$35:X114)),1,0) -> 0 | Y115: 81 | Z115: =IF(AND(SUM($X$35:X114)=0,X115=1),Y115,"") -> 
G116: 93 | H116: 9.3 | I116: 0.262300907 | J116: 0.6631207668 | K116: 0.8197685658 | L116: 0.6319861429 | M116: 0.02130385073 | N116: 0.1820165657 | O116: 0.007863045367 | P116: 0.007967028057 | Q116: 0.1511709213 | R116: 0.03544754562 | S116: 0 | T116: 0 | W116: =IF(RAND()<poisson_parameter*model!K116,1,0) -> 0 | X116: =IF(RAND()<(K105^quadratic_condition*L105-$T$21)*$T$22*(1+pref_attach_on*SUM($X$35:X115)),1,0) -> 0 | Y116: 82 | Z116: =IF(AND(SUM($X$35:X115)=0,X116=1),Y116,"") -> 
G117: 94 | H117: 9.4 | I117: 0.269792783 | J117: 0.6749092987 | K117: 0.8270572016 | L117: 0.6406578476 | M117: 0.02130385073 | N117: 0.1831796094 | O117: 0.007863045367 | P117: 0.007967028057 | Q117: 0.1570222048 | R117: 0.03544754562 | S117: 0 | T117: 0 | W117: =IF(RAND()<poisson_parameter*model!K117,1,0) -> 0 | X117: =IF(RAND()<(K106^quadratic_condition*L106-$T$21)*$T$22*(1+pref_attach_on*SUM($X$35:X116)),1,0) -> 0 | Y117: 83 | Z117: =IF(AND(SUM($X$35:X116)=0,X117=1),Y117,"") -> 
G118: 95 | H118: 9.5 | I118: 0.2773106556 | J118: 0.6865461637 | K118: 0.8340086038 | L118: 0.649196219 | M118: 0.02130385073 | N118: 0.184277014 | O118: 0.007863045367 | P118: 0.007967028057 | Q118: 0.1630305324 | R118: 0.03544754562 | S118: 0 | T118: 0 | W118: =IF(RAND()<poisson_parameter*model!K118,1,0) -> 0 | X118: =IF(RAND()<(K107^quadratic_condition*L107-$T$21)*$T$22*(1+pref_attach_on*SUM($X$35:X117)),1,0) -> 0 | Y118: 84 | Z118: =IF(AND(SUM($X$35:X117)=0,X118=1),Y118,"") -> 
G119: 96 | H119: 9.6 | I119: 0.2848434302 | J119: 0.6980214765 | K119: 0.8406255262 | L119: 0.6575968334 | M119: 0.02130385073 | N119: 0.1853095103 | O119: 0.007863045367 | P119: 0.007967028057 | Q119: 0.1691953641 | R119: 0.03544754562 | S119: 0 | T119: 0 | W119: =IF(RAND()<poisson_parameter*model!K119,1,0) -> 0 | X119: =IF(RAND()<(K108^quadratic_condition*L108-$T$21)*$T$22*(1+pref_attach_on*SUM($X$35:X118)),1,0) -> 0 | Y119: 85 | Z119: =IF(AND(SUM($X$35:X118)=0,X119=1),Y119,"") -> 
G120: 97 | H120: 9.7 | I120: 0.2923797914 | J120: 0.7093259906 | K120: 0.8469115902 | L120: 0.6658556519 | M120: 0.02130385073 | N120: 0.1862779669 | O120: 0.007863045367 | P120: 0.007967028057 | Q120: 0.1755158003 | R120: 0.03544754562 | S120: 0 | T120: 0 | W120: =IF(RAND()<poisson_parameter*model!K120,1,0) -> 0 | X120: =IF(RAND()<(K109^quadratic_condition*L109-$T$21)*$T$22*(1+pref_attach_on*SUM($X$35:X119)),1,0) -> 0 | Y120: 86 | Z120: =IF(AND(SUM($X$35:X119)=0,X120=1),Y120,"") ->  | AB120: 10 | AC120: 20 | AD120: 30 | AE120: 50 | AF120: 12.5 | AG120: 22.5 | AH120: 32.5 | AI120: 23.5 | AJ120: 33.5 | AK120: 14.5 | AL120: 24.5 | AM120: 34.5 | AN120: 54.5
G121: 98 | H121: 9.8 | I121: 0.2999082596 | J121: 0.7204511181 | K121: 0.8528712302 | L121: 0.6739690208 | M121: 0.02130385073 | N121: 0.1871833801 | O121: 0.007863045367 | P121: 0.007967028057 | Q121: 0.1819905674 | R121: 0.03544754562 | S121: 0 | T121: 0 | W121: =IF(RAND()<poisson_parameter*model!K121,1,0) -> 0 | X121: =IF(RAND()<(K110^quadratic_condition*L110-$T$21)*$T$22*(1+pref_attach_on*SUM($X$35:X120)),1,0) -> 0 | Y121: 87 | Z121: =IF(AND(SUM($X$35:X120)=0,X121=1),Y121,"") ->  | AA121: 10 | AB121: 125 | AC121: 2 | AF121: 1 | AK121: 1 | AO121: 129
G122: 99 | H122: 9.9 | I122: 0.3074172493 | J122: 0.731388945 | K122: 0.8585096362 | L122: 0.6819336706 | M122: 0.02130385073 | N122: 0.1880268637 | O122: 0.007863045367 | P122: 0.007967028057 | Q122: 0.1886180054 | R122: 0.03544754562 | S122: 0 | T122: 0 | W122: =IF(RAND()<poisson_parameter*model!K122,1,0) -> 0 | X122: =IF(RAND()<(K111^quadratic_condition*L111-$T$21)*$T$22*(1+pref_attach_on*SUM($X$35:X121)),1,0) -> 0 | Y122: 88 | Z122: =IF(AND(SUM($X$35:X121)=0,X122=1),Y122,"") ->  | AA122: 20 | AC122: 116 | AD122: 2 | AG122: 1 | AL122: 1 | AO122: 120
G123: 100 | H123: 10 | I123: 0.3148951293 | J123: 0.7421322415 | K123: 0.8638326965 | L123: 0.6897467125 | M123: 0.02130385073 | N123: 0.188809638 | O123: 0.007863045367 | P123: 0.007967028057 | Q123: 0.1953960563 | R123: 0.03544754562 | S123: 0 | T123: 0 | W123: =IF(RAND()<poisson_parameter*model!K123,1,0) -> 0 | X123: =IF(RAND()<(K112^quadratic_condition*L112-$T$21)*$T$22*(1+pref_attach_on*SUM($X$35:X122)),1,0) -> 0 | Y123: 89 | Z123: =IF(AND(SUM($X$35:X122)=0,X123=1),Y123,"") ->  | AA123: 30 | AB123: 1 | AC123: 2 | AD123: 88 | AM123: 3 | AO123: 94
G124: 101 | H124: 10.1 | I124: 0.3223302833 | J124: 0.7526744672 | K124: 0.868846938 | L124: 0.6974056334 | M124: 0.02130385073 | N124: 0.1895330199 | O124: 0.007863045367 | P124: 0.007967028057 | Q124: 0.2023222547 | R124: 0.03544754562 | S124: 0 | T124: 0 | W124: =IF(RAND()<poisson_parameter*model!K124,1,0) -> 0 | X124: =IF(RAND()<(K113^quadratic_condition*L113-$T$21)*$T$22*(1+pref_attach_on*SUM($X$35:X123)),1,0) -> 0 | Y124: 90 | Z124: =IF(AND(SUM($X$35:X123)=0,X124=1),Y124,"") ->  | AA124: 50 | AE124: 22 | AN124: 1 | AO124: 23
G125: 102 | H125: 10.2 | I125: 0.3297111716 | J125: 0.7630097725 | K125: 0.8735594677 | L125: 0.7049082895 | M125: 0.02130385073 | N125: 0.1901984117 | O125: 0.007863045367 | P125: 0.007967028057 | Q125: 0.2093937197 | R125: 0.03544754562 | S125: 0 | T125: 0 | W125: =IF(RAND()<poisson_parameter*model!K125,1,0) -> 0 | X125: =IF(RAND()<(K114^quadratic_condition*L114-$T$21)*$T$22*(1+pref_attach_on*SUM($X$35:X124)),1,0) -> 0 | Y125: 91 | Z125: =IF(AND(SUM($X$35:X124)=0,X125=1),Y125,"") ->  | AA125: 12.5 | AB125: 2 | AF125: 171 | AG125: 1 | AL125: 1 | AO125: 175
G126: 103 | H126: 10.3 | I126: 0.3370263926 | J126: 0.7731329949 | K126: 0.8779779137 | L126: 0.7122528981 | M126: 0.02130385073 | N126: 0.1908072912 | O126: 0.007863045367 | P126: 0.007967028057 | Q126: 0.2166071495 | R126: 0.03544754562 | S126: 0 | T126: 0 | W126: =IF(RAND()<poisson_parameter*model!K126,1,0) -> 0 | X126: =IF(RAND()<(K115^quadratic_condition*L115-$T$21)*$T$22*(1+pref_attach_on*SUM($X$35:X125)),1,0) -> 0 | Y126: 92 | Z126: =IF(AND(SUM($X$35:X125)=0,X126=1),Y126,"") ->  | AA126: 22.5 | AG126: 209 | AH126: 1 | AI126: 1 | AL126: 2 | AO126: 213
G127: 104 | H127: 10.4 | I127: 0.3442647422 | J127: 0.7830396516 | K127: 0.8821103665 | L127: 0.7194380284 | M127: 0.02130385073 | N127: 0.1913612014 | O127: 0.007863045367 | P127: 0.007967028057 | Q127: 0.2239588172 | R127: 0.03544754562 | S127: 0 | T127: 0 | W127: =IF(RAND()<poisson_parameter*model!K127,1,0) -> 0 | X127: =IF(RAND()<(K116^quadratic_condition*L116-$T$21)*$T$22*(1+pref_attach_on*SUM($X$35:X126)),1,0) -> 0 | Y127: 93 | Z127: =IF(AND(SUM($X$35:X126)=0,X127=1),Y127,"") ->  | AA127: 32.5 | AD127: 1 | AH127: 63 | AJ127: 1 | AM127: 1 | AO127: 66
G128: 105 | H128: 10.5 | I128: 0.3514152733 | J128: 0.7927259283 | K128: 0.8859653221 | L128: 0.7264625908 | M128: 0.02130385073 | N128: 0.1918617404 | O128: 0.007863045367 | P128: 0.007967028057 | Q128: 0.2314445699 | R128: 0.03544754562 | S128: 0 | T128: 0 | W128: =IF(RAND()<poisson_parameter*model!K128,1,0) -> 0 | X128: =IF(RAND()<(K117^quadratic_condition*L117-$T$21)*$T$22*(1+pref_attach_on*SUM($X$35:X127)),1,0) -> 0 | Y128: 94 | Z128: =IF(AND(SUM($X$35:X127)=0,X128=1),Y128,"") ->  | AA128: 23.5 | AG128: 1 | AI128: 10 | AO128: 11
G129: 106 | H129: 10.6 | I129: 0.3584673518 | J129: 0.8021886646 | K129: 0.8895516256 | L129: 0.7333258255 | M129: 0.02130385073 | N129: 0.1923105517 | O129: 0.007863045367 | P129: 0.007967028057 | Q129: 0.2390598296 | R129: 0.03544754562 | S129: 0 | T129: 0 | W129: =IF(RAND()<poisson_parameter*model!K129,1,0) -> 0 | X129: =IF(RAND()<(K118^quadratic_condition*L118-$T$21)*$T$22*(1+pref_attach_on*SUM($X$35:X128)),1,0) -> 0 | Y129: 95 | Z129: =IF(AND(SUM($X$35:X128)=0,X129=1),Y129,"") ->  | AA129: 33.5 | AH129: 1 | AJ129: 11 | AO129: 12
G130: 107 | H130: 10.7 | I130: 0.3654107105 | J130: 0.8114253364 | K130: 0.8928784164 | L130: 0.7400272896 | M130: 0.02130385073 | N130: 0.1927093153 | O130: 0.007863045367 | P130: 0.007967028057 | Q130: 0.2467995968 | R130: 0.03544754562 | S130: 0 | T130: 0 | W130: =IF(RAND()<poisson_parameter*model!K130,1,0) -> 0 | X130: =IF(RAND()<(K119^quadratic_condition*L119-$T$21)*$T$22*(1+pref_attach_on*SUM($X$35:X129)),1,0) -> 0 | Y130: 96 | Z130: =IF(AND(SUM($X$35:X129)=0,X130=1),Y130,"") ->  | AA130: 14.5 | AB130: 1 | AF130: 3 | AK130: 47 | AO130: 51
G131: 108 | H131: 10.8 | I131: 0.3722354995 | J131: 0.820434035 | K131: 0.8959550757 | L131: 0.7465668444 | M131: 0.02130385073 | N131: 0.1930597386 | O131: 0.007863045367 | P131: 0.007967028057 | Q131: 0.2546584571 | R131: 0.03544754562 | S131: 0 | T131: 0 | W131: =IF(RAND()<poisson_parameter*model!K131,1,0) -> 0 | X131: =IF(RAND()<(K120^quadratic_condition*L120-$T$21)*$T$22*(1+pref_attach_on*SUM($X$35:X130)),1,0) -> 0 | Y131: 97 | Z131: =IF(AND(SUM($X$35:X130)=0,X131=1),Y131,"") ->  | AA131: 24.5 | AG131: 1 | AK131: 1 | AL131: 102 | AN131: 1 | AO131: 105
G132: 109 | H132: 10.9 | I132: 0.3789323332 | J132: 0.8292134444 | K132: 0.8987911757 | L132: 0.7529446408 | M132: 0.02130385073 | N132: 0.1933635482 | O132: 0.007863045367 | P132: 0.007967028057 | Q132: 0.2626305898 | R132: 0.03544754562 | S132: 0 | T132: 0 | W132: =IF(RAND()<poisson_parameter*model!K132,1,0) -> 0 | X132: =IF(RAND()<(K121^quadratic_condition*L121-$T$21)*$T$22*(1+pref_attach_on*SUM($X$35:X131)),1,0) -> 0 | Y132: 98 | Z132: =IF(AND(SUM($X$35:X131)=0,X132=1),Y132,"") ->  | AA132: 34.5 | AD132: 2 | AH132: 1 | AK132: 1 | AM132: 164 | AO132: 168
G133: 110 | H133: 11 | I133: 0.3854923322 | J133: 0.8377628161 | K133: 0.9013964305 | L133: 0.7591611053 | M133: 0.02130385073 | N133: 0.1936224821 | O133: 0.007863045367 | P133: 0.007967028057 | Q133: 0.2707097802 | R133: 0.03544754562 | S133: 0 | T133: 0 | W133: =IF(RAND()<poisson_parameter*model!K133,1,0) -> 0 | X133: =IF(RAND()<(K122^quadratic_condition*L122-$T$21)*$T$22*(1+pref_attach_on*SUM($X$35:X132)),1,0) -> 0 | Y133: 99 | Z133: =IF(AND(SUM($X$35:X132)=0,X133=1),Y133,"") ->  | AA133: 54.5 | AE133: 1 | AK133: 1 | AN133: 95 | AO133: 97
G134: 111 | H134: 11.1 | I134: 0.3919071618 | J134: 0.8460819429 | K134: 0.9037806504 | L134: 0.765216925 | M134: 0.02130385073 | N134: 0.1938382819 | O134: 0.007863045367 | P134: 0.007967028057 | Q134: 0.2788894335 | R134: 0.03544754562 | S134: 0 | T134: 0 | W134: =IF(RAND()<poisson_parameter*model!K134,1,0) -> 0 | X134: =IF(RAND()<(K123^quadratic_condition*L123-$T$21)*$T$22*(1+pref_attach_on*SUM($X$35:X133)),1,0) -> 0 | Y134: 100 | Z134: =IF(AND(SUM($X$35:X133)=0,X134=1),Y134,"") ->  | AB134: 129 | AC134: 120 | AD134: 93 | AE134: 23 | AF134: 175 | AG134: 213 | AH134: 66 | AI134: 11 | AJ134: 12 | AK134: 51 | AL134: 106 | AM134: 168 | AN134: 97 | AO134: 1264
G135: 112 | H135: 11.2 | I135: 0.3981690653 | J135: 0.85417113 | K135: 0.9059536978 | L135: 0.7711130323 | M135: 0.02130385073 | N135: 0.1940126866 | O135: 0.007863045367 | P135: 0.007967028057 | Q135: 0.287162593 | R135: 0.03544754562 | S135: 0 | T135: 0 | W135: =IF(RAND()<poisson_parameter*model!K135,1,0) -> 0 | X135: =IF(RAND()<(K124^quadratic_condition*L124-$T$21)*$T$22*(1+pref_attach_on*SUM($X$35:X134)),1,0) -> 0 | Y135: 101 | Z135: =IF(AND(SUM($X$35:X134)=0,X135=1),Y135,"") -> 
G136: 113 | H136: 11.3 | I136: 0.4042708915 | J136: 0.8620311663 | K136: 0.9079254462 | L136: 0.77685059 | M136: 0.02130385073 | N136: 0.1941474257 | O136: 0.007863045367 | P136: 0.007967028057 | Q136: 0.2955219592 | R136: 0.03544754562 | S136: 0 | T136: 0 | W136: =IF(RAND()<poisson_parameter*model!K136,1,0) -> 0 | X136: =IF(RAND()<(K125^quadratic_condition*L125-$T$21)*$T$22*(1+pref_attach_on*SUM($X$35:X135)),1,0) -> 0 | Y136: 102 | Z136: =IF(AND(SUM($X$35:X135)=0,X136=1),Y136,"") -> 
G137: 114 | H137: 11.4 | I137: 0.4102061184 | J137: 0.8696632947 | K137: 0.9097057412 | L137: 0.7824309756 | M137: 0.02130385073 | N137: 0.194244214 | O137: 0.007863045367 | P137: 0.007967028057 | Q137: 0.3039599132 | R137: 0.03544754562 | S137: 0 | T137: 0 | W137: =IF(RAND()<poisson_parameter*model!K137,1,0) -> 0 | X137: =IF(RAND()<(K126^quadratic_condition*L126-$T$21)*$T$22*(1+pref_attach_on*SUM($X$35:X136)),1,0) -> 0 | Y137: 103 | Z137: =IF(AND(SUM($X$35:X136)=0,X137=1),Y137,"") -> 
G138: 115 | H138: 11.5 | I138: 0.4159688708 | J138: 0.877069181 | K138: 0.9113043652 | L138: 0.7878557661 | M138: 0.02130385073 | N138: 0.194304746 | O138: 0.007863045367 | P138: 0.007967028057 | Q138: 0.3124685413 | R138: 0.03544754562 | S138: 0 | T138: 0 | W138: =IF(RAND()<poisson_parameter*model!K138,1,0) -> 0 | X138: =IF(RAND()<(K127^quadratic_condition*L127-$T$21)*$T$22*(1+pref_attach_on*SUM($X$35:X137)),1,0) -> 0 | Y138: 104 | Z138: =IF(AND(SUM($X$35:X137)=0,X138=1),Y138,"") -> 
G139: 116 | H139: 11.6 | I139: 0.4215539328 | J139: 0.8842508839 | K139: 0.9127310038 | L139: 0.793126723 | M139: 0.02130385073 | N139: 0.194330691 | O139: 0.007863045367 | P139: 0.007967028057 | Q139: 0.3210396626 | R139: 0.03544754562 | S139: 0 | T139: 0 | W139: =IF(RAND()<poisson_parameter*model!K139,1,0) -> 0 | X139: =IF(RAND()<(K128^quadratic_condition*L128-$T$21)*$T$22*(1+pref_attach_on*SUM($X$35:X138)),1,0) -> 0 | Y139: 105 | Z139: =IF(AND(SUM($X$35:X138)=0,X139=1),Y139,"") -> 
G140: 117 | H140: 11.7 | I140: 0.4269567553 | J140: 0.891210824 | K140: 0.9139952156 | L140: 0.7982457769 | M140: 0.02130385073 | N140: 0.1943236894 | O140: 0.007863045367 | P140: 0.007967028057 | Q140: 0.3296648588 | R140: 0.03544754562 | S140: 0 | T140: 0 | W140: =IF(RAND()<poisson_parameter*model!K140,1,0) -> 0 | X140: =IF(RAND()<(K129^quadratic_condition*L129-$T$21)*$T$22*(1+pref_attach_on*SUM($X$35:X139)),1,0) -> 0 | Y140: 106 | Z140: =IF(AND(SUM($X$35:X139)=0,X140=1),Y140,"") -> 
G141: 118 | H141: 11.8 | I141: 0.4321734587 | J141: 0.8979517539 | K141: 0.9151064044 | L141: 0.8032150134 | M141: 0.02130385073 | N141: 0.1942853487 | O141: 0.007863045367 | P141: 0.007967028057 | Q141: 0.3383355056 | R141: 0.03544754562 | S141: 0 | T141: 0 | W141: =IF(RAND()<poisson_parameter*model!K141,1,0) -> 0 | X141: =IF(RAND()<(K130^quadratic_condition*L130-$T$21)*$T$22*(1+pref_attach_on*SUM($X$35:X140)),1,0) -> 0 | Y141: 107 | Z141: =IF(AND(SUM($X$35:X140)=0,X141=1),Y141,"") -> 
G142: 119 | H142: 11.9 | I142: 0.4372008304 | J142: 0.904476728 | K142: 0.9160737941 | L142: 0.8080366581 | M142: 0.02130385073 | N142: 0.1942172402 | O142: 0.007863045367 | P142: 0.007967028057 | Q142: 0.347042806 | R142: 0.03544754562 | S142: 0 | T142: 0 | W142: =IF(RAND()<poisson_parameter*model!K142,1,0) -> 0 | X142: =IF(RAND()<(K131^quadratic_condition*L131-$T$21)*$T$22*(1+pref_attach_on*SUM($X$35:X141)),1,0) -> 0 | Y142: 108 | Z142: =IF(AND(SUM($X$35:X141)=0,X142=1),Y142,"") -> 
G143: 120 | H143: 12 | I143: 0.442036318 | J143: 0.9107890735 | K143: 0.9169064062 | L143: 0.8127130632 | M143: 0.02130385073 | N143: 0.1941208963 | O143: 0.007863045367 | P143: 0.007967028057 | Q143: 0.3557778251 | R143: 0.03544754562 | S143: 0 | T143: 0 | W143: =IF(RAND()<poisson_parameter*model!K143,1,0) -> 0 | X143: =IF(RAND()<(K132^quadratic_condition*L132-$T$21)*$T$22*(1+pref_attach_on*SUM($X$35:X142)),1,0) -> 0 | Y143: 109 | Z143: =IF(AND(SUM($X$35:X142)=0,X143=1),Y143,"") -> 
G144: 121 | H144: 12.1 | I144: 0.4466780181 | J144: 0.9168923617 | K144: 0.9176130402 | L144: 0.8172466935 | M144: 0.02130385073 | N144: 0.1939978082 | O144: 0.007863045367 | P144: 0.007967028057 | Q144: 0.3645315257 | R144: 0.03544754562 | S144: 0 | T144: 0 | W144: =IF(RAND()<poisson_parameter*model!K144,1,0) -> 0 | X144: =IF(RAND()<(K133^quadratic_condition*L133-$T$21)*$T$22*(1+pref_attach_on*SUM($X$35:X143)),1,0) -> 0 | Y144: 110 | Z144: =IF(AND(SUM($X$35:X143)=0,X144=1),Y144,"") -> 
G145: 122 | H145: 12.2 | I145: 0.4511246613 | J145: 0.922790381 | K145: 0.9182022561 | L145: 0.8216401136 | M145: 0.02130385073 | N145: 0.1938494239 | O145: 0.007863045367 | P145: 0.007967028057 | Q145: 0.3732948053 | R145: 0.03544754562 | S145: 0 | T145: 0 | W145: =IF(RAND()<poisson_parameter*model!K145,1,0) -> 0 | X145: =IF(RAND()<(K134^quadratic_condition*L134-$T$21)*$T$22*(1+pref_attach_on*SUM($X$35:X144)),1,0) -> 0 | Y145: 111 | Z145: =IF(AND(SUM($X$35:X144)=0,X145=1),Y145,"") -> 
G146: 123 | H146: 12.3 | I146: 0.4553755934 | J146: 0.9284871099 | K146: 0.9186823589 | L146: 0.8258959755 | M146: 0.02130385073 | N146: 0.1936771464 | O146: 0.007863045367 | P146: 0.007967028057 | Q146: 0.3820585334 | R146: 0.03544754562 | S146: 0 | T146: 0 | W146: =IF(RAND()<poisson_parameter*model!K146,1,0) -> 0 | X146: =IF(RAND()<(K135^quadratic_condition*L135-$T$21)*$T$22*(1+pref_attach_on*SUM($X$35:X145)),1,0) -> 0 | Y146: 112 | Z146: =IF(AND(SUM($X$35:X145)=0,X146=1),Y146,"") -> 
G147: 124 | H147: 12.4 | I147: 0.4594307538 | J147: 0.9339866918 | K147: 0.9190613868 | L147: 0.8300170062 | M147: 0.02130385073 | N147: 0.1934823331 | O147: 0.007863045367 | P147: 0.007967028057 | Q147: 0.3908135886 | R147: 0.03544754562 | S147: 0 | T147: 0 | W147: =IF(RAND()<poisson_parameter*model!K147,1,0) -> 0 | X147: =IF(RAND()<(K136^quadratic_condition*L136-$T$21)*$T$22*(1+pref_attach_on*SUM($X$35:X146)),1,0) -> 0 | Y147: 113 | Z147: =IF(AND(SUM($X$35:X146)=0,X147=1),Y147,"") -> 
G148: 125 | H148: 12.5 | I148: 0.4632906499 | J148: 0.9392934111 | K148: 0.9193470999 | L148: 0.8340059968 | M148: 0.02130385073 | N148: 0.1932662942 | O148: 0.007863045367 | P148: 0.007967028057 | Q148: 0.3995508963 | R148: 0.03544754562 | S148: 0 | T148: 0 | W148: =IF(RAND()<poisson_parameter*model!K148,1,0) -> 0 | X148: =IF(RAND()<(K137^quadratic_condition*L137-$T$21)*$T$22*(1+pref_attach_on*SUM($X$35:X147)),1,0) -> 0 | Y148: 114 | Z148: =IF(AND(SUM($X$35:X147)=0,X148=1),Y148,"") -> 
G149: 126 | H149: 12.6 | I149: 0.4669563308 | J149: 0.9444116697 | K149: 0.919546972 | L149: 0.837865791 | M149: 0.02130385073 | N149: 0.1930302925 | O149: 0.007863045367 | P149: 0.007967028057 | Q149: 0.4082614656 | R149: 0.03544754562 | S149: 0 | T149: 0 | W149: =IF(RAND()<poisson_parameter*model!K149,1,0) -> 0 | X149: =IF(RAND()<(K138^quadratic_condition*L138-$T$21)*$T$22*(1+pref_attach_on*SUM($X$35:X148)),1,0) -> 0 | Y149: 115 | Z149: =IF(AND(SUM($X$35:X148)=0,X149=1),Y149,"") -> 
G150: 127 | H150: 12.7 | I150: 0.4704293574 | J150: 0.949345966 | K150: 0.9196681844 | L150: 0.8415992756 | M150: 0.02130385073 | N150: 0.1927755432 | O150: 0.007863045367 | P150: 0.007967028057 | Q150: 0.4169364252 | R150: 0.03544754562 | S150: 0 | T150: 0 | W150: =IF(RAND()<poisson_parameter*model!K150,1,0) -> 0 | X150: =IF(RAND()<(K139^quadratic_condition*L139-$T$21)*$T$22*(1+pref_attach_on*SUM($X$35:X149)),1,0) -> 0 | Y150: 116 | Z150: =IF(AND(SUM($X$35:X149)=0,X150=1),Y150,"") -> 
G151: 128 | H151: 12.8 | I151: 0.4737117714 | J151: 0.9541008739 | K151: 0.9197176206 | L151: 0.8452093701 | M151: 0.02130385073 | N151: 0.1925032134 | O151: 0.007863045367 | P151: 0.007967028057 | Q151: 0.4255670589 | R151: 0.03544754562 | S151: 0 | T151: 0 | W151: =IF(RAND()<poisson_parameter*model!K151,1,0) -> 0 | X151: =IF(RAND()<(K140^quadratic_condition*L140-$T$21)*$T$22*(1+pref_attach_on*SUM($X$35:X150)),1,0) -> 0 | Y151: 117 | Z151: =IF(AND(SUM($X$35:X150)=0,X151=1),Y151,"") -> 
G152: 129 | H152: 12.9 | I152: 0.4768060631 | J152: 0.9586810243 | K152: 0.9197018641 | L152: 0.848699018 | M152: 0.02130385073 | N152: 0.1922144229 | O152: 0.007863045367 | P152: 0.007967028057 | Q152: 0.4341448389 | R152: 0.03544754562 | S152: 0 | T152: 0 | W152: =IF(RAND()<poisson_parameter*model!K152,1,0) -> 0 | X152: =IF(RAND()<(K141^quadratic_condition*L141-$T$21)*$T$22*(1+pref_attach_on*SUM($X$35:X151)),1,0) -> 0 | Y152: 118 | Z152: =IF(AND(SUM($X$35:X151)=0,X152=1),Y152,"") -> 
G153: 130 | H153: 13 | I153: 0.4797151379 | J153: 0.9630910869 | K153: 0.9196271965 | L153: 0.8520711782 | M153: 0.02130385073 | N153: 0.1919102439 | O153: 0.007863045367 | P153: 0.007967028057 | Q153: 0.4426614585 | R153: 0.03544754562 | S153: 0 | T153: 0 | W153: =IF(RAND()<poisson_parameter*model!K153,1,0) -> 0 | X153: =IF(RAND()<(K142^quadratic_condition*L142-$T$21)*$T$22*(1+pref_attach_on*SUM($X$35:X152)),1,0) -> 0 | Y153: 119 | Z153: =IF(AND(SUM($X$35:X152)=0,X153=1),Y153,"") -> 
G154: 131 | H154: 13.1 | I154: 0.4824422829 | J154: 0.9673357539 | K154: 0.9194995977 | L154: 0.8553288171 | M154: 0.02130385073 | N154: 0.1915917021 | O154: 0.007863045367 | P154: 0.007967028057 | Q154: 0.4511088618 | R154: 0.03544754562 | S154: 0 | T154: =S154-S153 -> 0 | W154: =IF(RAND()<poisson_parameter*model!K154,1,0) -> 0 | X154: =IF(RAND()<(K143^quadratic_condition*L143-$T$21)*$T$22*(1+pref_attach_on*SUM($X$35:X153)),1,0) -> 0 | Y154: 120 | Z154: =IF(AND(SUM($X$35:X153)=0,X154=1),Y154,"") -> 
G155: 132 | H155: 13.2 | I155: 0.4849911321 | J155: 0.971419725 | K155: 0.9193247476 | L155: 0.8584749012 | M155: 0.02130385073 | N155: 0.1912597771 | O155: 0.007863045367 | P155: 0.007967028057 | Q155: 0.4594792722 | R155: 0.03544754562 | S155: 0 | T155: 0 | W155: =IF(RAND()<poisson_parameter*model!K155,1,0) -> 0 | X155: =IF(RAND()<(K144^quadratic_condition*L144-$T$21)*$T$22*(1+pref_attach_on*SUM($X$35:X154)),1,0) -> 0 | Y155: 121 | Z155: =IF(AND(SUM($X$35:X154)=0,X155=1),Y155,"") -> 
G156: 133 | H156: 13.3 | I156: 0.4873656324 | J156: 0.975347693 | K156: 0.9191080286 | L156: 0.8615123901 | M156: 0.02130385073 | N156: 0.1909154033 | O156: 0.007863045367 | P156: 0.007967028057 | Q156: 0.4677652186 | R156: 0.03544754562 | S156: 0 | T156: 0 | W156: =IF(RAND()<poisson_parameter*model!K156,1,0) -> 0 | X156: =IF(RAND()<(K145^quadratic_condition*L145-$T$21)*$T$22*(1+pref_attach_on*SUM($X$35:X155)),1,0) -> 0 | Y156: 122 | Z156: =IF(AND(SUM($X$35:X155)=0,X156=1),Y156,"") -> 
G157: 134 | H157: 13.4 | I157: 0.4895700101 | J157: 0.9791243314 | K157: 0.9188545291 | L157: 0.8644442305 | M157: 0.02130385073 | N157: 0.1905594709 | O157: 0.007863045367 | P157: 0.007967028057 | Q157: 0.475959558 | R157: 0.03544754562 | S157: 0 | T157: 0 | W157: =IF(RAND()<poisson_parameter*model!K157,1,0) -> 0 | X157: =IF(RAND()<(K146^quadratic_condition*L146-$T$21)*$T$22*(1+pref_attach_on*SUM($X$35:X156)),1,0) -> 0 | Y157: 123 | Z157: =IF(AND(SUM($X$35:X156)=0,X157=1),Y157,"") -> 
G158: 135 | H158: 13.5 | I158: 0.491608737 | J158: 0.9827542827 | K158: 0.9185690489 | L158: 0.8672733503 | M158: 0.02241606747 | N158: 0.1901928271 | O158: 0.007863045367 | P158: 0.007967028057 | Q158: 0.4840554975 | R158: 0.03544754562 | S158: 0 | T158: 0 | W158: =IF(RAND()<poisson_parameter*model!K158,1,0) -> 0 | X158: =IF(RAND()<(K147^quadratic_condition*L147-$T$21)*$T$22*(1+pref_attach_on*SUM($X$35:X157)),1,0) -> 0 | Y158: 124 | Z158: =IF(AND(SUM($X$35:X157)=0,X158=1),Y158,"") -> 
G159: 136 | H159: 13.6 | I159: 0.4934864985 | J159: 0.9862421477 | K159: 0.9182229252 | L159: 0.8700026533 | M159: 0.02358504726 | N159: 0.1898162769 | O159: 0.007863045367 | P159: 0.007967028057 | Q159: 0.4920466114 | R159: 0.03544754562 | S159: 0 | T159: 0 | W159: =IF(RAND()<poisson_parameter*model!K159,1,0) -> 0 | X159: =IF(RAND()<(K148^quadratic_condition*L148-$T$21)*$T$22*(1+pref_attach_on*SUM($X$35:X158)),1,0) -> 0 | Y159: 125 | Z159: =IF(AND(SUM($X$35:X158)=0,X159=1),Y159,"") -> 
G160: 137 | H160: 13.7 | I160: 0.4952081612 | J160: 0.9895924762 | K160: 0.9178200926 | L160: 0.8726350145 | M160: 0.02481354789 | N160: 0.1894306798 | O160: 0.007863045367 | P160: 0.007967028057 | Q160: 0.4999268577 | R160: 0.03544754562 | S160: 0 | T160: 0 | W160: =IF(RAND()<poisson_parameter*model!K160,1,0) -> 0 | X160: =IF(RAND()<(K149^quadratic_condition*L149-$T$21)*$T$22*(1+pref_attach_on*SUM($X$35:X159)),1,0) -> 0 | Y160: 126 | Z160: =IF(AND(SUM($X$35:X159)=0,X160=1),Y160,"") -> 
G161: 138 | H161: 13.8 | I161: 0.4967787431 | J161: 0.9928097588 | K161: 0.9173641544 | L161: 0.8751732757 | M161: 0.02610444628 | N161: 0.1890368548 | O161: 0.008270380627 | P161: 0.007967028057 | Q161: 0.5076905903 | R161: 0.03544754562 | S161: 0 | T161: 0 | W161: =IF(RAND()<poisson_parameter*model!K161,1,0) -> 0 | X161: =IF(RAND()<(K150^quadratic_condition*L150-$T$21)*$T$22*(1+pref_attach_on*SUM($X$35:X160)),1,0) -> 0 | Y161: 127 | Z161: =IF(AND(SUM($X$35:X160)=0,X161=1),Y161,"") -> 
G162: 139 | H162: 13.9 | I162: 0.4982086521 | J162: 0.9958984189 | K162: 0.916858388 | L162: 0.8776202418 | M162: 0.02746074206 | N162: 0.1886393986 | O162: 0.00869914613 | P162: 0.007967028057 | Q162: 0.5153325691 | R162: 0.03544754562 | S162: 0 | T162: 0 | W162: =IF(RAND()<poisson_parameter*model!K162,1,0) -> 0 | X162: =IF(RAND()<(K151^quadratic_condition*L151-$T$21)*$T$22*(1+pref_attach_on*SUM($X$35:X161)),1,0) -> 0 | Y162: 128 | Z162: =IF(AND(SUM($X$35:X161)=0,X162=1),Y162,"") -> 
G163: 140 | H163: 14 | I163: 0.4995032625 | J163: 0.9988628067 | K163: 0.9163056506 | L163: 0.8799786768 | M163: 0.028885561 | N163: 0.1882392015 | O163: 0.009150470261 | P163: 0.007967028057 | Q163: 0.5228479674 | R163: 0.03544754562 | S163: 0 | T163: 0 | W163: =IF(RAND()<poisson_parameter*model!K163,1,0) -> 0 | X163: =IF(RAND()<(K152^quadratic_condition*L152-$T$21)*$T$22*(1+pref_attach_on*SUM($X$35:X162)),1,0) -> 0 | Y163: 129 | Z163: =IF(AND(SUM($X$35:X162)=0,X163=1),Y163,"") -> 
G164: 141 | H164: 14.1 | I164: 0.5006680196 | J164: 1.001707193 | K164: 0.9157084876 | L164: 0.8822513015 | M164: 0.03038215842 | N164: 0.1878371261 | O164: 0.009625539787 | P164: 0.007967028057 | Q164: 0.5302323762 | R164: 0.03544754562 | S164: 0 | T164: 0 | W164: =IF(RAND()<poisson_parameter*model!K164,1,0) -> 0 | X164: =IF(RAND()<(K153^quadratic_condition*L153-$T$21)*$T$22*(1+pref_attach_on*SUM($X$35:X163)),1,0) -> 0 | Y164: 130 | Z164: =IF(AND(SUM($X$35:X163)=0,X164=1),Y164,"") -> 
G165: 142 | H165: 14.2 | I165: 0.5017084151 | J165: 1.004435764 | K165: 0.9150691408 | L165: 0.8844407902 | M165: 0.03195392236 | N165: 0.187434009 | O165: 0.01012560274 | P165: 0.007967028057 | Q165: 0.5374818067 | R165: 0.03598220682 | S165: 0 | T165: 0 | W165: =IF(RAND()<poisson_parameter*model!K165,1,0) -> 0 | X165: =IF(RAND()<(K154^quadratic_condition*L154-$T$21)*$T$22*(1+pref_attach_on*SUM($X$35:X164)),1,0) -> 0 | Y165: 131 | Z165: =IF(AND(SUM($X$35:X164)=0,X165=1),Y165,"") -> 
G166: 143 | H166: 14.3 | I166: 0.5026299657 | J166: 1.007052619 | K166: 0.9143895551 | L166: 0.8865497685 | M166: 0.03360437667 | N166: 0.1870306631 | O166: 0.01065197143 | P166: 0.007967028057 | Q166: 0.5445926896 | R166: 0.03652139176 | S166: 0 | T166: 0 | W166: =IF(RAND()<poisson_parameter*model!K166,1,0) -> 0 | X166: =IF(RAND()<(K155^quadratic_condition*L155-$T$21)*$T$22*(1+pref_attach_on*SUM($X$35:X165)),1,0) -> 0 | Y166: 132 | Z166: =IF(AND(SUM($X$35:X165)=0,X166=1),Y166,"") -> 
G167: 144 | H167: 14.4 | I167: 0.5034381923 | J167: 1.009561765 | K167: 0.9136713865 | L167: 0.8885808114 | M167: 0.03533718386 | N167: 0.1866278794 | O167: 0.01120602552 | P167: 0.007967028057 | Q167: 0.551561872 | R167: 0.03706519163 | S167: 0 | T167: 0 | W167: =IF(RAND()<poisson_parameter*model!K167,1,0) -> 0 | X167: =IF(RAND()<(K156^quadratic_condition*L156-$T$21)*$T$22*(1+pref_attach_on*SUM($X$35:X166)),1,0) -> 0 | Y167: 133 | Z167: =IF(AND(SUM($X$35:X166)=0,X167=1),Y167,"") -> 
G168: 145 | H168: 14.5 | I168: 0.5041386014 | J168: 1.011967112 | K168: 0.9129160095 | L168: 0.8905364415 | M168: 0.03715614766 | N168: 0.1862264293 | O168: 0.01178921534 | P168: 0.007967028057 | Q168: 0.5583866133 | R168: 0.03761369935 | S168: 0 | T168: 0 | W168: =IF(RAND()<poisson_parameter*model!K168,1,0) -> 0 | X168: =IF(RAND()<(K157^quadratic_condition*L157-$T$21)*$T$22*(1+pref_attach_on*SUM($X$35:X167)),1,0) -> 0 | Y168: 134 | Z168: =IF(AND(SUM($X$35:X167)=0,X168=1),Y168,"") -> 
G169: 146 | H169: 14.6 | I169: 0.5047366676 | J169: 1.014272476 | K169: 0.9121245256 | L169: 0.8924191276 | M169: 0.03906521537 | N169: 0.1858270666 | O169: 0.01240306523 | P169: 0.007967028057 | Q169: 0.5650645773 | R169: 0.03816700956 | S169: 0 | T169: 0 | W169: =IF(RAND()<poisson_parameter*model!K169,1,0) -> 0 | X169: =IF(RAND()<(K158^quadratic_condition*L158-$T$21)*$T$22*(1+pref_attach_on*SUM($X$35:X168)),1,0) -> 0 | Y169: 135 | Z169: =IF(AND(SUM($X$35:X168)=0,X169=1),Y169,"") -> 
G170: 147 | H170: 14.7 | I170: 0.5052378186 | J170: 1.016481574 | K170: 0.9112977711 | L170: 0.8942312834 | M170: 0.04106847978 | N170: 0.1854305296 | O170: 0.01304917707 | P170: 0.007967028057 | Q170: 0.5715938236 | R170: 0.03872521856 | S170: 0 | T170: 0 | W170: =IF(RAND()<poisson_parameter*model!K170,1,0) -> 0 | X170: =IF(RAND()<(K159^quadratic_condition*L159-$T$21)*$T$22*(1+pref_attach_on*SUM($X$35:X169)),1,0) -> 0 | Y170: 136 | Z170: =IF(AND(SUM($X$35:X169)=0,X170=1),Y170,"") -> 
G171: 148 | H171: 14.8 | I171: 0.5056474206 | J171: 1.01859802 | K171: 0.910436325 | L171: 0.8959752668 | M171: 0.04317018077 | N171: 0.1850375435 | O171: 0.01372923393 | P171: 0.007967028057 | Q171: 0.5779727974 | R171: 0.0392884244 | S171: 0 | T171: 0 | W171: =IF(RAND()<poisson_parameter*model!K171,1,0) -> 0 | X171: =IF(RAND()<(K160^quadratic_condition*L160-$T$21)*$T$22*(1+pref_attach_on*SUM($X$35:X170)),1,0) -> 0 | Y171: 137 | Z171: =IF(AND(SUM($X$35:X170)=0,X171=1),Y171,"") -> 
G172: 149 | H172: 14.9 | I172: 0.5059707662 | J172: 1.020625331 | K172: 0.9095405176 | L172: 0.897653379 | M172: 0.04537470637 | N172: 0.184648822 | O172: 0.01444500385 | P172: 0.007967028057 | Q172: 0.5842003168 | R172: 0.03985672678 | S172: 0 | T172: 0 | W172: =IF(RAND()<poisson_parameter*model!K172,1,0) -> 0 | X172: =IF(RAND()<(K161^quadratic_condition*L161-$T$21)*$T$22*(1+pref_attach_on*SUM($X$35:X171)),1,0) -> 0 | Y172: 138 | Z172: =IF(AND(SUM($X$35:X171)=0,X172=1),Y172,"") -> 
G173: 150 | H173: 15 | I173: 0.5062130635 | J173: 1.022566921 | K173: 0.9086104381 | L173: 0.8992678643 | M173: 0.04768659341 | N173: 0.1842650699 | O173: 0.01519834373 | P173: 0.007967028057 | Q173: 0.5902755599 | R173: 0.04043022715 | S173: 0 | T173: 0 | W173: =IF(RAND()<poisson_parameter*model!K173,1,0) -> 0 | X173: =IF(RAND()<(K162^quadratic_condition*L162-$T$21)*$T$22*(1+pref_attach_on*SUM($X$35:X172)),1,0) -> 0 | Y173: 139 | Z173: =IF(AND(SUM($X$35:X172)=0,X173=1),Y173,"") -> 
G174: 151 | H174: 15.1 | I174: 0.5063794265 | J174: 1.024426103 | K174: 0.9076459427 | L174: 0.9008209096 | M174: 0.05011052746 | N174: 0.1838869849 | O174: 0.01599120343 | P174: 0.007967028057 | Q174: 0.5961980499 | R174: 0.04100902868 | S174: 0 | T174: 0 | W174: =IF(RAND()<poisson_parameter*model!K174,1,0) -> 0 | X174: =IF(RAND()<(K163^quadratic_condition*L163-$T$21)*$T$22*(1+pref_attach_on*SUM($X$35:X173)),1,0) -> 0 | Y174: 140 | Z174: =IF(AND(SUM($X$35:X173)=0,X174=1),Y174,"") -> 
G175: 152 | H175: 15.2 | I175: 0.5064748671 | J175: 1.02620609 | K175: 0.9066466629 | L175: 0.9023146441 | M175: 0.05265134224 | N175: 0.1835152602 | O175: 0.01682562991 | P175: 0.007967028057 | Q175: 0.6019676398 | R175: 0.04159323629 | S175: 0 | T175: 0 | W175: =IF(RAND()<poisson_parameter*model!K175,1,0) -> 0 | X175: =IF(RAND()<(K164^quadratic_condition*L164-$T$21)*$T$22*(1+pref_attach_on*SUM($X$35:X174)),1,0) -> 0 | Y175: 141 | Z175: =IF(AND(SUM($X$35:X174)=0,X175=1),Y175,"") -> 
G176: 153 | H176: 15.3 | I176: 0.5065042882 | J176: 1.027909992 | K176: 0.9056120131 | L176: 0.90375114 | M176: 0.05531401819 | N176: 0.1831505858 | O176: 0.01770377157 | P176: 0.007967028057 | Q176: 0.607584496 | R176: 0.04218295671 | S176: 0 | T176: 0 | W176: =IF(RAND()<poisson_parameter*model!K176,1,0) -> 0 | X176: =IF(RAND()<(K165^quadratic_condition*L165-$T$21)*$T$22*(1+pref_attach_on*SUM($X$35:X175)),1,0) -> 0 | Y176: 142 | Z176: =IF(AND(SUM($X$35:X175)=0,X176=1),Y176,"") -> 
G177: 154 | H177: 15.4 | I177: 0.5064724783 | J177: 1.029540822 | K177: 0.9045411986 | L177: 0.9051324121 | M177: 0.05810368032 | N177: 0.1827936515 | O177: 0.01862788265 | P177: 0.007967028057 | Q177: 0.6130490815 | R177: 0.04277829848 | S177: 0 | T177: 0 | W177: =IF(RAND()<poisson_parameter*model!K177,1,0) -> 0 | X177: =IF(RAND()<(K166^quadratic_condition*L166-$T$21)*$T$22*(1+pref_attach_on*SUM($X$35:X176)),1,0) -> 0 | Y177: 143 | Z177: =IF(AND(SUM($X$35:X176)=0,X177=1),Y177,"") -> 
G178: 155 | H178: 15.5 | I178: 0.5063841068 | J178: 1.031101495 | K178: 0.9034332233 | L178: 0.9064604183 | M178: 0.06102559503 | N178: 0.1824451484 | O178: 0.01960032777 | P178: 0.007967028057 | Q178: 0.6183621383 | R178: 0.04337937203 | S178: 0 | T178: 0 | W178: =IF(RAND()<poisson_parameter*model!K178,1,0) -> 0 | X178: =IF(RAND()<(K167^quadratic_condition*L167-$T$21)*$T$22*(1+pref_attach_on*SUM($X$35:X177)),1,0) -> 0 | Y178: 144 | Z178: =IF(AND(SUM($X$35:X177)=0,X178=1),Y178,"") -> 
G179: 156 | H179: 15.6 | I179: 0.5062437211 | J179: 1.032594827 | K179: 0.9022868976 | L179: 0.9077370601 | M179: 0.06408516609 | N179: 0.1821057714 | O179: 0.02062358663 | P179: 0.007967028057 | Q179: 0.6235246702 | R179: 0.04398628967 | S179: 0 | T179: 0 | W179: =IF(RAND()<poisson_parameter*model!K179,1,0) -> 0 | X179: =IF(RAND()<(K168^quadratic_condition*L168-$T$21)*$T$22*(1+pref_attach_on*SUM($X$35:X178)),1,0) -> 0 | Y179: 145 | Z179: =IF(AND(SUM($X$35:X178)=0,X179=1),Y179,"") -> 
G180: 157 | H180: 15.7 | I180: 0.506055744 | J180: 1.034023541 | K180: 0.9011008459 | L180: 0.9089641834 | M180: 0.06728792944 | N180: 0.1817762212 | O180: 0.02170025874 | P180: 0.007967028057 | Q180: 0.6285379245 | R180: 0.0445991657 | S180: 0 | T180: 0 | W180: =IF(RAND()<poisson_parameter*model!K180,1,0) -> 0 | X180: =IF(RAND()<(K169^quadratic_condition*L169-$T$21)*$T$22*(1+pref_attach_on*SUM($X$35:X179)),1,0) -> 0 | Y180: 146 | Z180: =IF(AND(SUM($X$35:X179)=0,X180=1),Y180,"") -> 
G181: 158 | H181: 15.8 | I181: 0.5058244727 | J181: 1.035390265 | K181: 0.8998735144 | L181: 0.9101435786 | M181: 0.07063954679 | N181: 0.1814572066 | O181: 0.02283306826 | P181: 0.007967028057 | Q181: 0.6334033746 | R181: 0.0452181164 | S181: 0 | T181: 0 | W181: =IF(RAND()<poisson_parameter*model!K181,1,0) -> 0 | X181: =IF(RAND()<(K170^quadratic_condition*L170-$T$21)*$T$22*(1+pref_attach_on*SUM($X$35:X180)),1,0) -> 0 | Y181: 147 | Z181: =IF(AND(SUM($X$35:X180)=0,X181=1),Y181,"") -> 
G182: 159 | H182: 15.9 | I182: 0.505554078 | J182: 1.036697533 | K182: 0.8986031788 | L182: 0.9112769819 | M182: 0.07414579803 | N182: 0.1811494465 | O182: 0.02402486893 | P182: 0.007967028057 | Q182: 0.6381227023 | R182: 0.04584326013 | S182: 0 | T182: 0 | W182: =IF(RAND()<poisson_parameter*model!K182,1,0) -> 0 | X182: =IF(RAND()<(K171^quadratic_condition*L171-$T$21)*$T$22*(1+pref_attach_on*SUM($X$35:X181)),1,0) -> 0 | Y182: 148 | Z182: =IF(AND(SUM($X$35:X181)=0,X182=1),Y182,"") -> 
G183: 160 | H183: 16 | I183: 0.505248605 | J183: 1.037947791 | K183: 0.8972879519 | L183: 0.9123660756 | M183: 0.07781257212 | N183: 0.1808536721 | O183: 0.02527864901 | P183: 0.007967028057 | Q183: 0.6426977797 | R183: 0.04647471733 | S183: 0 | T183: 0 | W183: =IF(RAND()<poisson_parameter*model!K183,1,0) -> 0 | X183: =IF(RAND()<(K172^quadratic_condition*L172-$T$21)*$T$22*(1+pref_attach_on*SUM($X$35:X182)),1,0) -> 0 | Y183: 149 | Z183: =IF(AND(SUM($X$35:X182)=0,X183=1),Y183,"") -> 
G184: 161 | H184: 16.1 | I184: 0.5049119737 | J184: 1.039143397 | K184: 0.8959257915 | L184: 0.9134124896 | M184: 0.08164585662 | N184: 0.1805706294 | O184: 0.02659753633 | P184: 0.007967028057 | Q184: 0.6471306529 | R184: 0.04711261059 | S184: 0 | T184: 0 | W184: =IF(RAND()<poisson_parameter*model!K184,1,0) -> 0 | X184: =IF(RAND()<(K173^quadratic_condition*L173-$T$21)*$T$22*(1+pref_attach_on*SUM($X$35:X183)),1,0) -> 0 | Y184: 150 | Z184: =IF(AND(SUM($X$35:X183)=0,X184=1),Y184,"") -> 
G185: 162 | H185: 16.2 | I185: 0.5045479812 | J185: 1.040286623 | K185: 0.894514508 | L185: 0.9144178017 | M185: 0.08565172555 | N185: 0.1803010811 | O185: 0.02798480329 | P185: 0.007967028057 | Q185: 0.6514235245 | R185: 0.04775706471 | S185: 0 | T185: 0 | W185: =IF(RAND()<poisson_parameter*model!K185,1,0) -> 0 | X185: =IF(RAND()<(K174^quadratic_condition*L174-$T$21)*$T$22*(1+pref_attach_on*SUM($X$35:X184)),1,0) -> 0 | Y185: 151 | Z185: =IF(AND(SUM($X$35:X184)=0,X185=1),Y185,"") -> 
G186: 163 | H186: 16.3 | I186: 0.5041603039 | J186: 1.041379654 | K186: 0.8930517728 | L186: 0.9153835391 | M186: 0.08983632552 | N186: 0.180045809 | O186: 0.02944387183 | P186: 0.007967028057 | Q186: 0.6555787379 | R186: 0.04840820668 | S186: 0 | T186: 0 | W186: =IF(RAND()<poisson_parameter*model!K186,1,0) -> 0 | X186: =IF(RAND()<(K175^quadratic_condition*L175-$T$21)*$T$22*(1+pref_attach_on*SUM($X$35:X185)),1,0) -> 0 | Y186: 152 | Z186: =IF(AND(SUM($X$35:X185)=0,X186=1),Y186,"") -> 
G187: 164 | H187: 16.4 | I187: 0.5037525003 | J187: 1.042424597 | K187: 0.891535126 | L187: 0.916311179 | M187: 0.09420586013 | N187: 0.1798056166 | O187: 0.0309783184 | P187: 0.007967028057 | Q187: 0.6595987611 | R187: 0.04906616578 | S187: 0 | T187: 0 | W187: =IF(RAND()<poisson_parameter*model!K187,1,0) -> 0 | X187: =IF(RAND()<(K176^quadratic_condition*L176-$T$21)*$T$22*(1+pref_attach_on*SUM($X$35:X186)),1,0) -> 0 | Y187: 153 | Z187: =IF(AND(SUM($X$35:X186)=0,X187=1),Y187,"") -> 
G188: 165 | H188: 16.5 | I188: 0.5033280144 | J188: 1.043423478 | K188: 0.8899619853 | L188: 0.91720215 | M188: 0.09876657243 | N188: 0.1795813309 | O188: 0.03259187884 | P188: 0.007967028057 | Q188: 0.6634861716 | R188: 0.04973107356 | S188: 0 | T188: 0 | W188: =IF(RAND()<poisson_parameter*model!K188,1,0) -> 0 | X188: =IF(RAND()<(K177^quadratic_condition*L177-$T$21)*$T$22*(1+pref_attach_on*SUM($X$35:X187)),1,0) -> 0 | Y188: 154 | Z188: =IF(AND(SUM($X$35:X187)=0,X188=1),Y188,"") -> 
G189: 166 | H189: 16.6 | I189: 0.5028901792 | J189: 1.044378244 | K189: 0.888329654 | L189: 0.9180578331 | M189: 0.1035247254 | N189: 0.1793738054 | O189: 0.03428845304 | P189: 0.007967028057 | Q189: 0.667243642 | R189: 0.05040306385 | S189: 0 | T189: 0 | W189: =IF(RAND()<poisson_parameter*model!K189,1,0) -> 0 | X189: =IF(RAND()<(K178^quadratic_condition*L178-$T$21)*$T$22*(1+pref_attach_on*SUM($X$35:X188)),1,0) -> 0 | Y189: 155 | Z189: =IF(AND(SUM($X$35:X188)=0,X189=1),Y189,"") -> 
G190: 167 | H190: 16.7 | I190: 0.5024422215 | J190: 1.045290769 | K190: 0.8866353304 | L190: 0.9188795625 | M190: 0.1084865803 | N190: 0.1791839223 | O190: 0.03607210954 | P190: 0.007967028057 | Q190: 0.6708739262 | R190: 0.05108227278 | S190: 0 | T190: 0 | W190: =IF(RAND()<poisson_parameter*model!K190,1,0) -> 0 | X190: =IF(RAND()<(K179^quadratic_condition*L179-$T$21)*$T$22*(1+pref_attach_on*SUM($X$35:X189)),1,0) -> 0 | Y190: 156 | Z190: =IF(AND(SUM($X$35:X189)=0,X190=1),Y190,"") -> 
G191: 168 | H191: 16.8 | I191: 0.5019872655 | J191: 1.046162853 | K191: 0.8848761168 | L191: 0.9196686273 | M191: 0.113658373 | N191: 0.1790125948 | O191: 0.03794708982 | P191: 0.007967028057 | Q191: 0.6743798459 | R191: 0.05176883878 | S191: 0 | T191: 0 | W191: =IF(RAND()<poisson_parameter*model!K191,1,0) -> 0 | X191: =IF(RAND()<(K180^quadratic_condition*L180-$T$21)*$T$22*(1+pref_attach_on*SUM($X$35:X190)),1,0) -> 0 | Y191: 157 | Z191: =IF(AND(SUM($X$35:X190)=0,X191=1),Y191,"") -> 
G192: 169 | H192: 16.9 | I192: 0.5015283382 | J192: 1.046996226 | K192: 0.8830490294 | L192: 0.9204262722 | M192: 0.1190462879 | N192: 0.1788607701 | O192: 0.03991781229 | P192: 0.007967028057 | Q192: 0.6777642787 | R192: 0.05246290249 | S192: 0 | T192: 0 | W192: =IF(RAND()<poisson_parameter*model!K192,1,0) -> 0 | X192: =IF(RAND()<(K181^quadratic_condition*L181-$T$21)*$T$22*(1+pref_attach_on*SUM($X$35:X191)),1,0) -> 0 | Y192: 158 | Z192: =IF(AND(SUM($X$35:X191)=0,X192=1),Y192,"") -> 
G193: 170 | H193: 17 | I193: 0.501068374 | J193: 1.04779255 | K193: 0.881151008 | L193: 0.9211536986 | M193: 0.12465643 | N193: 0.1787294319 | O193: 0.04198887589 | P193: 0.007967028057 | Q193: 0.6810301457 | R193: 0.05316460679 | S193: 0 | T193: 0 | W193: =IF(RAND()<poisson_parameter*model!K193,1,0) -> 0 | X193: =IF(RAND()<(K182^quadratic_condition*L182-$T$21)*$T$22*(1+pref_attach_on*SUM($X$35:X192)),1,0) -> 0 | Y193: 159 | Z193: =IF(AND(SUM($X$35:X192)=0,X193=1),Y193,"") -> 
G194: 171 | H194: 17.1 | I194: 0.5006102198 | J194: 1.048553418 | K194: 0.8791789268 | L194: 0.9218520662 | M194: 0.1304947941 | N194: 0.1786196029 | O194: 0.04416506333 | P194: 0.007967028057 | Q194: 0.684180401 | R194: 0.05387409669 | S194: 0 | T194: 0 | W194: =IF(RAND()<poisson_parameter*model!K194,1,0) -> 0 | X194: =IF(RAND()<(K183^quadratic_condition*L183-$T$21)*$T$22*(1+pref_attach_on*SUM($X$35:X193)),1,0) -> 0 | Y194: 160 | Z194: =IF(AND(SUM($X$35:X193)=0,X194=1),Y194,"") -> 
G195: 172 | H195: 17.2 | I195: 0.5001566406 | J195: 1.049280363 | K195: 0.8771296054 | L195: 0.9225224937 | M195: 0.1365672322 | N195: 0.178532348 | O195: 0.04645134368 | P195: 0.007967028057 | Q195: 0.6872180214 | R195: 0.05459151921 | S195: 0 | T195: 0 | W195: =IF(RAND()<poisson_parameter*model!K195,1,0) -> 0 | X195: =IF(RAND()<(K184^quadratic_condition*L184-$T$21)*$T$22*(1+pref_attach_on*SUM($X$35:X194)),1,0) -> 0 | Y195: 161 | Z195: =IF(AND(SUM($X$35:X194)=0,X195=1),Y195,"") -> 
G196: 173 | H196: 17.3 | I196: 0.4997103245 | J196: 1.049974852 | K196: 0.8749998204 | L196: 0.9231660601 | M196: 0.1428794186 | N196: 0.178468777 | O196: 0.04885287434 | P196: 0.007967028057 | Q196: 0.6901459965 | R196: 0.05531702332 | S196: 0 | T196: 0 | W196: =IF(RAND()<poisson_parameter*model!K196,1,0) -> 0 | X196: =IF(RAND()<(K185^quadratic_condition*L185-$T$21)*$T$22*(1+pref_attach_on*SUM($X$35:X195)),1,0) -> 0 | Y196: 162 | Z196: =IF(AND(SUM($X$35:X195)=0,X196=1),Y196,"") -> 
G197: 174 | H197: 17.4 | I197: 0.4992738883 | J197: 1.050638296 | K197: 0.8727863175 | L197: 0.9237838057 | M197: 0.1494368124 | N197: 0.1784300474 | O197: 0.05137500233 | P197: 0.007967028057 | Q197: 0.6929673203 | R197: 0.05605075977 | S197: 0 | T197: 0 | W197: =IF(RAND()<poisson_parameter*model!K197,1,0) -> 0 | X197: =IF(RAND()<(K186^quadratic_condition*L186-$T$21)*$T$22*(1+pref_attach_on*SUM($X$35:X196)),1,0) -> 0 | Y197: 163 | Z197: =IF(AND(SUM($X$35:X196)=0,X197=1),Y197,"") -> 
G198: 175 | H198: 17.5 | I198: 0.498849883 | J198: 1.051272046 | K198: 0.8704858241 | L198: 0.9243767338 | M198: 0.1562446185 | N198: 0.1784173681 | O198: 0.05402326461 | P198: 0.007967028057 | Q198: 0.6956849825 | R198: 0.05679288088 | S198: 0 | T198: 0 | W198: =IF(RAND()<poisson_parameter*model!K198,1,0) -> 0 | X198: =IF(RAND()<(K187^quadratic_condition*L187-$T$21)*$T$22*(1+pref_attach_on*SUM($X$35:X197)),1,0) -> 0 | Y198: 164 | Z198: =IF(AND(SUM($X$35:X197)=0,X198=1),Y198,"") -> 
G199: 176 | H199: 17.6 | I199: 0.4984407992 | J199: 1.051877398 | K199: 0.8680950631 | L199: 0.9249458108 | M199: 0.1633077461 | N199: 0.1784320017 | O199: 0.05680338746 | P199: 0.007967028057 | Q199: 0.6983019616 | R199: 0.05754354039 | S199: 0 | T199: 0 | W199: =IF(RAND()<poisson_parameter*model!K199,1,0) -> 0 | X199: =IF(RAND()<(K188^quadratic_condition*L188-$T$21)*$T$22*(1+pref_attach_on*SUM($X$35:X198)),1,0) -> 0 | Y199: 165 | Z199: =IF(AND(SUM($X$35:X198)=0,X199=1),Y199,"") -> 
G200: 177 | H200: 17.7 | I200: 0.498049073 | J200: 1.052455594 | K200: 0.8656107664 | L200: 0.9254919684 | M200: 0.1706307659 | N200: 0.1784752688 | O200: 0.05972128469 | P200: 0.007967028057 | Q200: 0.7008212177 | R200: 0.05830289313 | S200: 0 | T200: 0 | W200: =IF(RAND()<poisson_parameter*model!K200,1,0) -> 0 | X200: =IF(RAND()<(K189^quadratic_condition*L189-$T$21)*$T$22*(1+pref_attach_on*SUM($X$35:X199)),1,0) -> 0 | Y200: 166 | Z200: =IF(AND(SUM($X$35:X199)=0,X200=1),Y200,"") -> 
... 822 more rows

Sheet results

Sheet Preparation

Sheet Explanation Output

Sheet Explanation Parameters

Sheet Running a Simulation
